Workbook

Sheet Mailmerge data (hidden)
A1: ='Input data & costs'!B5 -> No. | B1: ='Input data & costs'!C5 -> Classification | C1: ='Input data & costs'!D5 -> Program/ Technology | D1: ='Input data & costs'!F5 -> Description | E1: Scale | F1: ='Input data & costs'!AE5 -> Capacity potential (MW, or KW if tick box selected) | G1: Capacity potential (MW) | H1: CAP FACTOR | I1: =Sources!V6 -> Typical Capacity Factor (%) | J1: FIRM PEAK rating | K1: =Sources!W6 -> Firm Peak Rating (%) | L1: Peak capacity | M1: =Sources!AJ6 -> Firm peak capacity (MWp) | N1: ='Input data & costs'!AG5 -> Energy potential (TWh/y, or GWh/yr if tick box selected) | O1: =Sources!AK6 -> Energy potential (TWh/y) | P1: ='Input data & costs'!J5 -> Net Emissions (tCO2-e/ MWh) | Q1: ='Input data & costs'!J5 -> Net Emissions (tCO2-e/ MWh) | R1: ='Input data & costs'!K5 -> Capital cost of Capacity ($M/MW) | S1: =Sources!S6 -> Capital cost of Capacity ($M/MW) | T1: ='Input data & costs'!L5 -> Fixed O&M costs ($M/MW/y) | U1: =Sources!T6 -> Fixed O&M costs ($M/MW/y) | V1: ='Input data & costs'!M5 -> Variable Costs - Fuel and Increm'l O&M ($/MWh) | W1: =Sources!U6 -> Variable Costs - Fuel and Increm'l O&M ($/MWh) | X1: NET FACTOR | Y1: =Sources!X6 -> Default Network Cost factor (%) | Z1: ='Input data & costs'!I5 -> Life of Capital (yrs) | AA1: =Sources!Q6 -> Life of Capital (yrs) | AB1: No. | AC1: Classification | AD1: Program/ Technology | AE1: Description | AF1: Scale | AG1: Capacity potential (MW, or KW if tick box selected) | AH1: Capacity potential (MW) | AI1: CAP FACTOR | AJ1: Typical Capacity Factor (%) | AK1: FIRM PEAK rating | AL1: Firm Peak Rating (%) | AM1: Peak capacity | AN1: Firm peak capacity (MWp) | AO1: Energy potential (TWh/y, or GWh/yr if tick box selected) | AP1: Energy potential (TWh/y) | AQ1: Net Emissions (tCO2-e/ MWh) | AR1: Net Emissions (tCO2-e/ MWh) | AS1: Capital cost of Capacity ($M/MW) | AT1: Capital cost of Capacity ($M/MW) | AU1: Fixed O&M costs ($M/MW/y) | AV1: Fixed O&M costs ($M/MW/y) | AW1: Variable Costs - Fuel and Increm'l O&M ($/MWh) | AX1: Variable Costs - Fuel and Increm'l O&M ($/MWh) | AY1: NET FACTOR | AZ1: Default Network Cost factor (%) | BA1: Life of Capital (yrs) | BB1: Life of Capital (yrs)
A2: ='Input data & costs'!B6 -> 1A | B2: ='Input data & costs'!C6 -> Energy Efficiency | C2: ='Input data & costs'!D6 -> Industrial Energy Efficiency | D2: ='Input data & costs'!F6 -> A variety of energy efficiency measures undertaken by industrial energy users across multiple industries. | E2: ='Control Panel'!$D$6 -> National | F2: ='Inbuilt input data'!AI5 -> 2920.888064 | G2: =Sources!P7 -> From Energetics (2004), p68 table. Based on investments with less than 4 year pay-back. Conversion from PJ to MWp using assumed CLF of 65% | H2: =IF(OR(ISERROR('Input data & costs'!$N6),'Input data & costs'!$N6="TBC",'Input data & costs'!$N6="Insert Data",'Input data & costs'!$N6="n/a" ),"N/A",'Input data & costs'!$N6*100) -> 65 | I2: =IF(Sources!V7="","No data available",Sources!V7) -> ISF Estimate (Conservation load factor) | J2: =IF(OR(ISERROR('Input data & costs'!$Q6),'Input data & costs'!$Q6="TBC",'Input data & costs'!$Q6="N/a",'Input data & costs'!$Q6="Insert Data" ),"N/A",'Input data & costs'!$Q6*100) -> N/A | K2: =Sources!W7 -> N/A. Uses conservation load factor | L2: ='Inbuilt input data'!AI5 -> 2920.888064 | M2: Directly from reference | N2: =IF(ISERROR('Input data & costs'!AG6),"No data available",'Input data & costs'!AG6*1000) -> 16631.53664 | O2: =IF(Sources!AK7="","No data available","GWh/yr = MW capacity * capacity factor * 8760/1000") -> GWh/yr = MW capacity * capacity factor * 8760/1000 | P2: =IF(ISERROR('Input data & costs'!J6),"No data available",'Input data & costs'!J6) -> 0 | Q2: =Sources!R7 -> Each unit of energy saved produces zero emissions | R2: =IF(ISERROR('Input data & costs'!K6),"No data available",'Input data & costs'!K6) -> 0.99 | S2: =IF(Sources!S7="","No data available",Sources!S7) -> Energetics (2004), p66 table. Based on case study cost data ($ 1187Mill for 43.5 PJ annual energy reduction). Takes into account energy efficiency measures with 4 years payback or less. Energy efficiency program administration costs are not taken into account. | T2: =IF(ISERROR('Input data & costs'!L6),"No data available",'Input data & costs'!L6) -> 0 | U2: =IF(Sources!T7="","No data available",Sources!T7) -> Assumes zero fixed operating and maintenance costs | V2: =IF(ISERROR('Input data & costs'!M6),"No data available",'Input data & costs'!M6) -> 0 | W2: =IF(Sources!U7="","No data available",Sources!U7) -> Assumes zero variable fuel and incremental costs | X2: =IF(OR(ISERROR('Input data & costs'!$R6),'Input data & costs'!$R6="TBC",'Input data & costs'!$R6="Insert Data" ),"N/A",'Input data & costs'!$R6*100) -> 0 | Y2: =IF(Sources!X7="","No data available",Sources!X7) -> ISF estimate. | Z2: =IF(ISERROR('Input data & costs'!I6),"No data available",'Input data & costs'!I6) -> 12 | AA2: =Sources!Q7 -> Based on the Sustainable Energy Authority Victoria's National Framework for Energy Efficiency, which uses a 12 year period for economic modelling of Energy Efficiency Programs | AB2: 1A | AC2: Energy Efficiency | AD2: Industrial Energy Efficiency | AE2: A variety of energy efficiency measures undertaken by industrial energy users across multiple industries. | AF2: National | AG2: 2920.888064 | AH2: From Energetics (2004), p68 table. Based on investments with less than 4 year pay-back. Conversion from PJ to MWp using assumed CLF of 65% | AI2: 65 | AJ2: ISF Estimate (Conservation load factor) | AK2: N/A | AL2: N/A. Uses conservation load factor | AM2: 2920.888064 | AN2: Directly from reference | AO2: 16631.53664 | AP2: GWh/yr = MW capacity * capacity factor * 8760/1000 | AQ2: 0 | AR2: Each unit of energy saved produces zero emissions | AS2: 0.99 | AT2: Energetics (2004), p66 table. Based on case study cost data ($ 1187Mill for 43.5 PJ annual energy reduction). Takes into account energy efficiency measures with 4 years payback or less. Energy efficiency program administration costs are not taken into account. | AU2: 0 | AV2: Assumes zero fixed operating and maintenance costs | AW2: 0 | AX2: Assumes zero variable fuel and incremental costs | AY2: 0 | AZ2: ISF estimate. | BA2: 12 | BB2: Based on the Sustainable Energy Authority Victoria's National Framework for Energy Efficiency, which uses a 12 year period for economic modelling of Energy Efficiency Programs
A3: ='Input data & costs'!B7 -> 1B | B3: ='Input data & costs'!C7 -> Energy Efficiency | C3: ='Input data & costs'!D7 -> Commercial Energy Efficiency | D3: ='Input data & costs'!F7 -> Energy efficiency measures undertaken by commercial energy users in areas including: the Energy Star program, lighting, heating and cooling, pumping and air handling. | E3: ='Control Panel'!$D$6 -> National | F3: ='Inbuilt input data'!AI6 -> 2751.301653 | G3: =Sources!P8 -> Langham et al. (2010). Based on the peak demand reduction of a variety of energy efficiency measures (moderate scenario). Least cost effective measures were not included in analysis. | H3: =IF(OR(ISERROR('Input data & costs'!$N7),'Input data & costs'!$N7="TBC",'Input data & costs'!$N7="Insert Data",'Input data & costs'!$N7="n/a" ),"N/A",'Input data & costs'!$N7*100) -> 46.99510678 | I3: =IF(Sources!V8="","No data available",Sources!V8) -> Langham et al. (2010). (Conservation load factor) | J3: =IF(OR(ISERROR('Input data & costs'!$Q7),'Input data & costs'!$Q7="TBC",'Input data & costs'!$Q7="N/a",'Input data & costs'!$Q7="Insert Data" ),"N/A",'Input data & costs'!$Q7*100) -> N/A | K3: =Sources!W8 -> N/A. Uses conservation load factor | L3: ='Inbuilt input data'!AI6 -> 2751.301653 | M3: Directly from reference | N3: =IF(ISERROR('Input data & costs'!AG7),"No data available",'Input data & costs'!AG7*1000) -> 11326.47983 | O3: =IF(Sources!AK8="","No data available","GWh/yr = MW capacity * capacity factor * 8760/1000") -> GWh/yr = MW capacity * capacity factor * 8760/1000 | P3: =IF(ISERROR('Input data & costs'!J7),"No data available",'Input data & costs'!J7) -> 0 | Q3: =Sources!R8 -> Each unit of energy saved produces zero emissions | R3: =IF(ISERROR('Input data & costs'!K7),"No data available",'Input data & costs'!K7) -> 3.181954135 | S3: =IF(Sources!S8="","No data available",Sources!S8) -> Langham et al. (2010). Capital costs only ( energy efficiency program administration cost not included in analysis) | T3: =IF(ISERROR('Input data & costs'!L7),"No data available",'Input data & costs'!L7) -> -0.1136597109 | U3: =IF(Sources!T8="","No data available",Sources!T8) -> Langham et al. (2010). Program administration cost not included in analysis | V3: =IF(ISERROR('Input data & costs'!M7),"No data available",'Input data & costs'!M7) -> 0 | W3: =IF(Sources!U8="","No data available",Sources!U8) -> Langham et al. (2010). | X3: =IF(OR(ISERROR('Input data & costs'!$R7),'Input data & costs'!$R7="TBC",'Input data & costs'!$R7="Insert Data" ),"N/A",'Input data & costs'!$R7*100) -> 0 | Y3: =IF(Sources!X8="","No data available",Sources!X8) -> ISF estimate. | Z3: =IF(ISERROR('Input data & costs'!I7),"No data available",'Input data & costs'!I7) -> 19 | AA3: =Sources!Q8 -> Langham et al. (2010). | AB3: 1B | AC3: Energy Efficiency | AD3: Commercial Energy Efficiency | AE3: Energy efficiency measures undertaken by commercial energy users in areas including: the Energy Star program, lighting, heating and cooling, pumping and air handling. | AF3: National | AG3: 2751.301653 | AH3: Langham et al. (2010). Based on the peak demand reduction of a variety of energy efficiency measures (moderate scenario). Least cost effective measures were not included in analysis. | AI3: 46.99510678 | AJ3: Langham et al. (2010). (Conservation load factor) | AK3: N/A | AL3: N/A. Uses conservation load factor | AM3: 2751.301653 | AN3: Directly from reference | AO3: 11326.47983 | AP3: GWh/yr = MW capacity * capacity factor * 8760/1000 | AQ3: 0 | AR3: Each unit of energy saved produces zero emissions | AS3: 3.181954135 | AT3: Langham et al. (2010). Capital costs only ( energy efficiency program administration cost not included in analysis) | AU3: -0.1136597109 | AV3: Langham et al. (2010). Program administration cost not included in analysis | AW3: 0 | AX3: Langham et al. (2010). | AY3: 0 | AZ3: ISF estimate. | BA3: 19 | BB3: Langham et al. (2010).
A4: ='Input data & costs'!B8 -> 1C | B4: ='Input data & costs'!C8 -> Energy Efficiency | C4: ='Input data & costs'!D8 -> Residential Energy Efficiency | D4: ='Input data & costs'!F8 -> Cost effective reduction in electricity consumption through improvements to residential space heating and cooling, insulation and draught sealing, lighting, refrigeration, hot water demand reduction. | E4: ='Control Panel'!$D$6 -> National | F4: ='Inbuilt input data'!AI7 -> 983.0990183 | G4: =Sources!P9 -> Langham et al. (2010). Based on the peak demand reduction of a variety of energy efficiency measures (moderate scenario). Least cost effective measures were not included in analysis. | H4: =IF(OR(ISERROR('Input data & costs'!$N8),'Input data & costs'!$N8="TBC",'Input data & costs'!$N8="Insert Data",'Input data & costs'!$N8="n/a" ),"N/A",'Input data & costs'!$N8*100) -> 28.44202964 | I4: =IF(Sources!V9="","No data available",Sources!V9) -> Langham et al. (2010). (Conservation load factor) | J4: =IF(OR(ISERROR('Input data & costs'!$Q8),'Input data & costs'!$Q8="TBC",'Input data & costs'!$Q8="N/a",'Input data & costs'!$Q8="Insert Data" ),"N/A",'Input data & costs'!$Q8*100) -> N/A | K4: =Sources!W9 -> N/A. Uses conservation load factor | L4: ='Inbuilt input data'!AI7 -> 983.0990183 | M4: Directly from reference | N4: =IF(ISERROR('Input data & costs'!AG8),"No data available",'Input data & costs'!AG8*1000) -> 2449.412633 | O4: =IF(Sources!AK9="","No data available","GWh/yr = MW capacity * capacity factor * 8760/1000") -> GWh/yr = MW capacity * capacity factor * 8760/1000 | P4: =IF(ISERROR('Input data & costs'!J8),"No data available",'Input data & costs'!J8) -> 0 | Q4: =Sources!R9 -> Each unit of energy saved produces zero emissions | R4: =IF(ISERROR('Input data & costs'!K8),"No data available",'Input data & costs'!K8) -> 0.5493919619 | S4: =IF(Sources!S9="","No data available",Sources!S9) -> Langham et al. (2010). Capital costs only (energy efficiency program administration cost not included in analysis) | T4: =IF(ISERROR('Input data & costs'!L8),"No data available",'Input data & costs'!L8) -> 0.08722272104 | U4: =IF(Sources!T9="","No data available",Sources!T9) -> Langham et al. (2010). Program administration cost not included in analysis | V4: =IF(ISERROR('Input data & costs'!M8),"No data available",'Input data & costs'!M8) -> 0 | W4: =IF(Sources!U9="","No data available",Sources!U9) -> Langham et al. (2010). | X4: =IF(OR(ISERROR('Input data & costs'!$R8),'Input data & costs'!$R8="TBC",'Input data & costs'!$R8="Insert Data" ),"N/A",'Input data & costs'!$R8*100) -> 0 | Y4: =IF(Sources!X9="","No data available",Sources!X9) -> ISF estimate. | Z4: =IF(ISERROR('Input data & costs'!I8),"No data available",'Input data & costs'!I8) -> 14.3 | AA4: =Sources!Q9 -> Langham et al. (2010). | AB4: 1C | AC4: Energy Efficiency | AD4: Residential Energy Efficiency | AE4: Cost effective reduction in electricity consumption through improvements to residential space heating and cooling, insulation and draught sealing, lighting, refrigeration, hot water demand reduction. | AF4: National | AG4: 983.0990183 | AH4: Langham et al. (2010). Based on the peak demand reduction of a variety of energy efficiency measures (moderate scenario). Least cost effective measures were not included in analysis. | AI4: 28.44202964 | AJ4: Langham et al. (2010). (Conservation load factor) | AK4: N/A | AL4: N/A. Uses conservation load factor | AM4: 983.0990183 | AN4: Directly from reference | AO4: 2449.412633 | AP4: GWh/yr = MW capacity * capacity factor * 8760/1000 | AQ4: 0 | AR4: Each unit of energy saved produces zero emissions | AS4: 0.5493919619 | AT4: Langham et al. (2010). Capital costs only (energy efficiency program administration cost not included in analysis) | AU4: 0.08722272104 | AV4: Langham et al. (2010). Program administration cost not included in analysis | AW4: 0 | AX4: Langham et al. (2010). | AY4: 0 | AZ4: ISF estimate. | BA4: 14.3 | BB4: Langham et al. (2010).
A5: ='Input data & costs'!B9 -> 1D | B5: ='Input data & costs'!C9 -> Energy Efficiency | C5: ='Input data & costs'!D9 -> Residential Hot Water | D5: ='Input data & costs'!F9 -> Converting electric domestic hot water systems to electric boosted solar, heat pump and gas. | E5: ='Control Panel'!$D$6 -> National | F5: ='Inbuilt input data'!AI8 -> 151.03 | G5: =Sources!P10 -> Langham et al. (2010). Based on the accelerated scenario. Assumptions: 60% of technical potential is achieved with before-end-of-life-replacement. 33% of capacity is from electric to gas switch. 33% is from solar electric boost replacement and 33% is from heat pump replacement. Summer peak capacity. | H5: =IF(OR(ISERROR('Input data & costs'!$N9),'Input data & costs'!$N9="TBC",'Input data & costs'!$N9="Insert Data",'Input data & costs'!$N9="n/a" ),"N/A",'Input data & costs'!$N9*100) -> 499 | I5: =IF(Sources!V10="","No data available",Sources!V10) -> Langham et al. (2010). (Conservation load factor) | J5: =IF(OR(ISERROR('Input data & costs'!$Q9),'Input data & costs'!$Q9="TBC",'Input data & costs'!$Q9="N/a",'Input data & costs'!$Q9="Insert Data" ),"N/A",'Input data & costs'!$Q9*100) -> N/A | K5: =Sources!W10 -> N/A. Uses conservation load factor | L5: ='Inbuilt input data'!AI8 -> 151.03 | M5: Directly from reference | N5: =IF(ISERROR('Input data & costs'!AG9),"No data available",'Input data & costs'!AG9*1000) -> 6601.883772 | O5: =IF(Sources!AK10="","No data available","GWh/yr = MW capacity * capacity factor * 8760/1000") -> GWh/yr = MW capacity * capacity factor * 8760/1000 | P5: =IF(ISERROR('Input data & costs'!J9),"No data available",'Input data & costs'!J9) -> 0.054 | Q5: =Sources!R10 -> Langham et al. (2010). Additional gross emissions from natural gas per year, divided by total MWh electricity saved per year. | R5: =IF(ISERROR('Input data & costs'!K9),"No data available",'Input data & costs'!K9) -> 68.6 | S5: =IF(Sources!S10="","No data available",Sources!S10) -> ISF estimation. Calculated using weighted average costs of installing solar, heat pump and gas systems in households. Converted to $M/MWp using CFL from Langham et al. (2010). Capital costs only (program administration cost not included in analysis) | T5: =IF(ISERROR('Input data & costs'!L9),"No data available",'Input data & costs'!L9) -> 0 | U5: =IF(Sources!T10="","No data available",Sources!T10) -> Zero fixed costs ( fixed maintenance cost of operating solar, heat pump and gas hot water systems are assumed equivilent to standard electric storage) | V5: =IF(ISERROR('Input data & costs'!M9),"No data available",'Input data & costs'!M9) -> 15.0705 | W5: =IF(Sources!U10="","No data available",Sources!U10) -> Langham et al. (2010). Total cost of additional natural gas consumption divided by the total saved electricity consumption in MWh. Varies with wholesale natural gas price. | X5: =IF(OR(ISERROR('Input data & costs'!$R9),'Input data & costs'!$R9="TBC",'Input data & costs'!$R9="Insert Data" ),"N/A",'Input data & costs'!$R9*100) -> 0 | Y5: =IF(Sources!X10="","No data available",Sources!X10) -> ISF estimate. | Z5: =IF(ISERROR('Input data & costs'!I9),"No data available",'Input data & costs'!I9) -> 15 | AA5: =Sources!Q10 -> Langham et al. (2010). | AB5: 1D | AC5: Energy Efficiency | AD5: Residential Hot Water | AE5: Converting electric domestic hot water systems to electric boosted solar, heat pump and gas. | AF5: National | AG5: 151.03 | AH5: Langham et al. (2010). Based on the accelerated scenario. Assumptions: 60% of technical potential is achieved with before-end-of-life-replacement. 33% of capacity is from electric to gas switch. 33% is from solar electric boost replacement and 33% is from heat pump replacement. Summer peak capacity. | AI5: 499 | AJ5: Langham et al. (2010). (Conservation load factor) | AK5: N/A | AL5: N/A. Uses conservation load factor | AM5: 151.03 | AN5: Directly from reference | AO5: 6601.883772 | AP5: GWh/yr = MW capacity * capacity factor * 8760/1000 | AQ5: 0.054 | AR5: Langham et al. (2010). Additional gross emissions from natural gas per year, divided by total MWh electricity saved per year. | AS5: 68.6 | AT5: ISF estimation. Calculated using weighted average costs of installing solar, heat pump and gas systems in households. Converted to $M/MWp using CFL from Langham et al. (2010). Capital costs only (program administration cost not included in analysis) | AU5: 0 | AV5: Zero fixed costs ( fixed maintenance cost of operating solar, heat pump and gas hot water systems are assumed equivilent to standard electric storage) | AW5: 15.0705 | AX5: Langham et al. (2010). Total cost of additional natural gas consumption divided by the total saved electricity consumption in MWh. Varies with wholesale natural gas price. | AY5: 0 | AZ5: ISF estimate. | BA5: 15 | BB5: Langham et al. (2010).
A6: ='Input data & costs'!B10 -> 2A | B6: ='Input data & costs'!C10 -> Peak Demand Management | C6: ='Input data & costs'!D10 -> Commercial & Industrial Demand Management | D6: ='Input data & costs'!F10 -> Commercial and industrial customers are provided incentives at times of peak demand to shed or interrupt their load or shift their load to times of lesser demand. | E6: ='Control Panel'!$D$6 -> National | F6: ='Inbuilt input data'!AI9 -> 2047 | G6: =Sources!P11 -> NSW figure provided by Ross Fraser, Energy Response (2009). Pers. Comm. Additional capacity estimate in 2020. Conservative estimate. Scaled to states and nation using GSP (ABS Cat no. 5220.0). | H6: =IF(OR(ISERROR('Input data & costs'!$N10),'Input data & costs'!$N10="TBC",'Input data & costs'!$N10="Insert Data",'Input data & costs'!$N10="n/a" ),"N/A",'Input data & costs'!$N10*100) -> 0.3424657534 | I6: =IF(Sources!V11="","No data available",Sources!V11) -> Ross Fraser, Energy Response (2009). Pers. Comm. Based on 30 hours peak demand shifting per year. | J6: =IF(OR(ISERROR('Input data & costs'!$Q10),'Input data & costs'!$Q10="TBC",'Input data & costs'!$Q10="N/a",'Input data & costs'!$Q10="Insert Data" ),"N/A",'Input data & costs'!$Q10*100) -> 95 | K6: =Sources!W11 -> ISF estimate. Assumes reliable peak operation | L6: =IF(AND(ISNUMBER('Inbuilt input data'!AI9),ISNUMBER('Inbuilt input data'!V9)),'Inbuilt input data'!AI9*'Inbuilt input data'!V9,"No data available") -> 1944.65 | M6: MWp = MW capacity * Firm peak rating | N6: =IF(ISERROR('Input data & costs'!AG10),"No data available",'Input data & costs'!AG10*1000) -> 61.41 | O6: =IF(Sources!AK11="","No data available","GWh/yr = MW capacity * capacity factor * 8760/1000") -> GWh/yr = MW capacity * capacity factor * 8760/1000 | P6: =IF(ISERROR('Input data & costs'!J10),"No data available",'Input data & costs'!J10) -> 0 | Q6: =Sources!R11 -> Each unit of energy saved produces zero emissions | R6: =IF(ISERROR('Input data & costs'!K10),"No data available",'Input data & costs'!K10) -> 0.05 | S6: =IF(Sources!S11="","No data available",Sources!S11) -> Ross Fraser (2009). Pers. Comm | T6: =IF(ISERROR('Input data & costs'!L10),"No data available",'Input data & costs'!L10) -> 0 | U6: =IF(Sources!T11="","No data available",Sources!T11) -> Data not available. | V6: =IF(ISERROR('Input data & costs'!M10),"No data available",'Input data & costs'!M10) -> 1000 | W6: =IF(Sources!U11="","No data available",Sources!U11) -> Ross Fraser (2009). Pers. Comm. Relatively high variable cost (because it is necessary to pay the DSR providers sufficient to turn off power if required). The Variable costs generally consists of a lowish ongoing flat rate for availability and a short term high rate for dispatch. | X6: =IF(OR(ISERROR('Input data & costs'!$R10),'Input data & costs'!$R10="TBC",'Input data & costs'!$R10="Insert Data" ),"N/A",'Input data & costs'!$R10*100) -> 5 | Y6: =IF(Sources!X11="","No data available",Sources!X11) -> ISF estimate. | Z6: =IF(ISERROR('Input data & costs'!I10),"No data available",'Input data & costs'!I10) -> 15 | AA6: =Sources!Q11 -> No set time period - program is ongoing. Arbitrary figure of 10 years is used | AB6: 2A | AC6: Peak Demand Management | AD6: Commercial & Industrial Demand Management | AE6: Commercial and industrial customers are provided incentives at times of peak demand to shed or interrupt their load or shift their load to times of lesser demand. | AF6: National | AG6: 2047 | AH6: NSW figure provided by Ross Fraser, Energy Response (2009). Pers. Comm. Additional capacity estimate in 2020. Conservative estimate. Scaled to states and nation using GSP (ABS Cat no. 5220.0). | AI6: 0.3424657534 | AJ6: Ross Fraser, Energy Response (2009). Pers. Comm. Based on 30 hours peak demand shifting per year. | AK6: 95 | AL6: ISF estimate. Assumes reliable peak operation | AM6: 1944.65 | AN6: MWp = MW capacity * Firm peak rating | AO6: 61.41 | AP6: GWh/yr = MW capacity * capacity factor * 8760/1000 | AQ6: 0 | AR6: Each unit of energy saved produces zero emissions | AS6: 0.05 | AT6: Ross Fraser (2009). Pers. Comm | AU6: 0 | AV6: Data not available. | AW6: 1000 | AX6: Ross Fraser (2009). Pers. Comm. Relatively high variable cost (because it is necessary to pay the DSR providers sufficient to turn off power if required). The Variable costs generally consists of a lowish ongoing flat rate for availability and a short term high rate for dispatch. | AY6: 5 | AZ6: ISF estimate. | BA6: 15 | BB6: No set time period - program is ongoing. Arbitrary figure of 10 years is used
A7: ='Input data & costs'!B11 -> 2B | B7: ='Input data & costs'!C11 -> Peak Demand Management | C7: ='Input data & costs'!D11 -> Residential Demand Management | D7: ='Input data & costs'!F11 -> Residential customers are provided with information and/or incentives to shed or interrupt their load peak demand or shift their load times of lesser demand. Achieved through widespread dynamic time of use pricing (as opposed to static TOU pricing), combined with moderate adoption of programmable communicable thermostats (PCT). | E7: ='Control Panel'!$D$6 -> National | F7: ='Inbuilt input data'!AI10 -> 2981 | G7: =Sources!P12 -> Federal Energy Regulatory Commission (2009). Residential MWp Modelled peak load reduction in California by 2020, scaled to Australia by GDP. Converted from MWp to MW using FPR of 95%. | H7: =IF(OR(ISERROR('Input data & costs'!$N11),'Input data & costs'!$N11="TBC",'Input data & costs'!$N11="Insert Data",'Input data & costs'!$N11="n/a" ),"N/A",'Input data & costs'!$N11*100) -> 3 | I7: =IF(Sources!V12="","No data available",Sources!V12) -> Oakley Greenwood (2010). Calculated from PV benefit figures in Appendix C. Calculated using energy cost savings from TOU and CPP metering (benefit #31 and 32) | J7: =IF(OR(ISERROR('Input data & costs'!$Q11),'Input data & costs'!$Q11="TBC",'Input data & costs'!$Q11="N/a",'Input data & costs'!$Q11="Insert Data" ),"N/A",'Input data & costs'!$Q11*100) -> 95 | K7: =Sources!W12 -> ISF estimate. | L7: =IF(AND(ISNUMBER('Inbuilt input data'!AI10),ISNUMBER('Inbuilt input data'!V10)),'Inbuilt input data'!AI10*'Inbuilt input data'!V10,"No data available") -> 2831.95 | M7: MWp = MW capacity * Firm peak rating | N7: =IF(ISERROR('Input data & costs'!AG11),"No data available",'Input data & costs'!AG11*1000) -> 783.4068 | O7: =IF(Sources!AK12="","No data available","GWh/yr = MW capacity * capacity factor * 8760/1000") -> GWh/yr = MW capacity * capacity factor * 8760/1000 | P7: =IF(ISERROR('Input data & costs'!J11),"No data available",'Input data & costs'!J11) -> 0 | Q7: =Sources!R12 -> Each unit of energy saved produces zero emissions | R7: =IF(ISERROR('Input data & costs'!K11),"No data available",'Input data & costs'!K11) -> 2.74 | S7: =IF(Sources!S12="","No data available",Sources!S12) -> Oakley Greenwood (2010). Upfront capital and logistical costs of rolling out smart meter program. | T7: =IF(ISERROR('Input data & costs'!L11),"No data available",'Input data & costs'!L11) -> 0.024 | U7: =IF(Sources!T12="","No data available",Sources!T12) -> Oakley Greenwood (2010). Includes the maintenance cost of replacing meters (15 year lifespan) and operating communications technology | V7: =IF(ISERROR('Input data & costs'!M11),"No data available",'Input data & costs'!M11) -> 0 | W7: =IF(Sources!U12="","No data available",Sources!U12) -> Assumes zero per unit costs of energy reduction | X7: =IF(OR(ISERROR('Input data & costs'!$R11),'Input data & costs'!$R11="TBC",'Input data & costs'!$R11="Insert Data" ),"N/A",'Input data & costs'!$R11*100) -> 5 | Y7: =IF(Sources!X12="","No data available",Sources!X12) -> ISF estimate. | Z7: =IF(ISERROR('Input data & costs'!I11),"No data available",'Input data & costs'!I11) -> 20 | AA7: =Sources!Q12 -> Oakley Greenwood (2010). Based on the Victorian AMI Program’s lifecycle | AB7: 2B | AC7: Peak Demand Management | AD7: Residential Demand Management | AE7: Residential customers are provided with information and/or incentives to shed or interrupt their load peak demand or shift their load times of lesser demand. Achieved through widespread dynamic time of use pricing (as opposed to static TOU pricing), combined with moderate adoption of programmable communicable thermostats (PCT). | AF7: National | AG7: 2981 | AH7: Federal Energy Regulatory Commission (2009). Residential MWp Modelled peak load reduction in California by 2020, scaled to Australia by GDP. Converted from MWp to MW using FPR of 95%. | AI7: 3 | AJ7: Oakley Greenwood (2010). Calculated from PV benefit figures in Appendix C. Calculated using energy cost savings from TOU and CPP metering (benefit #31 and 32) | AK7: 95 | AL7: ISF estimate. | AM7: 2831.95 | AN7: MWp = MW capacity * Firm peak rating | AO7: 783.4068 | AP7: GWh/yr = MW capacity * capacity factor * 8760/1000 | AQ7: 0 | AR7: Each unit of energy saved produces zero emissions | AS7: 2.74 | AT7: Oakley Greenwood (2010). Upfront capital and logistical costs of rolling out smart meter program. | AU7: 0.024 | AV7: Oakley Greenwood (2010). Includes the maintenance cost of replacing meters (15 year lifespan) and operating communications technology | AW7: 0 | AX7: Assumes zero per unit costs of energy reduction | AY7: 5 | AZ7: ISF estimate. | BA7: 20 | BB7: Oakley Greenwood (2010). Based on the Victorian AMI Program’s lifecycle
A8: ='Input data & costs'!B12 -> 2C | B8: ='Input data & costs'!C12 -> Peak Demand Management | C8: ='Input data & costs'!D12 -> Commercial & Industrial Standby Generation | D8: ='Input data & costs'!F12 -> Commercial and industrial customers are provided incentives to turn on their standby generators during demand peaks. | E8: ='Control Panel'!$D$6 -> National | F8: ='Inbuilt input data'!AI11 -> 953 | G8: =Sources!P13 -> NSW estimates from Demand Management and Planning project (2008) final report and DEUS (2005). NSW estimates from studies: [278MVA (Energy Australia) + 42MVA (Integral) + 6MVA (Country) converted to MW using power factor of 1]. Scaled to states using GSP (ABS Cat no. 5220.0) | H8: =IF(OR(ISERROR('Input data & costs'!$N12),'Input data & costs'!$N12="TBC",'Input data & costs'!$N12="Insert Data",'Input data & costs'!$N12="n/a" ),"N/A",'Input data & costs'!$N12*100) -> 1 | I8: =IF(Sources!V13="","No data available",Sources!V13) -> Demand Management and Planning Project (2008). Assumes operation in extreme peak events. | J8: =IF(OR(ISERROR('Input data & costs'!$Q12),'Input data & costs'!$Q12="TBC",'Input data & costs'!$Q12="N/a",'Input data & costs'!$Q12="Insert Data" ),"N/A",'Input data & costs'!$Q12*100) -> 95 | K8: =Sources!W13 -> ISF estimate. Assumes reliable peak operation | L8: =IF(AND(ISNUMBER('Inbuilt input data'!AI11),ISNUMBER('Inbuilt input data'!V11)),'Inbuilt input data'!AI11*'Inbuilt input data'!V11,"No data available") -> 905.35 | M8: MWp = MW capacity * Firm peak rating | N8: =IF(ISERROR('Input data & costs'!AG12),"No data available",'Input data & costs'!AG12*1000) -> 83.4828 | O8: =IF(Sources!AK13="","No data available","GWh/yr = MW capacity * capacity factor * 8760/1000") -> GWh/yr = MW capacity * capacity factor * 8760/1000 | P8: =IF(ISERROR('Input data & costs'!J12),"No data available",'Input data & costs'!J12) -> 0.7148571429 | Q8: =Sources!R13 -> Diesel fuel emissions of 69.5kg CO2e/GJ from DCCEE (2010). Conversion assumes plant efficiency of 35%. Calculation: 69.5*3.6/0.35/1000 | R8: =IF(ISERROR('Input data & costs'!K12),"No data available",'Input data & costs'!K12) -> 0.29 | S8: =IF(Sources!S13="","No data available",Sources!S13) -> Demand Management and Planning Project (2008). Based on average price of $278/Kva with power factor = 1, inflation adjusted. Includes capital, project management and network connection costs. | T8: =IF(ISERROR('Input data & costs'!L12),"No data available",'Input data & costs'!L12) -> 0 | U8: =IF(Sources!T13="","No data available",Sources!T13) -> Fixed O&M data not available. Note: Maintenance cost included in VOM costs. | V8: =IF(ISERROR('Input data & costs'!M12),"No data available",'Input data & costs'!M12) -> 339.85 | W8: =IF(Sources!U13="","No data available",Sources!U13) -> $322.2/MWh of fuel consumption, from http://www.dieselserviceandsupply.com/Diesel_Fuel_Consumption.aspx, converted from gallons to litres assuming diesel price is $1.20/L. Includes engine maintenance of $17.65/Mwh (Andrews 2007), converted to AUD, inflation adjusted. Assuming plant efficiency of 35%. | X8: =IF(OR(ISERROR('Input data & costs'!$R12),'Input data & costs'!$R12="TBC",'Input data & costs'!$R12="Insert Data" ),"N/A",'Input data & costs'!$R12*100) -> 5 | Y8: =IF(Sources!X13="","No data available",Sources!X13) -> ISF estimate. | Z8: =IF(ISERROR('Input data & costs'!I12),"No data available",'Input data & costs'!I12) -> 15 | AA8: =Sources!Q13 -> SEDA (2002) | AB8: 2C | AC8: Peak Demand Management | AD8: Commercial & Industrial Standby Generation | AE8: Commercial and industrial customers are provided incentives to turn on their standby generators during demand peaks. | AF8: National | AG8: 953 | AH8: NSW estimates from Demand Management and Planning project (2008) final report and DEUS (2005). NSW estimates from studies: [278MVA (Energy Australia) + 42MVA (Integral) + 6MVA (Country) converted to MW using power factor of 1]. Scaled to states using GSP (ABS Cat no. 5220.0) | AI8: 1 | AJ8: Demand Management and Planning Project (2008). Assumes operation in extreme peak events. | AK8: 95 | AL8: ISF estimate. Assumes reliable peak operation | AM8: 905.35 | AN8: MWp = MW capacity * Firm peak rating | AO8: 83.4828 | AP8: GWh/yr = MW capacity * capacity factor * 8760/1000 | AQ8: 0.7148571429 | AR8: Diesel fuel emissions of 69.5kg CO2e/GJ from DCCEE (2010). Conversion assumes plant efficiency of 35%. Calculation: 69.5*3.6/0.35/1000 | AS8: 0.29 | AT8: Demand Management and Planning Project (2008). Based on average price of $278/Kva with power factor = 1, inflation adjusted. Includes capital, project management and network connection costs. | AU8: 0 | AV8: Fixed O&M data not available. Note: Maintenance cost included in VOM costs. | AW8: 339.85 | AX8: $322.2/MWh of fuel consumption, from http://www.dieselserviceandsupply.com/Diesel_Fuel_Consumption.aspx, converted from gallons to litres assuming diesel price is $1.20/L. Includes engine maintenance of $17.65/Mwh (Andrews 2007), converted to AUD, inflation adjusted. Assuming plant efficiency of 35%. | AY8: 5 | AZ8: ISF estimate. | BA8: 15 | BB8: SEDA (2002)
A9: ='Input data & costs'!B13 -> 3A | B9: ='Input data & costs'!C13 -> Cogeneration (and Trigeneration) | C9: ='Input data & costs'!D13 -> Industrial Cogeneration | D9: ='Input data & costs'!F13 -> Gas turbine at an industrial facility, where in addition to using the electricity generated, the useful heat is used for industrial heating loads. | E9: ='Control Panel'!$D$6 -> National | F9: ='Inbuilt input data'!AI12 -> 2483 | G9: =Sources!P14 -> Sum of data from individual states. NSW: City of Sydney (2010); VIC: Sustainability Victoria (2010); QLD: Queensland Office of Climate Change (2009), SA: WA extrapolation based on GSP; TAS: MMA (2009); WA: Nous Group and SKM (2008); NT: ISF estimate. | H9: =IF(OR(ISERROR('Input data & costs'!$N13),'Input data & costs'!$N13="TBC",'Input data & costs'!$N13="Insert Data",'Input data & costs'!$N13="n/a" ),"N/A",'Input data & costs'!$N13*100) -> 70 | I9: =IF(Sources!V14="","No data available",Sources!V14) -> MMA (2008). Table 2.1 | J9: =IF(OR(ISERROR('Input data & costs'!$Q13),'Input data & costs'!$Q13="TBC",'Input data & costs'!$Q13="N/a",'Input data & costs'!$Q13="Insert Data" ),"N/A",'Input data & costs'!$Q13*100) -> 95 | K9: =Sources!W14 -> ISF estimate. Assumes reliable peak operation | L9: =IF(AND(ISNUMBER('Inbuilt input data'!AI12),ISNUMBER('Inbuilt input data'!V12)),'Inbuilt input data'!AI12*'Inbuilt input data'!V12,"No data available") -> 2358.85 | M9: MWp = MW capacity * Firm peak rating | N9: =IF(ISERROR('Input data & costs'!AG13),"No data available",'Input data & costs'!AG13*1000) -> 15225.756 | O9: =IF(Sources!AK14="","No data available","GWh/yr = MW capacity * capacity factor * 8760/1000") -> GWh/yr = MW capacity * capacity factor * 8760/1000 | P9: =IF(ISERROR('Input data & costs'!#REF!),"No data available",'Input data & costs'!#REF!) -> No data available | Q9: =Sources!R14 -> Natural gas emissions of 51.6kg CO2e/GJ from DCCEE (2010). Conversion D-CODE effective efficiency of 81%. Calculation: 51.6*3.6/0.81/1000 | R9: =IF(ISERROR('Input data & costs'!K13),"No data available",'Input data & costs'!K13) -> 1.553 | S9: =IF(Sources!S14="","No data available",Sources!S14) -> MMA (2008). Table 2.1 | T9: =IF(ISERROR('Input data & costs'!L13),"No data available",'Input data & costs'!L13) -> 0.02 | U9: =IF(Sources!T14="","No data available",Sources!T14) -> MMA (2008). Table 2.1 | V9: =IF(ISERROR('Input data & costs'!M13),"No data available",'Input data & costs'!M13) -> 34.07274969 | W9: =IF(Sources!U14="","No data available",Sources!U14) -> Variable cost from MMA (2008) Table 2.1. Fuel cost assumed a gas cost specified in "Control Panel". Assume cogeneration has a total efficiency of 30% | X9: =IF(OR(ISERROR('Input data & costs'!$R13),'Input data & costs'!$R13="TBC",'Input data & costs'!$R13="Insert Data" ),"N/A",'Input data & costs'!$R13*100) -> 25 | Y9: =IF(Sources!X14="","No data available",Sources!X14) -> ISF estimate. | Z9: =IF(ISERROR('Input data & costs'!I13),"No data available",'Input data & costs'!I13) -> 30 | AA9: =Sources!Q14 -> MMA (2008). Table 2.1 | AB9: 3A | AC9: Cogeneration (and Trigeneration) | AD9: Industrial Cogeneration | AE9: Gas turbine at an industrial facility, where in addition to using the electricity generated, the useful heat is used for industrial heating loads. | AF9: National | AG9: 2483 | AH9: Sum of data from individual states. NSW: City of Sydney (2010); VIC: Sustainability Victoria (2010); QLD: Queensland Office of Climate Change (2009), SA: WA extrapolation based on GSP; TAS: MMA (2009); WA: Nous Group and SKM (2008); NT: ISF estimate. | AI9: 70 | AJ9: MMA (2008). Table 2.1 | AK9: 95 | AL9: ISF estimate. Assumes reliable peak operation | AM9: 2358.85 | AN9: MWp = MW capacity * Firm peak rating | AO9: 15225.756 | AP9: GWh/yr = MW capacity * capacity factor * 8760/1000 | AQ9: No data available | AR9: Natural gas emissions of 51.6kg CO2e/GJ from DCCEE (2010). Conversion D-CODE effective efficiency of 81%. Calculation: 51.6*3.6/0.81/1000 | AS9: 1.553 | AT9: MMA (2008). Table 2.1 | AU9: 0.02 | AV9: MMA (2008). Table 2.1 | AW9: 34.07274969 | AX9: Variable cost from MMA (2008) Table 2.1. Fuel cost assumed a gas cost specified in "Control Panel". Assume cogeneration has a total efficiency of 30% | AY9: 25 | AZ9: ISF estimate. | BA9: 30 | BB9: MMA (2008). Table 2.1
A10: ='Input data & costs'!B14 -> 3B | B10: ='Input data & costs'!C14 -> Cogeneration (and Trigeneration) | C10: ='Input data & costs'!D14 -> Commercial Trigeneration | D10: ='Input data & costs'!F14 -> Gas turbine at a commercial site, where in addition to using the electricity generated, the useful heat is used for heating loads. D-CODE data includes the electricity generation component and the demand reduction component. | E10: ='Control Panel'!$D$6 -> National | F10: ='Inbuilt input data'!AI13 -> 1343 | G10: =Sources!P15 -> Sum of data from individual states. NSW: City of Sydney (2010); VIC: Sustainability Victoria (2010); QLD: Queensland Office of Climate Change (2009), SA: WA extrapolation based on GSP; TAS: MMA (2009); WA: Nous Group and SKM (2008); NT: ISF estimate. Scaled up to include demand reduction by multiplying by 1.174 (ISF calculations based on average demand reduction component - See Data Compendium document for more information). | H10: =IF(OR(ISERROR('Input data & costs'!$N14),'Input data & costs'!$N14="TBC",'Input data & costs'!$N14="Insert Data",'Input data & costs'!$N14="n/a" ),"N/A",'Input data & costs'!$N14*100) -> 44 | I10: =IF(Sources!V15="","No data available",Sources!V15) -> ISF estimate based on market research | J10: =IF(OR(ISERROR('Input data & costs'!$Q14),'Input data & costs'!$Q14="TBC",'Input data & costs'!$Q14="N/a",'Input data & costs'!$Q14="Insert Data" ),"N/A",'Input data & costs'!$Q14*100) -> 95 | K10: =Sources!W15 -> ISF estimate. Assumes reliable peak operation | L10: =IF(AND(ISNUMBER('Inbuilt input data'!AI13),ISNUMBER('Inbuilt input data'!V13)),'Inbuilt input data'!AI13*'Inbuilt input data'!V13,"No data available") -> 1275.85 | M10: MWp = MW capacity * Firm peak rating | N10: =IF(ISERROR('Input data & costs'!AG14),"No data available",'Input data & costs'!AG14*1000) -> 5176.4592 | O10: =IF(Sources!AK15="","No data available","GWh/yr = MW capacity * capacity factor * 8760/1000") -> GWh/yr = MW capacity * capacity factor * 8760/1000 | P10: =IF(ISERROR('Input data & costs'!J14),"No data available",'Input data & costs'!J14) -> 0.3258947368 | Q10: =Sources!R15 -> Natural gas emissions of 51.6kg CO2e/GJ from DCCEE (2010). Conversion using D-CODE effective efficiency of 81%. Calculation: 51.6*3.6/0.81/1000 | R10: =IF(ISERROR('Input data & costs'!K14),"No data available",'Input data & costs'!K14) -> 2.3 | S10: =IF(Sources!S15="","No data available",Sources!S15) -> ISF estimate based on market research | T10: =IF(ISERROR('Input data & costs'!L14),"No data available",'Input data & costs'!L14) -> 0 | U10: =IF(Sources!T15="","No data available",Sources!T15) -> ISF estimate based on market research | V10: =IF(ISERROR('Input data & costs'!M14),"No data available",'Input data & costs'!M14) -> 69.84210526 | W10: =IF(Sources!U15="","No data available",Sources!U15) -> ISF estimate based on market research | X10: =IF(OR(ISERROR('Input data & costs'!$R14),'Input data & costs'!$R14="TBC",'Input data & costs'!$R14="Insert Data" ),"N/A",'Input data & costs'!$R14*100) -> 25 | Y10: =IF(Sources!X15="","No data available",Sources!X15) -> ISF estimate. | Z10: =IF(ISERROR('Input data & costs'!I14),"No data available",'Input data & costs'!I14) -> 20 | AA10: =Sources!Q15 -> MMA (2008). Table 2.1 | AB10: 3B | AC10: Cogeneration (and Trigeneration) | AD10: Commercial Trigeneration | AE10: Gas turbine at a commercial site, where in addition to using the electricity generated, the useful heat is used for heating loads. D-CODE data includes the electricity generation component and the demand reduction component. | AF10: National | AG10: 1343 | AH10: Sum of data from individual states. NSW: City of Sydney (2010); VIC: Sustainability Victoria (2010); QLD: Queensland Office of Climate Change (2009), SA: WA extrapolation based on GSP; TAS: MMA (2009); WA: Nous Group and SKM (2008); NT: ISF estimate. Scaled up to include demand reduction by multiplying by 1.174 (ISF calculations based on average demand reduction component - See Data Compendium document for more information). | AI10: 44 | AJ10: ISF estimate based on market research | AK10: 95 | AL10: ISF estimate. Assumes reliable peak operation | AM10: 1275.85 | AN10: MWp = MW capacity * Firm peak rating | AO10: 5176.4592 | AP10: GWh/yr = MW capacity * capacity factor * 8760/1000 | AQ10: 0.3258947368 | AR10: Natural gas emissions of 51.6kg CO2e/GJ from DCCEE (2010). Conversion using D-CODE effective efficiency of 81%. Calculation: 51.6*3.6/0.81/1000 | AS10: 2.3 | AT10: ISF estimate based on market research | AU10: 0 | AV10: ISF estimate based on market research | AW10: 69.84210526 | AX10: ISF estimate based on market research | AY10: 25 | AZ10: ISF estimate. | BA10: 20 | BB10: MMA (2008). Table 2.1
A11: ='Input data & costs'!B15 -> 3C | B11: ='Input data & costs'!C15 -> Cogeneration (and Trigeneration) | C11: ='Input data & costs'!D15 -> Residential Cogeneration | D11: ='Input data & costs'!F15 -> Gas turbine in a residential area, where in addition to using the electricity generated, the useful heat is used for heating loads. D-CODE data includes the electricity generation component and the demand reduction component. | E11: ='Control Panel'!$D$6 -> National | F11: ='Inbuilt input data'!AI14 -> 612 | G11: =Sources!P16 -> ISF estimate of MWe generation potential based on climate and population. Scaled up to include demand reduction by multiplying by 1.224 (ISF calculations). | H11: =IF(OR(ISERROR('Input data & costs'!$N15),'Input data & costs'!$N15="TBC",'Input data & costs'!$N15="Insert Data",'Input data & costs'!$N15="n/a" ),"N/A",'Input data & costs'!$N15*100) -> 41.6 | I11: =IF(Sources!V16="","No data available",Sources!V16) -> Invenergy (2006). Based on 10hrs operation per day. | J11: =IF(OR(ISERROR('Input data & costs'!$Q15),'Input data & costs'!$Q15="TBC",'Input data & costs'!$Q15="N/a",'Input data & costs'!$Q15="Insert Data" ),"N/A",'Input data & costs'!$Q15*100) -> 95 | K11: =Sources!W16 -> ISF estimate. Assumes reliable peak operation | L11: =IF(AND(ISNUMBER('Inbuilt input data'!AI14),ISNUMBER('Inbuilt input data'!V14)),'Inbuilt input data'!AI14*'Inbuilt input data'!V14,"No data available") -> 581.4 | M11: MWp = MW capacity * Firm peak rating | N11: =IF(ISERROR('Input data & costs'!AG15),"No data available",'Input data & costs'!AG15*1000) -> 2230.22592 | O11: =IF(Sources!AK16="","No data available","GWh/yr = MW capacity * capacity factor * 8760/1000") -> GWh/yr = MW capacity * capacity factor * 8760/1000 | P11: =IF(ISERROR('Input data & costs'!J15),"No data available",'Input data & costs'!J15) -> 0.2836030534 | Q11: =Sources!R16 -> Natural gas emissions of 51.6kg CO2e/GJ from DCCEE (2010). Conversion using D-CODE effective efficiency of 65.55%. Calculation: 51.6*3.6/0.6555/1000 | R11: =IF(ISERROR('Input data & costs'!K15),"No data available",'Input data & costs'!K15) -> 3.97 | S11: =IF(Sources!S16="","No data available",Sources!S16) -> Invenergy (2006). Halfway between upper and lower cost bounds. Includes 50% of captured waste heat in calculations, which is the proportion assumed to displace electric space/hot water heating. Includes 45% additional costs for installation and project management. | T11: =IF(ISERROR('Input data & costs'!L15),"No data available",'Input data & costs'!L15) -> 0.06 | U11: =IF(Sources!T16="","No data available",Sources!T16) -> Invenergy (2006). Based on maintenance costs of 30KWe plant + 50% of 49KWt (captured waste heat) in calculations. Based on $2000/y figure. Includes variable non-fuel operating cost | V11: =IF(ISERROR('Input data & costs'!M15),"No data available",'Input data & costs'!M15) -> 93.36384439 | W11: =IF(Sources!U16="","No data available",Sources!U16) -> Invenergy (2006). Fuel costs only. Based on electrical conversion efficiency of 30% + half of heat captured is used to displace electric space/hot water heating. Total system efficiency = 79%. Amount of power used to generate or offset electricity = 54.5%. Variable non-fuel operation costs included in fixed O&M costs. | X11: =IF(OR(ISERROR('Input data & costs'!$R15),'Input data & costs'!$R15="TBC",'Input data & costs'!$R15="Insert Data" ),"N/A",'Input data & costs'!$R15*100) -> 25 | Y11: =IF(Sources!X16="","No data available",Sources!X16) -> ISF estimate. | Z11: =IF(ISERROR('Input data & costs'!I15),"No data available",'Input data & costs'!I15) -> 25 | AA11: =Sources!Q16 -> MMA (2008). Table 2.1 | AB11: 3C | AC11: Cogeneration (and Trigeneration) | AD11: Residential Cogeneration | AE11: Gas turbine in a residential area, where in addition to using the electricity generated, the useful heat is used for heating loads. D-CODE data includes the electricity generation component and the demand reduction component. | AF11: National | AG11: 612 | AH11: ISF estimate of MWe generation potential based on climate and population. Scaled up to include demand reduction by multiplying by 1.224 (ISF calculations). | AI11: 41.6 | AJ11: Invenergy (2006). Based on 10hrs operation per day. | AK11: 95 | AL11: ISF estimate. Assumes reliable peak operation | AM11: 581.4 | AN11: MWp = MW capacity * Firm peak rating | AO11: 2230.22592 | AP11: GWh/yr = MW capacity * capacity factor * 8760/1000 | AQ11: 0.2836030534 | AR11: Natural gas emissions of 51.6kg CO2e/GJ from DCCEE (2010). Conversion using D-CODE effective efficiency of 65.55%. Calculation: 51.6*3.6/0.6555/1000 | AS11: 3.97 | AT11: Invenergy (2006). Halfway between upper and lower cost bounds. Includes 50% of captured waste heat in calculations, which is the proportion assumed to displace electric space/hot water heating. Includes 45% additional costs for installation and project management. | AU11: 0.06 | AV11: Invenergy (2006). Based on maintenance costs of 30KWe plant + 50% of 49KWt (captured waste heat) in calculations. Based on $2000/y figure. Includes variable non-fuel operating cost | AW11: 93.36384439 | AX11: Invenergy (2006). Fuel costs only. Based on electrical conversion efficiency of 30% + half of heat captured is used to displace electric space/hot water heating. Total system efficiency = 79%. Amount of power used to generate or offset electricity = 54.5%. Variable non-fuel operation costs included in fixed O&M costs. | AY11: 25 | AZ11: ISF estimate. | BA11: 25 | BB11: MMA (2008). Table 2.1
A12: ='Input data & costs'!B16 -> 4A | B12: ='Input data & costs'!C16 -> Bioenergy | C12: ='Input data & costs'!D16 -> Refuse Derived Fuel (RDF) to energy | D12: ='Input data & costs'!F16 -> Electricity generated from non-recyclable wood waste, paper and plastic | E12: ='Control Panel'!$D$6 -> National | F12: ='Inbuilt input data'!AI15 -> 587 | G12: =Sources!P17 -> ISF estimate based on the estimated 20 million tonnes of non-recyclable waste per year, of which paper (19%), wood (8%) and plastics (9%) could be utilised for energy generation. Based on rollout of 40% of potential. | H12: =IF(OR(ISERROR('Input data & costs'!$N16),'Input data & costs'!$N16="TBC",'Input data & costs'!$N16="Insert Data",'Input data & costs'!$N16="n/a" ),"N/A",'Input data & costs'!$N16*100) -> 86 | I12: =IF(Sources!V17="","No data available",Sources!V17) -> Clean Energy Council (2009) | J12: =IF(OR(ISERROR('Input data & costs'!$Q16),'Input data & costs'!$Q16="TBC",'Input data & costs'!$Q16="N/a",'Input data & costs'!$Q16="Insert Data" ),"N/A",'Input data & costs'!$Q16*100) -> 95 | K12: =Sources!W17 -> ISF estimate. Assumes reliable peak operation | L12: =IF(AND(ISNUMBER('Inbuilt input data'!AI15),ISNUMBER('Inbuilt input data'!V15)),'Inbuilt input data'!AI15*'Inbuilt input data'!V15,"No data available") -> 557.65 | M12: MWp = MW capacity * Firm peak rating | N12: =IF(ISERROR('Input data & costs'!AG16),"No data available",'Input data & costs'!AG16*1000) -> 4422.2232 | O12: =IF(Sources!AK17="","No data available","GWh/yr = MW capacity * capacity factor * 8760/1000") -> GWh/yr = MW capacity * capacity factor * 8760/1000 | P12: =IF(ISERROR('Input data & costs'!J16),"No data available",'Input data & costs'!J16) -> 0.024 | Q12: =Sources!R17 -> Biomass municipal and industrial materials (if recycled and combusted to produce heat or electricity) emissions of 1.8kg CO2e/GJ from DCCEE (2010). Conversion assumes plant efficiency of 27%. Calculation: 1.8*3.6/0.27/1000 | R12: =IF(ISERROR('Input data & costs'!K16),"No data available",'Input data & costs'!K16) -> 4.5 | S12: =IF(Sources!S17="","No data available",Sources!S17) -> ISF estimate based on market research | T12: =IF(ISERROR('Input data & costs'!L16),"No data available",'Input data & costs'!L16) -> 0.04 | U12: =IF(Sources!T17="","No data available",Sources!T17) -> ISF estimate based on market research | V12: =IF(ISERROR('Input data & costs'!M16),"No data available",'Input data & costs'!M16) -> 35 | W12: =IF(Sources!U17="","No data available",Sources!U17) -> ISF estimate based on market research | X12: =IF(OR(ISERROR('Input data & costs'!$R16),'Input data & costs'!$R16="TBC",'Input data & costs'!$R16="Insert Data" ),"N/A",'Input data & costs'!$R16*100) -> 20 | Y12: =IF(Sources!X17="","No data available",Sources!X17) -> ISF estimate. | Z12: =IF(ISERROR('Input data & costs'!I16),"No data available",'Input data & costs'!I16) -> 30 | AA12: =Sources!Q17 -> MMA (2008). Table 2.1 | AB12: 4A | AC12: Bioenergy | AD12: Refuse Derived Fuel (RDF) to energy | AE12: Electricity generated from non-recyclable wood waste, paper and plastic | AF12: National | AG12: 587 | AH12: ISF estimate based on the estimated 20 million tonnes of non-recyclable waste per year, of which paper (19%), wood (8%) and plastics (9%) could be utilised for energy generation. Based on rollout of 40% of potential. | AI12: 86 | AJ12: Clean Energy Council (2009) | AK12: 95 | AL12: ISF estimate. Assumes reliable peak operation | AM12: 557.65 | AN12: MWp = MW capacity * Firm peak rating | AO12: 4422.2232 | AP12: GWh/yr = MW capacity * capacity factor * 8760/1000 | AQ12: 0.024 | AR12: Biomass municipal and industrial materials (if recycled and combusted to produce heat or electricity) emissions of 1.8kg CO2e/GJ from DCCEE (2010). Conversion assumes plant efficiency of 27%. Calculation: 1.8*3.6/0.27/1000 | AS12: 4.5 | AT12: ISF estimate based on market research | AU12: 0.04 | AV12: ISF estimate based on market research | AW12: 35 | AX12: ISF estimate based on market research | AY12: 20 | AZ12: ISF estimate. | BA12: 30 | BB12: MMA (2008). Table 2.1
A13: ='Input data & costs'!B17 -> 4B | B13: ='Input data & costs'!C17 -> Bioenergy | C13: ='Input data & costs'!D17 -> Agricultural Biogas | D13: ='Input data & costs'!F17 -> Electricity generated by burning biogas which is produced from agricultural sources, such as digesting livestock waste. | E13: ='Control Panel'!$D$6 -> National | F13: ='Inbuilt input data'!AI16 -> 106 | G13: =Sources!P18 -> Clean Energy Council (2009). Anaerobic digestion/recipricaing gas engine, direct combustion and pyrolysis techniques for poultry, cattle, pigs, dairy cattle; abattoirs) | H13: =IF(OR(ISERROR('Input data & costs'!$N17),'Input data & costs'!$N17="TBC",'Input data & costs'!$N17="Insert Data",'Input data & costs'!$N17="n/a" ),"N/A",'Input data & costs'!$N17*100) -> 85 | I13: =IF(Sources!V18="","No data available",Sources!V18) -> Clean Energy Council (2009) | J13: =IF(OR(ISERROR('Input data & costs'!$Q17),'Input data & costs'!$Q17="TBC",'Input data & costs'!$Q17="N/a",'Input data & costs'!$Q17="Insert Data" ),"N/A",'Input data & costs'!$Q17*100) -> 95 | K13: =Sources!W18 -> ISF estimate. Assumes reliable peak operation | L13: =IF(AND(ISNUMBER('Inbuilt input data'!AI16),ISNUMBER('Inbuilt input data'!V16)),'Inbuilt input data'!AI16*'Inbuilt input data'!V16,"No data available") -> 100.7 | M13: MWp = MW capacity * Firm peak rating | N13: =IF(ISERROR('Input data & costs'!AG17),"No data available",'Input data & costs'!AG17*1000) -> 789.276 | O13: =IF(Sources!AK18="","No data available","GWh/yr = MW capacity * capacity factor * 8760/1000") -> GWh/yr = MW capacity * capacity factor * 8760/1000 | P13: =IF(ISERROR('Input data & costs'!J17),"No data available",'Input data & costs'!J17) -> 0.05245714286 | Q13: =Sources!R18 -> Agricultural biogas emissions of 5.1kg CO2e/MWh from DCCEE (2010). Conversion assumes plant efficiency of 35%. Calculation: 5.1*3.6/0.35/1000 | R13: =IF(ISERROR('Input data & costs'!K17),"No data available",'Input data & costs'!K17) -> 2.772 | S13: =IF(Sources!S18="","No data available",Sources!S18) -> Access Economics (2009). Figure 3.8, inflation adjusted. | T13: =IF(ISERROR('Input data & costs'!L17),"No data available",'Input data & costs'!L17) -> 0.22 | U13: =IF(Sources!T18="","No data available",Sources!T18) -> OECD (2005). P151 Table 8 projection, Median price. Converted from EU to AUD using exchange rate from date used in publication 1AUD=0.59EU | V13: =IF(ISERROR('Input data & costs'!M17),"No data available",'Input data & costs'!M17) -> 31.96 | W13: =IF(Sources!U18="","No data available",Sources!U18) -> OECD (2005). P150 Table 1 projection, Median price. Converted from EU to AUD using exchange rate from date used in publication 1AUD=0.59EU | X13: =IF(OR(ISERROR('Input data & costs'!$R17),'Input data & costs'!$R17="TBC",'Input data & costs'!$R17="Insert Data" ),"N/A",'Input data & costs'!$R17*100) -> 75 | Y13: =IF(Sources!X18="","No data available",Sources!X18) -> ISF estimate. | Z13: =IF(ISERROR('Input data & costs'!I17),"No data available",'Input data & costs'!I17) -> 25 | AA13: =Sources!Q18 -> MMA (2008). Table 2.1 | AB13: 4B | AC13: Bioenergy | AD13: Agricultural Biogas | AE13: Electricity generated by burning biogas which is produced from agricultural sources, such as digesting livestock waste. | AF13: National | AG13: 106 | AH13: Clean Energy Council (2009). Anaerobic digestion/recipricaing gas engine, direct combustion and pyrolysis techniques for poultry, cattle, pigs, dairy cattle; abattoirs) | AI13: 85 | AJ13: Clean Energy Council (2009) | AK13: 95 | AL13: ISF estimate. Assumes reliable peak operation | AM13: 100.7 | AN13: MWp = MW capacity * Firm peak rating | AO13: 789.276 | AP13: GWh/yr = MW capacity * capacity factor * 8760/1000 | AQ13: 0.05245714286 | AR13: Agricultural biogas emissions of 5.1kg CO2e/MWh from DCCEE (2010). Conversion assumes plant efficiency of 35%. Calculation: 5.1*3.6/0.35/1000 | AS13: 2.772 | AT13: Access Economics (2009). Figure 3.8, inflation adjusted. | AU13: 0.22 | AV13: OECD (2005). P151 Table 8 projection, Median price. Converted from EU to AUD using exchange rate from date used in publication 1AUD=0.59EU | AW13: 31.96 | AX13: OECD (2005). P150 Table 1 projection, Median price. Converted from EU to AUD using exchange rate from date used in publication 1AUD=0.59EU | AY13: 75 | AZ13: ISF estimate. | BA13: 25 | BB13: MMA (2008). Table 2.1
A14: ='Input data & costs'!B18 -> 4C | B14: ='Input data & costs'!C18 -> Bioenergy | C14: ='Input data & costs'!D18 -> Biomass Plant | D14: ='Input data & costs'!F18 -> Electricity generated by burning biomass, specifically forestry and sawmill residues and energy crops such as camphor laurel, oil mallee, eucalyptus and Enercane. | E14: ='Control Panel'!$D$6 -> National | F14: ='Inbuilt input data'!AI17 -> 362 | G14: =Sources!P19 -> Clean Energy Coucil (2009). Includes mostly forestry and sawmill residues, but also oil mallee / eucalyptus and enercane (energy crops), and camphor laurel. | H14: =IF(OR(ISERROR('Input data & costs'!$N18),'Input data & costs'!$N18="TBC",'Input data & costs'!$N18="Insert Data",'Input data & costs'!$N18="n/a" ),"N/A",'Input data & costs'!$N18*100) -> 81 | I14: =IF(Sources!V19="","No data available",Sources!V19) -> Clean Energy Council (2009) . | J14: =IF(OR(ISERROR('Input data & costs'!$Q18),'Input data & costs'!$Q18="TBC",'Input data & costs'!$Q18="N/a",'Input data & costs'!$Q18="Insert Data" ),"N/A",'Input data & costs'!$Q18*100) -> 95 | K14: =Sources!W19 -> ISF estimate. Assumes reliable peak operation | L14: =IF(AND(ISNUMBER('Inbuilt input data'!AI17),ISNUMBER('Inbuilt input data'!V17)),'Inbuilt input data'!AI17*'Inbuilt input data'!V17,"No data available") -> 343.9 | M14: MWp = MW capacity * Firm peak rating | N14: =IF(ISERROR('Input data & costs'!AG18),"No data available",'Input data & costs'!AG18*1000) -> 2568.6072 | O14: =IF(Sources!AK19="","No data available","GWh/yr = MW capacity * capacity factor * 8760/1000") -> GWh/yr = MW capacity * capacity factor * 8760/1000 | P14: =IF(ISERROR('Input data & costs'!J18),"No data available",'Input data & costs'!J18) -> 0.02057142857 | Q14: =Sources!R19 -> Biomass plant emissions of 2kg CO2e/MWh from DCCEE (2010). Conversion assumes plant efficiency of 35%. Calculation: 2*3.6/0.35/1000 | R14: =IF(ISERROR('Input data & costs'!K18),"No data available",'Input data & costs'!K18) -> 3.5 | S14: =IF(Sources!S19="","No data available",Sources!S19) -> ISF estimate based on market research | T14: =IF(ISERROR('Input data & costs'!L18),"No data available",'Input data & costs'!L18) -> 0.16 | U14: =IF(Sources!T19="","No data available",Sources!T19) -> Rural Industries Research and Development Corporation (2008). Page 17, table 2. Based on 30MW capacity plant. | V14: =IF(ISERROR('Input data & costs'!M18),"No data available",'Input data & costs'!M18) -> 36.36 | W14: =IF(Sources!U19="","No data available",Sources!U19) -> Rural Industries Research and Development Corporation (2008). Page 17, Table 3. Medium cost (halfway between upper and lower bounds) of energy crops and plantation residues applied to potential figures provided in Clean Energy Council (2009). | X14: =IF(OR(ISERROR('Input data & costs'!$R18),'Input data & costs'!$R18="TBC",'Input data & costs'!$R18="Insert Data" ),"N/A",'Input data & costs'!$R18*100) -> 75 | Y14: =IF(Sources!X19="","No data available",Sources!X19) -> ISF estimate. | Z14: =IF(ISERROR('Input data & costs'!I18),"No data available",'Input data & costs'!I18) -> 30 | AA14: =Sources!Q19 -> MMA (2008). Table 2.1 | AB14: 4C | AC14: Bioenergy | AD14: Biomass Plant | AE14: Electricity generated by burning biomass, specifically forestry and sawmill residues and energy crops such as camphor laurel, oil mallee, eucalyptus and Enercane. | AF14: National | AG14: 362 | AH14: Clean Energy Coucil (2009). Includes mostly forestry and sawmill residues, but also oil mallee / eucalyptus and enercane (energy crops), and camphor laurel. | AI14: 81 | AJ14: Clean Energy Council (2009) . | AK14: 95 | AL14: ISF estimate. Assumes reliable peak operation | AM14: 343.9 | AN14: MWp = MW capacity * Firm peak rating | AO14: 2568.6072 | AP14: GWh/yr = MW capacity * capacity factor * 8760/1000 | AQ14: 0.02057142857 | AR14: Biomass plant emissions of 2kg CO2e/MWh from DCCEE (2010). Conversion assumes plant efficiency of 35%. Calculation: 2*3.6/0.35/1000 | AS14: 3.5 | AT14: ISF estimate based on market research | AU14: 0.16 | AV14: Rural Industries Research and Development Corporation (2008). Page 17, table 2. Based on 30MW capacity plant. | AW14: 36.36 | AX14: Rural Industries Research and Development Corporation (2008). Page 17, Table 3. Medium cost (halfway between upper and lower bounds) of energy crops and plantation residues applied to potential figures provided in Clean Energy Council (2009). | AY14: 75 | AZ14: ISF estimate. | BA14: 30 | BB14: MMA (2008). Table 2.1
A15: ='Input data & costs'!B19 -> 4D | B15: ='Input data & costs'!C19 -> Bioenergy | C15: ='Input data & costs'!D19 -> Biomass Cogen | D15: ='Input data & costs'!F19 -> Burning biomass, specifically sugar cane bagasse, where in addition to using the electricity generated, the useful heat is used for heat processing. | E15: ='Control Panel'!$D$6 -> National | F15: ='Inbuilt input data'!AI18 -> 514 | G15: =Sources!P20 -> Clean Energy Coucil (2009). Includes bagasse from sugar cane and paper/pulp mill cogeneration | H15: =IF(OR(ISERROR('Input data & costs'!$N19),'Input data & costs'!$N19="TBC",'Input data & costs'!$N19="Insert Data",'Input data & costs'!$N19="n/a" ),"N/A",'Input data & costs'!$N19*100) -> 45 | I15: =IF(Sources!V20="","No data available",Sources!V20) -> Clean Energy Council (2009). Assuming seasonal fuel supply. | J15: =IF(OR(ISERROR('Input data & costs'!$Q19),'Input data & costs'!$Q19="TBC",'Input data & costs'!$Q19="N/a",'Input data & costs'!$Q19="Insert Data" ),"N/A",'Input data & costs'!$Q19*100) -> 50 | K15: =Sources!W20 -> ISF estimate. Assumes reliable peak operation for half of the year | L15: =IF(AND(ISNUMBER('Inbuilt input data'!AI18),ISNUMBER('Inbuilt input data'!V18)),'Inbuilt input data'!AI18*'Inbuilt input data'!V18,"No data available") -> 257 | M15: MWp = MW capacity * Firm peak rating | N15: =IF(ISERROR('Input data & costs'!AG19),"No data available",'Input data & costs'!AG19*1000) -> 2026.188 | O15: =IF(Sources!AK20="","No data available","GWh/yr = MW capacity * capacity factor * 8760/1000") -> GWh/yr = MW capacity * capacity factor * 8760/1000 | P15: =IF(ISERROR('Input data & costs'!J19),"No data available",'Input data & costs'!J19) -> 0.01542857143 | Q15: =Sources!R20 -> Biomass cogen emissions of 1.5kg CO2e/MWh from DCCEE (2010), bagasse. Conversion assumes plant efficiency of 35%. Calculation: 1.5*3.6/0.35/1000 | R15: =IF(ISERROR('Input data & costs'!K19),"No data available",'Input data & costs'!K19) -> 3.75 | S15: =IF(Sources!S20="","No data available",Sources!S20) -> Clean Energy Council (2009) p16, authors pers. comm | T15: =IF(ISERROR('Input data & costs'!L19),"No data available",'Input data & costs'!L19) -> 0.16 | U15: =IF(Sources!T20="","No data available",Sources!T20) -> Rural Industries Research and Development Corporation (2008). Page 17, table 2. Based on 30MW capacity plant. | V15: =IF(ISERROR('Input data & costs'!M19),"No data available",'Input data & costs'!M19) -> 0 | W15: =IF(Sources!U20="","No data available",Sources!U20) -> Assumes fuel is waste from sugar processing and is freely available | X15: =IF(OR(ISERROR('Input data & costs'!$R19),'Input data & costs'!$R19="TBC",'Input data & costs'!$R19="Insert Data" ),"N/A",'Input data & costs'!$R19*100) -> 30 | Y15: =IF(Sources!X20="","No data available",Sources!X20) -> ISF estimate. | Z15: =IF(ISERROR('Input data & costs'!I19),"No data available",'Input data & costs'!I19) -> 30 | AA15: =Sources!Q20 -> MMA (2008). Table 2.1 | AB15: 4D | AC15: Bioenergy | AD15: Biomass Cogen | AE15: Burning biomass, specifically sugar cane bagasse, where in addition to using the electricity generated, the useful heat is used for heat processing. | AF15: National | AG15: 514 | AH15: Clean Energy Coucil (2009). Includes bagasse from sugar cane and paper/pulp mill cogeneration | AI15: 45 | AJ15: Clean Energy Council (2009). Assuming seasonal fuel supply. | AK15: 50 | AL15: ISF estimate. Assumes reliable peak operation for half of the year | AM15: 257 | AN15: MWp = MW capacity * Firm peak rating | AO15: 2026.188 | AP15: GWh/yr = MW capacity * capacity factor * 8760/1000 | AQ15: 0.01542857143 | AR15: Biomass cogen emissions of 1.5kg CO2e/MWh from DCCEE (2010), bagasse. Conversion assumes plant efficiency of 35%. Calculation: 1.5*3.6/0.35/1000 | AS15: 3.75 | AT15: Clean Energy Council (2009) p16, authors pers. comm | AU15: 0.16 | AV15: Rural Industries Research and Development Corporation (2008). Page 17, table 2. Based on 30MW capacity plant. | AW15: 0 | AX15: Assumes fuel is waste from sugar processing and is freely available | AY15: 30 | AZ15: ISF estimate. | BA15: 30 | BB15: MMA (2008). Table 2.1
A16: ='Input data & costs'!B20 -> 4E | B16: ='Input data & costs'!C20 -> Bioenergy | C16: ='Input data & costs'!D20 -> Landfill gas | D16: ='Input data & costs'!F20 -> Energy from capturing and burning methane released from decomposition of landfill waste. | E16: ='Control Panel'!$D$6 -> National | F16: ='Inbuilt input data'!AI19 -> 148 | G16: =Sources!P21 -> Clean Energy Council (2009). | H16: =IF(OR(ISERROR('Input data & costs'!$N20),'Input data & costs'!$N20="TBC",'Input data & costs'!$N20="Insert Data",'Input data & costs'!$N20="n/a" ),"N/A",'Input data & costs'!$N20*100) -> 86 | I16: =IF(Sources!V21="","No data available",Sources!V21) -> Clean Energy Council (2009) | J16: =IF(OR(ISERROR('Input data & costs'!$Q20),'Input data & costs'!$Q20="TBC",'Input data & costs'!$Q20="N/a",'Input data & costs'!$Q20="Insert Data" ),"N/A",'Input data & costs'!$Q20*100) -> 95 | K16: =Sources!W21 -> ISF estimate. Assumes reliable peak operation | L16: =IF(AND(ISNUMBER('Inbuilt input data'!AI19),ISNUMBER('Inbuilt input data'!V19)),'Inbuilt input data'!AI19*'Inbuilt input data'!V19,"No data available") -> 140.6 | M16: MWp = MW capacity * Firm peak rating | N16: =IF(ISERROR('Input data & costs'!AG20),"No data available",'Input data & costs'!AG20*1000) -> 1114.9728 | O16: =IF(Sources!AK21="","No data available","GWh/yr = MW capacity * capacity factor * 8760/1000") -> GWh/yr = MW capacity * capacity factor * 8760/1000 | P16: =IF(ISERROR('Input data & costs'!J20),"No data available",'Input data & costs'!J20) -> 0.05245714286 | Q16: =Sources!R21 -> Landfill gas emissions of 5.1kg CO2e/GJ from DCCEE (2010). Conversion assumes plant efficiency of 35%. Calculation: 5.1*3.6/0.35/1000 | R16: =IF(ISERROR('Input data & costs'!K20),"No data available",'Input data & costs'!K20) -> 2.3 | S16: =IF(Sources!S21="","No data available",Sources!S21) -> OECD (2005). P151 Table 4 projection, Median price. Converted from GBP to AUD using exchange rate from date used in publication 1GBP=2.46AUD | T16: =IF(ISERROR('Input data & costs'!L20),"No data available",'Input data & costs'!L20) -> 0.1 | U16: =IF(Sources!T21="","No data available",Sources!T21) -> OECD (2005). Median price. P151 Table 6 projection. Converted from GBP to AUD using exchange rate from date used in publication 1GBP=2.46AUD | V16: =IF(ISERROR('Input data & costs'!M20),"No data available",'Input data & costs'!M20) -> 0 | W16: =IF(Sources!U21="","No data available",Sources!U21) -> Assumes fuel is gas fuel is collected free of charge from the landfill site | X16: =IF(OR(ISERROR('Input data & costs'!$R20),'Input data & costs'!$R20="TBC",'Input data & costs'!$R20="Insert Data" ),"N/A",'Input data & costs'!$R20*100) -> 20 | Y16: =IF(Sources!X21="","No data available",Sources!X21) -> ISF estimate. | Z16: =IF(ISERROR('Input data & costs'!I20),"No data available",'Input data & costs'!I20) -> 25 | AA16: =Sources!Q21 -> MMA (2008). Table 2.1 | AB16: 4E | AC16: Bioenergy | AD16: Landfill gas | AE16: Energy from capturing and burning methane released from decomposition of landfill waste. | AF16: National | AG16: 148 | AH16: Clean Energy Council (2009). | AI16: 86 | AJ16: Clean Energy Council (2009) | AK16: 95 | AL16: ISF estimate. Assumes reliable peak operation | AM16: 140.6 | AN16: MWp = MW capacity * Firm peak rating | AO16: 1114.9728 | AP16: GWh/yr = MW capacity * capacity factor * 8760/1000 | AQ16: 0.05245714286 | AR16: Landfill gas emissions of 5.1kg CO2e/GJ from DCCEE (2010). Conversion assumes plant efficiency of 35%. Calculation: 5.1*3.6/0.35/1000 | AS16: 2.3 | AT16: OECD (2005). P151 Table 4 projection, Median price. Converted from GBP to AUD using exchange rate from date used in publication 1GBP=2.46AUD | AU16: 0.1 | AV16: OECD (2005). Median price. P151 Table 6 projection. Converted from GBP to AUD using exchange rate from date used in publication 1GBP=2.46AUD | AW16: 0 | AX16: Assumes fuel is gas fuel is collected free of charge from the landfill site | AY16: 20 | AZ16: ISF estimate. | BA16: 25 | BB16: MMA (2008). Table 2.1
A17: ='Input data & costs'!B21 -> 4F | B17: ='Input data & costs'!C21 -> Bioenergy | C17: ='Input data & costs'!D21 -> Sewage gas (Municipal water) | D17: ='Input data & costs'!F21 -> Energy from capturing and burning gas collected from sewage treatment plant bio-digesters. | E17: ='Control Panel'!$D$6 -> National | F17: ='Inbuilt input data'!AI20 -> 118 | G17: =Sources!P22 -> Clean Energy Council (2009). | H17: =IF(OR(ISERROR('Input data & costs'!$N21),'Input data & costs'!$N21="TBC",'Input data & costs'!$N21="Insert Data",'Input data & costs'!$N21="n/a" ),"N/A",'Input data & costs'!$N21*100) -> 86 | I17: =IF(Sources!V22="","No data available",Sources!V22) -> Clean Energy Council (2009) | J17: =IF(OR(ISERROR('Input data & costs'!$Q21),'Input data & costs'!$Q21="TBC",'Input data & costs'!$Q21="N/a",'Input data & costs'!$Q21="Insert Data" ),"N/A",'Input data & costs'!$Q21*100) -> 95 | K17: =Sources!W22 -> ISF estimate. Assumes reliable peak operation | L17: =IF(AND(ISNUMBER('Inbuilt input data'!AI20),ISNUMBER('Inbuilt input data'!V20)),'Inbuilt input data'!AI20*'Inbuilt input data'!V20,"No data available") -> 112.1 | M17: MWp = MW capacity * Firm peak rating | N17: =IF(ISERROR('Input data & costs'!AG21),"No data available",'Input data & costs'!AG21*1000) -> 888.9648 | O17: =IF(Sources!AK22="","No data available","GWh/yr = MW capacity * capacity factor * 8760/1000") -> GWh/yr = MW capacity * capacity factor * 8760/1000 | P17: =IF(ISERROR('Input data & costs'!J21),"No data available",'Input data & costs'!J21) -> 0.05245714286 | Q17: =Sources!R22 -> Sewage gas emissions of 5.1kg CO2e/GJ from DCCEE (2010). Conversion assumes plant efficiency of 35%. Calculation: 5.1*3.6/0.35/1000 | R17: =IF(ISERROR('Input data & costs'!K21),"No data available",'Input data & costs'!K21) -> 2.23 | S17: =IF(Sources!S22="","No data available",Sources!S22) -> OECD (2005). P151 Table 4 projection, Median price. Converted from GBP to AUD using exchange rate from date used in publication 1GBP=2.46AUD | T17: =IF(ISERROR('Input data & costs'!L21),"No data available",'Input data & costs'!L21) -> 0.07 | U17: =IF(Sources!T22="","No data available",Sources!T22) -> OECD (2005). Median price. P151 Table 6 projection. Converted from GBP to AUD using exchange rate from date used in publication 1GBP=2.46AUD | V17: =IF(ISERROR('Input data & costs'!M21),"No data available",'Input data & costs'!M21) -> 56.58 | W17: =IF(Sources!U22="","No data available",Sources!U22) -> OECD (2005). P150 Table 1 projection, Median price. Converted from GBP to AUD using exchange rate from date used in publication 1GBP=2.46AUD | X17: =IF(OR(ISERROR('Input data & costs'!$R21),'Input data & costs'!$R21="TBC",'Input data & costs'!$R21="Insert Data" ),"N/A",'Input data & costs'!$R21*100) -> 20 | Y17: =IF(Sources!X22="","No data available",Sources!X22) -> ISF estimate. | Z17: =IF(ISERROR('Input data & costs'!I21),"No data available",'Input data & costs'!I21) -> 25 | AA17: =Sources!Q22 -> MMA (2008). Table 2.1 | AB17: 4F | AC17: Bioenergy | AD17: Sewage gas (Municipal water) | AE17: Energy from capturing and burning gas collected from sewage treatment plant bio-digesters. | AF17: National | AG17: 118 | AH17: Clean Energy Council (2009). | AI17: 86 | AJ17: Clean Energy Council (2009) | AK17: 95 | AL17: ISF estimate. Assumes reliable peak operation | AM17: 112.1 | AN17: MWp = MW capacity * Firm peak rating | AO17: 888.9648 | AP17: GWh/yr = MW capacity * capacity factor * 8760/1000 | AQ17: 0.05245714286 | AR17: Sewage gas emissions of 5.1kg CO2e/GJ from DCCEE (2010). Conversion assumes plant efficiency of 35%. Calculation: 5.1*3.6/0.35/1000 | AS17: 2.23 | AT17: OECD (2005). P151 Table 4 projection, Median price. Converted from GBP to AUD using exchange rate from date used in publication 1GBP=2.46AUD | AU17: 0.07 | AV17: OECD (2005). Median price. P151 Table 6 projection. Converted from GBP to AUD using exchange rate from date used in publication 1GBP=2.46AUD | AW17: 56.58 | AX17: OECD (2005). P150 Table 1 projection, Median price. Converted from GBP to AUD using exchange rate from date used in publication 1GBP=2.46AUD | AY17: 20 | AZ17: ISF estimate. | BA17: 25 | BB17: MMA (2008). Table 2.1
A18: ='Input data & costs'!B22 -> 5A | B18: ='Input data & costs'!C22 -> Renewables | C18: ='Input data & costs'!D22 -> Improved Hydro Efficiency | D18: ='Input data & costs'!F22 -> Various measures to improve the efficiency of existing hydroelectric power stations. | E18: ='Control Panel'!$D$6 -> National | F18: ='Inbuilt input data'!AI21 -> 545 | G18: =Sources!P23 -> Includes additional capacity from current Snowy Hydro modernisation project + potential upgrade to other existing capacity (ESAA 2010), based on average upgrade potential of 6% from EPRI (1999) Table 2.2. | H18: =IF(OR(ISERROR('Input data & costs'!$N22),'Input data & costs'!$N22="TBC",'Input data & costs'!$N22="Insert Data",'Input data & costs'!$N22="n/a" ),"N/A",'Input data & costs'!$N22*100) -> 24 | I18: =IF(Sources!V23="","No data available",Sources!V23) -> Long term average capacity factor of Snowy Hydro and Tasmanian Hydro generators, which account for 95% of installed capacity in Australia | J18: =IF(OR(ISERROR('Input data & costs'!$Q22),'Input data & costs'!$Q22="TBC",'Input data & costs'!$Q22="N/a",'Input data & costs'!$Q22="Insert Data" ),"N/A",'Input data & costs'!$Q22*100) -> 60 | K18: =Sources!W23 -> ISF estimate. Available for peaking when sufficient water is available | L18: =IF(AND(ISNUMBER('Inbuilt input data'!AI21),ISNUMBER('Inbuilt input data'!V21)),'Inbuilt input data'!AI21*'Inbuilt input data'!V21,"No data available") -> 327 | M18: MWp = MW capacity * Firm peak rating | N18: =IF(ISERROR('Input data & costs'!AG22),"No data available",'Input data & costs'!AG22*1000) -> 1145.808 | O18: =IF(Sources!AK23="","No data available","GWh/yr = MW capacity * capacity factor * 8760/1000") -> GWh/yr = MW capacity * capacity factor * 8760/1000 | P18: =IF(ISERROR('Input data & costs'!J22),"No data available",'Input data & costs'!J22) -> 0 | Q18: =Sources!R23 -> Each additional unit of energy generated produces zero emissions | R18: =IF(ISERROR('Input data & costs'!K22),"No data available",'Input data & costs'!K22) -> 1.67 | S18: =IF(Sources!S23="","No data available",Sources!S23) -> Average between Snowy Hydro modernisation project ($1.33M/MW) and average cost of case study projects ($2M/MW) outlined in EPRI (2006). | T18: =IF(ISERROR('Input data & costs'!L22),"No data available",'Input data & costs'!L22) -> 0 | U18: =IF(Sources!T23="","No data available",Sources!T23) -> Assumes zero fixed O&M costs | V18: =IF(ISERROR('Input data & costs'!M22),"No data available",'Input data & costs'!M22) -> 0 | W18: =IF(Sources!U23="","No data available",Sources!U23) -> Assumes zero fuel and incremental O&M | X18: =IF(OR(ISERROR('Input data & costs'!$R22),'Input data & costs'!$R22="TBC",'Input data & costs'!$R22="Insert Data" ),"N/A",'Input data & costs'!$R22*100) -> 100 | Y18: =IF(Sources!X23="","No data available",Sources!X23) -> ISF estimate. | Z18: =IF(ISERROR('Input data & costs'!I22),"No data available",'Input data & costs'!I22) -> 25 | AA18: =Sources!Q23 -> ISF estimate | AB18: 5A | AC18: Renewables | AD18: Improved Hydro Efficiency | AE18: Various measures to improve the efficiency of existing hydroelectric power stations. | AF18: National | AG18: 545 | AH18: Includes additional capacity from current Snowy Hydro modernisation project + potential upgrade to other existing capacity (ESAA 2010), based on average upgrade potential of 6% from EPRI (1999) Table 2.2. | AI18: 24 | AJ18: Long term average capacity factor of Snowy Hydro and Tasmanian Hydro generators, which account for 95% of installed capacity in Australia | AK18: 60 | AL18: ISF estimate. Available for peaking when sufficient water is available | AM18: 327 | AN18: MWp = MW capacity * Firm peak rating | AO18: 1145.808 | AP18: GWh/yr = MW capacity * capacity factor * 8760/1000 | AQ18: 0 | AR18: Each additional unit of energy generated produces zero emissions | AS18: 1.67 | AT18: Average between Snowy Hydro modernisation project ($1.33M/MW) and average cost of case study projects ($2M/MW) outlined in EPRI (2006). | AU18: 0 | AV18: Assumes zero fixed O&M costs | AW18: 0 | AX18: Assumes zero fuel and incremental O&M | AY18: 100 | AZ18: ISF estimate. | BA18: 25 | BB18: ISF estimate
A19: ='Input data & costs'!B23 -> 5B | B19: ='Input data & costs'!C23 -> Renewables | C19: ='Input data & costs'!D23 -> Wind (offshore) | D19: ='Input data & costs'!F23 -> Energy from wind is harnessed through large grid connected turbines, located up to several kilometres offshore. | E19: ='Control Panel'!$D$6 -> National | F19: ='Inbuilt input data'!AI22 -> 2500 | G19: =Sources!P24 -> European Wind Energy Association (2010). Half of Europe's offshore wind target of 10% of total capacity by 2020, applied to Australia's current 50GW installed capacity | H19: =IF(OR(ISERROR('Input data & costs'!$N23),'Input data & costs'!$N23="TBC",'Input data & costs'!$N23="Insert Data",'Input data & costs'!$N23="n/a" ),"N/A",'Input data & costs'!$N23*100) -> 37 | I19: =IF(Sources!V24="","No data available",Sources!V24) -> European Wind Energy Association (2010). The average capacity factor of the projected installed capacity in Europe by 2020. | J19: =IF(OR(ISERROR('Input data & costs'!$Q23),'Input data & costs'!$Q23="TBC",'Input data & costs'!$Q23="N/a",'Input data & costs'!$Q23="Insert Data" ),"N/A",'Input data & costs'!$Q23*100) -> 13.5 | K19: =Sources!W24 -> Average of AGL (2011) and Davy and Coppin (2003). Assumed offshore wind is same as onshore wind | L19: =IF(AND(ISNUMBER('Inbuilt input data'!AI22),ISNUMBER('Inbuilt input data'!V22)),'Inbuilt input data'!AI22*'Inbuilt input data'!V22,"No data available") -> 337.5 | M19: MWp = MW capacity * Firm peak rating | N19: =IF(ISERROR('Input data & costs'!AG23),"No data available",'Input data & costs'!AG23*1000) -> 8103 | O19: =IF(Sources!AK24="","No data available","GWh/yr = MW capacity * capacity factor * 8760/1000") -> GWh/yr = MW capacity * capacity factor * 8760/1000 | P19: =IF(ISERROR('Input data & costs'!J23),"No data available",'Input data & costs'!J23) -> 0 | Q19: =Sources!R24 -> Each unit of energy generated produces zero emissions | R19: =IF(ISERROR('Input data & costs'!K23),"No data available",'Input data & costs'!K23) -> 3.83 | S19: =IF(Sources!S24="","No data available",Sources!S24) -> Access Economics (2009). Table A3, inflation adjusted. | T19: =IF(ISERROR('Input data & costs'!L23),"No data available",'Input data & costs'!L23) -> 0.11 | U19: =IF(Sources!T24="","No data available",Sources!T24) -> OECD (2010). Table 3.7d P62, converted to AUD using exchange rate 1USD=1.19AUD in Table 2.1, p38. Based on 300MW US offshore plant costs. Note: Figure includes both fixed and variable O&M costs bundled together. Figure calculated from $/MWh figure using capacity factor. | V19: =IF(ISERROR('Input data & costs'!M23),"No data available",'Input data & costs'!M23) -> 0 | W19: =IF(Sources!U24="","No data available",Sources!U24) -> Variable costs are included in the fixed O&M costs, because O&M costs not seperated into fixed and variable categories | X19: =IF(OR(ISERROR('Input data & costs'!$R23),'Input data & costs'!$R23="TBC",'Input data & costs'!$R23="Insert Data" ),"N/A",'Input data & costs'!$R23*100) -> 75 | Y19: =IF(Sources!X24="","No data available",Sources!X24) -> ISF estimate. | Z19: =IF(ISERROR('Input data & costs'!I23),"No data available",'Input data & costs'!I23) -> 25 | AA19: =Sources!Q24 -> OECD (2010). P43 | AB19: 5B | AC19: Renewables | AD19: Wind (offshore) | AE19: Energy from wind is harnessed through large grid connected turbines, located up to several kilometres offshore. | AF19: National | AG19: 2500 | AH19: European Wind Energy Association (2010). Half of Europe's offshore wind target of 10% of total capacity by 2020, applied to Australia's current 50GW installed capacity | AI19: 37 | AJ19: European Wind Energy Association (2010). The average capacity factor of the projected installed capacity in Europe by 2020. | AK19: 13.5 | AL19: Average of AGL (2011) and Davy and Coppin (2003). Assumed offshore wind is same as onshore wind | AM19: 337.5 | AN19: MWp = MW capacity * Firm peak rating | AO19: 8103 | AP19: GWh/yr = MW capacity * capacity factor * 8760/1000 | AQ19: 0 | AR19: Each unit of energy generated produces zero emissions | AS19: 3.83 | AT19: Access Economics (2009). Table A3, inflation adjusted. | AU19: 0.11 | AV19: OECD (2010). Table 3.7d P62, converted to AUD using exchange rate 1USD=1.19AUD in Table 2.1, p38. Based on 300MW US offshore plant costs. Note: Figure includes both fixed and variable O&M costs bundled together. Figure calculated from $/MWh figure using capacity factor. | AW19: 0 | AX19: Variable costs are included in the fixed O&M costs, because O&M costs not seperated into fixed and variable categories | AY19: 75 | AZ19: ISF estimate. | BA19: 25 | BB19: OECD (2010). P43
A20: ='Input data & costs'!B24 -> 5C | B20: ='Input data & costs'!C24 -> Renewables | C20: ='Input data & costs'!D24 -> Wind (onshore) | D20: ='Input data & costs'!F24 -> Energy from wind is harnessed through large grid connected turbines, located on land. | E20: ='Control Panel'!$D$6 -> National | F20: ='Inbuilt input data'!AI23 -> 9416 | G20: =Sources!P25 -> Carbon Market Economics (2009). Upper estimate (assumes less non-wind mix in RET) | H20: =IF(OR(ISERROR('Input data & costs'!$N24),'Input data & costs'!$N24="TBC",'Input data & costs'!$N24="Insert Data",'Input data & costs'!$N24="n/a" ),"N/A",'Input data & costs'!$N24*100) -> 35 | I20: =IF(Sources!V25="","No data available",Sources!V25) -> 35% upper bound from assumptions spreadsheet, renewables worksheet MMA (2008b) | J20: =IF(OR(ISERROR('Input data & costs'!$Q24),'Input data & costs'!$Q24="TBC",'Input data & costs'!$Q24="N/a",'Input data & costs'!$Q24="Insert Data" ),"N/A",'Input data & costs'!$Q24*100) -> 13.5 | K20: =Sources!W25 -> Average of AGL (2011) and Davy and Coppin (2003). | L20: =IF(AND(ISNUMBER('Inbuilt input data'!AI23),ISNUMBER('Inbuilt input data'!V23)),'Inbuilt input data'!AI23*'Inbuilt input data'!V23,"No data available") -> 1271.16 | M20: MWp = MW capacity * Firm peak rating | N20: =IF(ISERROR('Input data & costs'!AG24),"No data available",'Input data & costs'!AG24*1000) -> 28869.456 | O20: =IF(Sources!AK25="","No data available","GWh/yr = MW capacity * capacity factor * 8760/1000") -> GWh/yr = MW capacity * capacity factor * 8760/1000 | P20: =IF(ISERROR('Input data & costs'!J24),"No data available",'Input data & costs'!J24) -> 0 | Q20: =Sources!R25 -> Each unit of energy generated produces zero emissions | R20: =IF(ISERROR('Input data & costs'!K24),"No data available",'Input data & costs'!K24) -> 2.744 | S20: =IF(Sources!S25="","No data available",Sources!S25) -> ACIL Tasman (2010) | T20: =IF(ISERROR('Input data & costs'!L24),"No data available",'Input data & costs'!L24) -> 0.037 | U20: =IF(Sources!T25="","No data available",Sources!T25) -> ACIL Tasman (2010) | V20: =IF(ISERROR('Input data & costs'!M24),"No data available",'Input data & costs'!M24) -> 0 | W20: =IF(Sources!U25="","No data available",Sources!U25) -> ACIL Tasman (2010) | X20: =IF(OR(ISERROR('Input data & costs'!$R24),'Input data & costs'!$R24="TBC",'Input data & costs'!$R24="Insert Data" ),"N/A",'Input data & costs'!$R24*100) -> 75 | Y20: =IF(Sources!X25="","No data available",Sources!X25) -> ISF estimate. | Z20: =IF(ISERROR('Input data & costs'!I24),"No data available",'Input data & costs'!I24) -> 25 | AA20: =Sources!Q25 -> ACIL Tasman (2010) | AB20: 5C | AC20: Renewables | AD20: Wind (onshore) | AE20: Energy from wind is harnessed through large grid connected turbines, located on land. | AF20: National | AG20: 9416 | AH20: Carbon Market Economics (2009). Upper estimate (assumes less non-wind mix in RET) | AI20: 35 | AJ20: 35% upper bound from assumptions spreadsheet, renewables worksheet MMA (2008b) | AK20: 13.5 | AL20: Average of AGL (2011) and Davy and Coppin (2003). | AM20: 1271.16 | AN20: MWp = MW capacity * Firm peak rating | AO20: 28869.456 | AP20: GWh/yr = MW capacity * capacity factor * 8760/1000 | AQ20: 0 | AR20: Each unit of energy generated produces zero emissions | AS20: 2.744 | AT20: ACIL Tasman (2010) | AU20: 0.037 | AV20: ACIL Tasman (2010) | AW20: 0 | AX20: ACIL Tasman (2010) | AY20: 75 | AZ20: ISF estimate. | BA20: 25 | BB20: ACIL Tasman (2010)
A21: ='Input data & costs'!B25 -> 5D | B21: ='Input data & costs'!C25 -> Renewables | C21: ='Input data & costs'!D25 -> Solar Thermal (with storage) | D21: ='Input data & costs'!F25 -> Mirrors concentrate energy from the sun onto a focal point or tube filled with liquid. This liquid produces steam to drive a turbine. Salt cells can store heat to provide electricity on demand. | E21: ='Control Panel'!$D$6 -> National | F21: ='Inbuilt input data'!AI24 -> 2200 | G21: =Sources!P26 -> Black and Veatch (2006). 10 year California High deployment scenario projections, Table 4.1 p21. Note: 1) California has equivilent summer peak and annual energy generation to Australia; 2) California has 33% RET by 2030) | H21: =IF(OR(ISERROR('Input data & costs'!$N25),'Input data & costs'!$N25="TBC",'Input data & costs'!$N25="Insert Data",'Input data & costs'!$N25="n/a" ),"N/A",'Input data & costs'!$N25*100) -> 41 | I21: =IF(Sources!V26="","No data available",Sources!V26) -> CSIRO (2011) Table 5 | J21: =IF(OR(ISERROR('Input data & costs'!$Q25),'Input data & costs'!$Q25="TBC",'Input data & costs'!$Q25="N/a",'Input data & costs'!$Q25="Insert Data" ),"N/A",'Input data & costs'!$Q25*100) -> 95 | K21: =Sources!W26 -> Black and Veatch (2006). 6 hours storage in California qualifies CSP for 'peaking plant' categorisation, meaning the plant can operate at at least 95% during the summer peaks. See discussion, page 6-6. | L21: =IF(AND(ISNUMBER('Inbuilt input data'!AI24),ISNUMBER('Inbuilt input data'!V24)),'Inbuilt input data'!AI24*'Inbuilt input data'!V24,"No data available") -> 2090 | M21: MWp = MW capacity * Firm peak rating | N21: =IF(ISERROR('Input data & costs'!AG25),"No data available",'Input data & costs'!AG25*1000) -> 7901.52 | O21: =IF(Sources!AK26="","No data available","GWh/yr = MW capacity * capacity factor * 8760/1000") -> GWh/yr = MW capacity * capacity factor * 8760/1000 | P21: =IF(ISERROR('Input data & costs'!J25),"No data available",'Input data & costs'!J25) -> 0 | Q21: =Sources!R26 -> Zero emissions. Assumes no boosting required. | R21: =IF(ISERROR('Input data & costs'!K25),"No data available",'Input data & costs'!K25) -> 5.827 | S21: =IF(Sources!S26="","No data available",Sources!S26) -> ACIL Tasman (2010) | T21: =IF(ISERROR('Input data & costs'!L25),"No data available",'Input data & costs'!L25) -> 0.073 | U21: =IF(Sources!T26="","No data available",Sources!T26) -> ACIL Tasman (2010) | V21: =IF(ISERROR('Input data & costs'!M25),"No data available",'Input data & costs'!M25) -> 0 | W21: =IF(Sources!U26="","No data available",Sources!U26) -> ACIL Tasman (2010) | X21: =IF(OR(ISERROR('Input data & costs'!$R25),'Input data & costs'!$R25="TBC",'Input data & costs'!$R25="Insert Data" ),"N/A",'Input data & costs'!$R25*100) -> 75 | Y21: =IF(Sources!X26="","No data available",Sources!X26) -> ISF estimate. | Z21: =IF(ISERROR('Input data & costs'!I25),"No data available",'Input data & costs'!I25) -> 30 | AA21: =Sources!Q26 -> ACIL Tasman (2010) | AB21: 5D | AC21: Renewables | AD21: Solar Thermal (with storage) | AE21: Mirrors concentrate energy from the sun onto a focal point or tube filled with liquid. This liquid produces steam to drive a turbine. Salt cells can store heat to provide electricity on demand. | AF21: National | AG21: 2200 | AH21: Black and Veatch (2006). 10 year California High deployment scenario projections, Table 4.1 p21. Note: 1) California has equivilent summer peak and annual energy generation to Australia; 2) California has 33% RET by 2030) | AI21: 41 | AJ21: CSIRO (2011) Table 5 | AK21: 95 | AL21: Black and Veatch (2006). 6 hours storage in California qualifies CSP for 'peaking plant' categorisation, meaning the plant can operate at at least 95% during the summer peaks. See discussion, page 6-6. | AM21: 2090 | AN21: MWp = MW capacity * Firm peak rating | AO21: 7901.52 | AP21: GWh/yr = MW capacity * capacity factor * 8760/1000 | AQ21: 0 | AR21: Zero emissions. Assumes no boosting required. | AS21: 5.827 | AT21: ACIL Tasman (2010) | AU21: 0.073 | AV21: ACIL Tasman (2010) | AW21: 0 | AX21: ACIL Tasman (2010) | AY21: 75 | AZ21: ISF estimate. | BA21: 30 | BB21: ACIL Tasman (2010)
A22: ='Input data & costs'!B26 -> 5E | B22: ='Input data & costs'!C26 -> Renewables | C22: ='Input data & costs'!D26 -> Concentrating solar PV | D22: ='Input data & costs'!F26 -> Mirrors concentrate and reflect sunlight onto high efficiency solar photovoltaic cells to produce electricity. | E22: ='Control Panel'!$D$6 -> National | F22: ='Inbuilt input data'!AI25 -> 0 | G22: =Sources!P27 -> TBC | H22: =IF(OR(ISERROR('Input data & costs'!$N26),'Input data & costs'!$N26="TBC",'Input data & costs'!$N26="Insert Data",'Input data & costs'!$N26="n/a" ),"N/A",'Input data & costs'!$N26*100) -> 26 | I22: =IF(Sources!V27="","No data available",Sources!V27) -> Black and Veatch (2006). See discussion page A-12 | J22: =IF(OR(ISERROR('Input data & costs'!$Q26),'Input data & costs'!$Q26="TBC",'Input data & costs'!$Q26="N/a",'Input data & costs'!$Q26="Insert Data" ),"N/A",'Input data & costs'!$Q26*100) -> N/A | K22: =Sources!W27 -> No data available | L22: =IF(AND(ISNUMBER('Inbuilt input data'!AI25),ISNUMBER('Inbuilt input data'!V25)),'Inbuilt input data'!AI25*'Inbuilt input data'!V25,"No data available") -> No data available | M22: MWp = MW capacity * Firm peak rating | N22: =IF(ISERROR('Input data & costs'!AG26),"No data available",'Input data & costs'!AG26*1000) -> 0 | O22: =IF(Sources!AK27="","No data available","GWh/yr = MW capacity * capacity factor * 8760/1000") -> GWh/yr = MW capacity * capacity factor * 8760/1000 | P22: =IF(ISERROR('Input data & costs'!J26),"No data available",'Input data & costs'!J26) -> 0 | Q22: =Sources!R27 -> Each unit of energy generated produces zero emissions | R22: =IF(ISERROR('Input data & costs'!K26),"No data available",'Input data & costs'!K26) -> 2.7 | S22: =IF(Sources!S27="","No data available",Sources!S27) -> MMA (2008). Table 2.1 | T22: =IF(ISERROR('Input data & costs'!L26),"No data available",'Input data & costs'!L26) -> TBC | U22: =IF(Sources!T27="","No data available",Sources!T27) -> No data available | V22: =IF(ISERROR('Input data & costs'!M26),"No data available",'Input data & costs'!M26) -> TBC | W22: =IF(Sources!U27="","No data available",Sources!U27) -> No data available | X22: =IF(OR(ISERROR('Input data & costs'!$R26),'Input data & costs'!$R26="TBC",'Input data & costs'!$R26="Insert Data" ),"N/A",'Input data & costs'!$R26*100) -> 75 | Y22: =IF(Sources!X27="","No data available",Sources!X27) -> ISF estimate. | Z22: =IF(ISERROR('Input data & costs'!I26),"No data available",'Input data & costs'!I26) -> 30 | AA22: =Sources!Q27 -> MMA (2008). Table 2.1 | AB22: 5E | AC22: Renewables | AD22: Concentrating solar PV | AE22: Mirrors concentrate and reflect sunlight onto high efficiency solar photovoltaic cells to produce electricity. | AF22: National | AG22: 0 | AH22: TBC | AI22: 26 | AJ22: Black and Veatch (2006). See discussion page A-12 | AK22: N/A | AL22: No data available | AM22: No data available | AN22: MWp = MW capacity * Firm peak rating | AO22: 0 | AP22: GWh/yr = MW capacity * capacity factor * 8760/1000 | AQ22: 0 | AR22: Each unit of energy generated produces zero emissions | AS22: 2.7 | AT22: MMA (2008). Table 2.1 | AU22: TBC | AV22: No data available | AW22: TBC | AX22: No data available | AY22: 75 | AZ22: ISF estimate. | BA22: 30 | BB22: MMA (2008). Table 2.1
A23: ='Input data & costs'!B27 -> 5F | B23: ='Input data & costs'!C27 -> Renewables | C23: ='Input data & costs'!D27 -> Solar PV (grid connected) | D23: ='Input data & costs'!F27 -> Energy from the sun is harnessed through grid connected photovoltaic power systems. | E23: ='Control Panel'!$D$6 -> National | F23: ='Inbuilt input data'!AI26 -> 2500 | G23: =Sources!P28 -> BSW-Solar (2010).Growth of solar pv installations in Germany 2000-2009 (part 7), adjusted for Australia's population. | H23: =IF(OR(ISERROR('Input data & costs'!$N27),'Input data & costs'!$N27="TBC",'Input data & costs'!$N27="Insert Data",'Input data & costs'!$N27="n/a" ),"N/A",'Input data & costs'!$N27*100) -> 14.84018265 | I23: =IF(Sources!V29="","No data available",Sources!V29) -> ACIL Tasman (2010) | J23: =IF(OR(ISERROR('Input data & costs'!$Q27),'Input data & costs'!$Q27="TBC",'Input data & costs'!$Q27="N/a",'Input data & costs'!$Q27="Insert Data" ),"N/A",'Input data & costs'!$Q27*100) -> 35 | K23: =Sources!W28 -> Popp (2005). Firm peak reduction in high load events for SA. | L23: =IF(AND(ISNUMBER('Inbuilt input data'!AI26),ISNUMBER('Inbuilt input data'!V26)),'Inbuilt input data'!AI26*'Inbuilt input data'!V26,"No data available") -> 875 | M23: MWp = MW capacity * Firm peak rating | N23: =IF(ISERROR('Input data & costs'!AG27),"No data available",'Input data & costs'!AG27*1000) -> 3250 | O23: =IF(Sources!AK28="","No data available","GWh/yr = MW capacity * capacity factor * 8760/1000") -> GWh/yr = MW capacity * capacity factor * 8760/1000 | P23: =IF(ISERROR('Input data & costs'!J27),"No data available",'Input data & costs'!J27) -> 0 | Q23: =Sources!R28 -> Each unit of energy generated produces zero emissions | R23: =IF(ISERROR('Input data & costs'!K27),"No data available",'Input data & costs'!K27) -> 4.65 | S23: =IF(Sources!S29="","No data available",Sources!S29) -> ACIL Tasman (2010) | T23: =IF(ISERROR('Input data & costs'!L27),"No data available",'Input data & costs'!L27) -> 0.06 | U23: =IF(Sources!T29="","No data available",Sources!T29) -> ACIL Tasman (2010) | V23: =IF(ISERROR('Input data & costs'!M27),"No data available",'Input data & costs'!M27) -> 0 | W23: =IF(Sources!U29="","No data available",Sources!U29) -> ACIL Tasman (2010) | X23: =IF(OR(ISERROR('Input data & costs'!$R27),'Input data & costs'!$R27="TBC",'Input data & costs'!$R27="Insert Data" ),"N/A",'Input data & costs'!$R27*100) -> 5 | Y23: =IF(Sources!X29="","No data available",Sources!X29) -> ISF estimate. | Z23: =IF(ISERROR('Input data & costs'!I27),"No data available",'Input data & costs'!I27) -> 30 | AA23: =Sources!Q28 -> ACIL Tasman (2010) | AB23: 5F | AC23: Renewables | AD23: Solar PV (grid connected) | AE23: Energy from the sun is harnessed through grid connected photovoltaic power systems. | AF23: National | AG23: 2500 | AH23: BSW-Solar (2010).Growth of solar pv installations in Germany 2000-2009 (part 7), adjusted for Australia's population. | AI23: 14.84018265 | AJ23: ACIL Tasman (2010) | AK23: 35 | AL23: Popp (2005). Firm peak reduction in high load events for SA. | AM23: 875 | AN23: MWp = MW capacity * Firm peak rating | AO23: 3250 | AP23: GWh/yr = MW capacity * capacity factor * 8760/1000 | AQ23: 0 | AR23: Each unit of energy generated produces zero emissions | AS23: 4.65 | AT23: ACIL Tasman (2010) | AU23: 0.06 | AV23: ACIL Tasman (2010) | AW23: 0 | AX23: ACIL Tasman (2010) | AY23: 5 | AZ23: ISF estimate. | BA23: 30 | BB23: ACIL Tasman (2010)
A24: ='Input data & costs'!B28 -> 5G | B24: ='Input data & costs'!C28 -> Renewables | C24: ='Input data & costs'!D28 -> Geothermal - Hot Dry Rock | D24: ='Input data & costs'!F28 -> Heat stored in low permeability rock below the earth's surface is harnessed by circulating water through drilled or naturally occurring fissures and using the returned superheated steam to generate electricity. | E24: ='Control Panel'!$D$6 -> National | F24: ='Inbuilt input data'!AI27 -> 1376 | G24: =Sources!P29 -> MMA (2010). Based on projections for generation in the expaned RET. First plant online in 2017. | H24: =IF(OR(ISERROR('Input data & costs'!$N28),'Input data & costs'!$N28="TBC",'Input data & costs'!$N28="Insert Data",'Input data & costs'!$N28="n/a" ),"N/A",'Input data & costs'!$N28*100) -> 85 | I24: =IF(Sources!V28="","No data available",Sources!V28) -> Office of the Renewable Energy Regulator (2011) online calculator. Based on Zone 3 eligible deemed STCs. | J24: =IF(OR(ISERROR('Input data & costs'!$Q28),'Input data & costs'!$Q28="TBC",'Input data & costs'!$Q28="N/a",'Input data & costs'!$Q28="Insert Data" ),"N/A",'Input data & costs'!$Q28*100) -> 95 | K24: =Sources!W29 -> ISF estimate, pending better data. | L24: =IF(AND(ISNUMBER('Inbuilt input data'!AI27),ISNUMBER('Inbuilt input data'!V27)),'Inbuilt input data'!AI27*'Inbuilt input data'!V27,"No data available") -> 1307.2 | M24: MWp = MW capacity * Firm peak rating | N24: =IF(ISERROR('Input data & costs'!AG28),"No data available",'Input data & costs'!AG28*1000) -> 10245.696 | O24: =IF(Sources!AK29="","No data available","GWh/yr = MW capacity * capacity factor * 8760/1000") -> GWh/yr = MW capacity * capacity factor * 8760/1000 | P24: =IF(ISERROR('Input data & costs'!J28),"No data available",'Input data & costs'!J28) -> 0 | Q24: =Sources!R29 -> Each unit of energy generated produces zero emissions | R24: =IF(ISERROR('Input data & costs'!K28),"No data available",'Input data & costs'!K28) -> 7.1405 | S24: =IF(Sources!S28="","No data available",Sources!S28) -> ACIL Tasman (2010) | T24: =IF(ISERROR('Input data & costs'!L28),"No data available",'Input data & costs'!L28) -> 0.187 | U24: =IF(Sources!T28="","No data available",Sources!T28) -> Based on 2 inverter replacements, during the life of the panels, and an inverter price of $0.721/watt. Source: All inverter price index (2010), October 2010 price, converted to AUD using 1AUD=1USD. | V24: =IF(ISERROR('Input data & costs'!M28),"No data available",'Input data & costs'!M28) -> 0 | W24: =IF(Sources!U28="","No data available",Sources!U28) -> ACIL Tasman (2010) | X24: =IF(OR(ISERROR('Input data & costs'!$R28),'Input data & costs'!$R28="TBC",'Input data & costs'!$R28="Insert Data" ),"N/A",'Input data & costs'!$R28*100) -> 100 | Y24: =IF(Sources!X28="","No data available",Sources!X28) -> ISF estimate. | Z24: =IF(ISERROR('Input data & costs'!I28),"No data available",'Input data & costs'!I28) -> 25 | AA24: =Sources!Q29 -> ACIL Tasman (2010) | AB24: 5G | AC24: Renewables | AD24: Geothermal - Hot Dry Rock | AE24: Heat stored in low permeability rock below the earth's surface is harnessed by circulating water through drilled or naturally occurring fissures and using the returned superheated steam to generate electricity. | AF24: National | AG24: 1376 | AH24: MMA (2010). Based on projections for generation in the expaned RET. First plant online in 2017. | AI24: 85 | AJ24: Office of the Renewable Energy Regulator (2011) online calculator. Based on Zone 3 eligible deemed STCs. | AK24: 95 | AL24: ISF estimate, pending better data. | AM24: 1307.2 | AN24: MWp = MW capacity * Firm peak rating | AO24: 10245.696 | AP24: GWh/yr = MW capacity * capacity factor * 8760/1000 | AQ24: 0 | AR24: Each unit of energy generated produces zero emissions | AS24: 7.1405 | AT24: ACIL Tasman (2010) | AU24: 0.187 | AV24: Based on 2 inverter replacements, during the life of the panels, and an inverter price of $0.721/watt. Source: All inverter price index (2010), October 2010 price, converted to AUD using 1AUD=1USD. | AW24: 0 | AX24: ACIL Tasman (2010) | AY24: 100 | AZ24: ISF estimate. | BA24: 25 | BB24: ACIL Tasman (2010)
A25: ='Input data & costs'!B29 -> 5H | B25: ='Input data & costs'!C29 -> Renewables | C25: ='Input data & costs'!D29 -> Ocean (tidal) | D25: ='Input data & costs'!F29 -> Large turbines are positioned underwater to take advantage of regular tidal flows (wave energy is not included in this analysis). | E25: ='Control Panel'!$D$6 -> National | F25: ='Inbuilt input data'!AI28 -> 500 | G25: =Sources!P30 -> ISF Estimate. Assumes tidal power installed in Northern Australia where large tidal ranges occur. | H25: =IF(OR(ISERROR('Input data & costs'!$N29),'Input data & costs'!$N29="TBC",'Input data & costs'!$N29="Insert Data",'Input data & costs'!$N29="n/a" ),"N/A",'Input data & costs'!$N29*100) -> 30 | I25: =IF(Sources!V30="","No data available",Sources!V30) -> OECD (2010) Table 3.5 P57. Based on ESAA info regarding potential 304MW plant in WA. | J25: =IF(OR(ISERROR('Input data & costs'!$Q29),'Input data & costs'!$Q29="TBC",'Input data & costs'!$Q29="N/a",'Input data & costs'!$Q29="Insert Data" ),"N/A",'Input data & costs'!$Q29*100) -> 30 | K25: =Sources!W30 -> ISF estimate, pending better data. | L25: =IF(AND(ISNUMBER('Inbuilt input data'!AI28),ISNUMBER('Inbuilt input data'!V28)),'Inbuilt input data'!AI28*'Inbuilt input data'!V28,"No data available") -> 150 | M25: MWp = MW capacity * Firm peak rating | N25: =IF(ISERROR('Input data & costs'!AG29),"No data available",'Input data & costs'!AG29*1000) -> 1314 | O25: =IF(Sources!AK30="","No data available","GWh/yr = MW capacity * capacity factor * 8760/1000") -> GWh/yr = MW capacity * capacity factor * 8760/1000 | P25: =IF(ISERROR('Input data & costs'!J29),"No data available",'Input data & costs'!J29) -> 0 | Q25: =Sources!R30 -> Each unit of energy saved produces zero emissions | R25: =IF(ISERROR('Input data & costs'!K29),"No data available",'Input data & costs'!K29) -> 3.11 | S25: =IF(Sources!S30="","No data available",Sources!S30) -> OECD (2010)/. Table 3.7d P62 Based on ESAA information regarding potential 304MW plant in WA. Adjusted by exchange rate outlined in Table 2.1, p38. (AUD1.19=1USD) | T25: =IF(ISERROR('Input data & costs'!L29),"No data available",'Input data & costs'!L29) -> 0.58 | U25: =IF(Sources!T30="","No data available",Sources!T30) -> OECD (2010). Table 3.7d P62, converted to AUD using exchange rate 1USD=1.19AUD in Table 2.1, p38. Based ESAA information regarding potential 304MW plant in WA. Note: Figure includes both fixed and variable O&M costs bundled together. Figure calculated from $/MWh figure using capacity factor. | V25: =IF(ISERROR('Input data & costs'!M29),"No data available",'Input data & costs'!M29) -> 0 | W25: =IF(Sources!U30="","No data available",Sources!U30) -> Variable costs are included in the fixed O&M costs, because O&M costs not seperated into fixed and variable categories | X25: =IF(OR(ISERROR('Input data & costs'!$R29),'Input data & costs'!$R29="TBC",'Input data & costs'!$R29="Insert Data" ),"N/A",'Input data & costs'!$R29*100) -> 75 | Y25: =IF(Sources!X30="","No data available",Sources!X30) -> ISF estimate. | Z25: =IF(ISERROR('Input data & costs'!I29),"No data available",'Input data & costs'!I29) -> 20 | AA25: =Sources!Q30 -> OECD (2010). P43 | AB25: 5H | AC25: Renewables | AD25: Ocean (tidal) | AE25: Large turbines are positioned underwater to take advantage of regular tidal flows (wave energy is not included in this analysis). | AF25: National | AG25: 500 | AH25: ISF Estimate. Assumes tidal power installed in Northern Australia where large tidal ranges occur. | AI25: 30 | AJ25: OECD (2010) Table 3.5 P57. Based on ESAA info regarding potential 304MW plant in WA. | AK25: 30 | AL25: ISF estimate, pending better data. | AM25: 150 | AN25: MWp = MW capacity * Firm peak rating | AO25: 1314 | AP25: GWh/yr = MW capacity * capacity factor * 8760/1000 | AQ25: 0 | AR25: Each unit of energy saved produces zero emissions | AS25: 3.11 | AT25: OECD (2010)/. Table 3.7d P62 Based on ESAA information regarding potential 304MW plant in WA. Adjusted by exchange rate outlined in Table 2.1, p38. (AUD1.19=1USD) | AU25: 0.58 | AV25: OECD (2010). Table 3.7d P62, converted to AUD using exchange rate 1USD=1.19AUD in Table 2.1, p38. Based ESAA information regarding potential 304MW plant in WA. Note: Figure includes both fixed and variable O&M costs bundled together. Figure calculated from $/MWh figure using capacity factor. | AW25: 0 | AX25: Variable costs are included in the fixed O&M costs, because O&M costs not seperated into fixed and variable categories | AY25: 75 | AZ25: ISF estimate. | BA25: 20 | BB25: OECD (2010). P43
A26: ='Input data & costs'!B30 -> 6A | B26: ='Input data & costs'!C30 -> Energy Storage | C26: ='Input data & costs'!D30 -> Large scale batteries | D26: ='Input data & costs'!F30 -> Sodium Sulphur Battery - High Temp battery (molten sulphur and molten sodium). Suitable for applications between 10 and 100MW. Stand alone units used for peak shaving and often used to balance loads of power plants such as wind | E26: ='Control Panel'!$D$6 -> National | F26: ='Inbuilt input data'!AI29 -> 300 | G26: =Sources!P31 -> Doughty et al. (2010). Potential in Australia is assumed to be the current installed capacity in Japan, which has a majority of the global installed capacity | H26: =IF(OR(ISERROR('Input data & costs'!$N30),'Input data & costs'!$N30="TBC",'Input data & costs'!$N30="Insert Data",'Input data & costs'!$N30="n/a" ),"N/A",'Input data & costs'!$N30*100) -> 2 | I26: =IF(Sources!V31="","No data available",Sources!V31) -> Jalal Kazempour and Moghaddam (2009). Assumed operation of 168 hours per year. | J26: =IF(OR(ISERROR('Input data & costs'!$Q30),'Input data & costs'!$Q30="TBC",'Input data & costs'!$Q30="N/a",'Input data & costs'!$Q30="Insert Data" ),"N/A",'Input data & costs'!$Q30*100) -> 95 | K26: =Sources!W31 -> ISF estimate, pending better data. | L26: =IF(AND(ISNUMBER('Inbuilt input data'!AI29),ISNUMBER('Inbuilt input data'!V29)),'Inbuilt input data'!AI29*'Inbuilt input data'!V29,"No data available") -> 285 | M26: MWp = MW capacity * Firm peak rating | N26: =IF(ISERROR('Input data & costs'!AG30),"No data available",'Input data & costs'!AG30*1000) -> 52.56 | O26: =IF(Sources!AK31="","No data available","GWh/yr = MW capacity * capacity factor * 8760/1000") -> GWh/yr = MW capacity * capacity factor * 8760/1000 | P26: =IF(ISERROR('Input data & costs'!J30),"No data available",'Input data & costs'!J30) -> 0 | Q26: =Sources!R31 -> As batteries are not used for energy production, for simplicity we have assumed net emissions are zero. | R26: =IF(ISERROR('Input data & costs'!K30),"No data available",'Input data & costs'!K30) -> 2.68 | S26: =IF(Sources!S31="","No data available",Sources!S31) -> Jalal Kazempour and Moghaddam (2009). Table 2. | T26: =IF(ISERROR('Input data & costs'!L30),"No data available",'Input data & costs'!L30) -> 0.08 | U26: =IF(Sources!T31="","No data available",Sources!T31) -> Business Insights: The future of electrical storage | V26: =IF(ISERROR('Input data & costs'!M30),"No data available",'Input data & costs'!M30) -> 117.07 | W26: =IF(Sources!U31="","No data available",Sources!U31) -> Jalal Kazempour and Moghaddam (2009). Table 2 (k1÷2MW + k2). Assumes all labour costs are variable and plant runs at full capacity when in operation. Based on 2MW NaS battery, converted to AUD (1USD=1.19AUD) | X26: =IF(OR(ISERROR('Input data & costs'!$R30),'Input data & costs'!$R30="TBC",'Input data & costs'!$R30="Insert Data" ),"N/A",'Input data & costs'!$R30*100) -> 25 | Y26: =IF(Sources!X31="","No data available",Sources!X31) -> ISF estimate. | Z26: =IF(ISERROR('Input data & costs'!I30),"No data available",'Input data & costs'!I30) -> 16 | AA26: =Sources!Q31 -> Jalal Kazempour and Moghaddam (2009) Table 2. | AB26: 6A | AC26: Energy Storage | AD26: Large scale batteries | AE26: Sodium Sulphur Battery - High Temp battery (molten sulphur and molten sodium). Suitable for applications between 10 and 100MW. Stand alone units used for peak shaving and often used to balance loads of power plants such as wind | AF26: National | AG26: 300 | AH26: Doughty et al. (2010). Potential in Australia is assumed to be the current installed capacity in Japan, which has a majority of the global installed capacity | AI26: 2 | AJ26: Jalal Kazempour and Moghaddam (2009). Assumed operation of 168 hours per year. | AK26: 95 | AL26: ISF estimate, pending better data. | AM26: 285 | AN26: MWp = MW capacity * Firm peak rating | AO26: 52.56 | AP26: GWh/yr = MW capacity * capacity factor * 8760/1000 | AQ26: 0 | AR26: As batteries are not used for energy production, for simplicity we have assumed net emissions are zero. | AS26: 2.68 | AT26: Jalal Kazempour and Moghaddam (2009). Table 2. | AU26: 0.08 | AV26: Business Insights: The future of electrical storage | AW26: 117.07 | AX26: Jalal Kazempour and Moghaddam (2009). Table 2 (k1÷2MW + k2). Assumes all labour costs are variable and plant runs at full capacity when in operation. Based on 2MW NaS battery, converted to AUD (1USD=1.19AUD) | AY26: 25 | AZ26: ISF estimate. | BA26: 16 | BB26: Jalal Kazempour and Moghaddam (2009) Table 2.
A27: ='Input data & costs'!B31 -> 6B | B27: ='Input data & costs'!C31 -> Energy Storage | C27: ='Input data & costs'!D31 -> Small scale batteries | D27: ='Input data & costs'!F31 -> Flow Batteries (Vanadium Redox, Zinc Bromine). Similar in operation to hydrogen fuel cell. Suitable for applications between 100kW and 10MW normally in association with peaky power plants such as wind or solar | E27: ='Control Panel'!$D$6 -> National | F27: ='Inbuilt input data'!AI30 -> 100 | G27: =Sources!P32 -> ISF estimate | H27: =IF(OR(ISERROR('Input data & costs'!$N31),'Input data & costs'!$N31="TBC",'Input data & costs'!$N31="Insert Data",'Input data & costs'!$N31="n/a" ),"N/A",'Input data & costs'!$N31*100) -> 5 | I27: =IF(Sources!V32="","No data available",Sources!V32) -> ISF estimate. Assumes peak operation for 5 hours x 90 days / year. | J27: =IF(OR(ISERROR('Input data & costs'!$Q31),'Input data & costs'!$Q31="TBC",'Input data & costs'!$Q31="N/a",'Input data & costs'!$Q31="Insert Data" ),"N/A",'Input data & costs'!$Q31*100) -> 95 | K27: =Sources!W32 -> ISF estimate, pending better data. | L27: =IF(AND(ISNUMBER('Inbuilt input data'!AI30),ISNUMBER('Inbuilt input data'!V30)),'Inbuilt input data'!AI30*'Inbuilt input data'!V30,"No data available") -> 95 | M27: MWp = MW capacity * Firm peak rating | N27: =IF(ISERROR('Input data & costs'!AG31),"No data available",'Input data & costs'!AG31*1000) -> 43.8 | O27: =IF(Sources!AK32="","No data available","GWh/yr = MW capacity * capacity factor * 8760/1000") -> GWh/yr = MW capacity * capacity factor * 8760/1000 | P27: =IF(ISERROR('Input data & costs'!J31),"No data available",'Input data & costs'!J31) -> 0 | Q27: =Sources!R32 -> As batteries are not used for energy production, for simplicity we have assumed net emissions are zero. | R27: =IF(ISERROR('Input data & costs'!K31),"No data available",'Input data & costs'!K31) -> 2.32 | S27: =IF(Sources!S32="","No data available",Sources!S32) -> Rastler, D. (2008). Average flow battery capital cost | T27: =IF(ISERROR('Input data & costs'!L31),"No data available",'Input data & costs'!L31) -> 0.041 | U27: =IF(Sources!T32="","No data available",Sources!T32) -> Business Insights: The future of electrical storage. The average fixed O&M cost of Vanadium Redox and Zinc Bromine batteries. | V27: =IF(ISERROR('Input data & costs'!M31),"No data available",'Input data & costs'!M31) -> 0 | W27: =IF(Sources!U32="","No data available",Sources!U32) -> Business Insights: The future of electrical storage. Fixed costs and variable cost unable to be seperated. | X27: =IF(OR(ISERROR('Input data & costs'!$R31),'Input data & costs'!$R31="TBC",'Input data & costs'!$R31="Insert Data" ),"N/A",'Input data & costs'!$R31*100) -> 20 | Y27: =IF(Sources!X32="","No data available",Sources!X32) -> ISF estimate. | Z27: =IF(ISERROR('Input data & costs'!I31),"No data available",'Input data & costs'!I31) -> 15 | AA27: =Sources!Q32 -> Rastler, D. (2008) | AB27: 6B | AC27: Energy Storage | AD27: Small scale batteries | AE27: Flow Batteries (Vanadium Redox, Zinc Bromine). Similar in operation to hydrogen fuel cell. Suitable for applications between 100kW and 10MW normally in association with peaky power plants such as wind or solar | AF27: National | AG27: 100 | AH27: ISF estimate | AI27: 5 | AJ27: ISF estimate. Assumes peak operation for 5 hours x 90 days / year. | AK27: 95 | AL27: ISF estimate, pending better data. | AM27: 95 | AN27: MWp = MW capacity * Firm peak rating | AO27: 43.8 | AP27: GWh/yr = MW capacity * capacity factor * 8760/1000 | AQ27: 0 | AR27: As batteries are not used for energy production, for simplicity we have assumed net emissions are zero. | AS27: 2.32 | AT27: Rastler, D. (2008). Average flow battery capital cost | AU27: 0.041 | AV27: Business Insights: The future of electrical storage. The average fixed O&M cost of Vanadium Redox and Zinc Bromine batteries. | AW27: 0 | AX27: Business Insights: The future of electrical storage. Fixed costs and variable cost unable to be seperated. | AY27: 20 | AZ27: ISF estimate. | BA27: 15 | BB27: Rastler, D. (2008)
A28: ='Input data & costs'!B32 -> 7A | B28: ='Input data & costs'!C32 -> Centralised Fossil | C28: ='Input data & costs'!D32 -> Combined Cycle Gas Turbine | D28: ='Input data & costs'!F32 -> Internal combustion jet turbine, powered by natural gas, with waste heat converted to additional electrical energy by steam turbines | E28: ='Control Panel'!$D$6 -> National | F28: ='Inbuilt input data'!AI31 -> 10400 | G28: =Sources!P33 -> ISF estimate | H28: =IF(OR(ISERROR('Input data & costs'!$N32),'Input data & costs'!$N32="TBC",'Input data & costs'!$N32="Insert Data",'Input data & costs'!$N32="n/a" ),"N/A",'Input data & costs'!$N32*100) -> 65 | I28: =IF(Sources!V33="","No data available",Sources!V33) -> Acil Tasman (2008b). Based on average capacity factors of CCGT installed in NEM. | J28: =IF(OR(ISERROR('Input data & costs'!$Q32),'Input data & costs'!$Q32="TBC",'Input data & costs'!$Q32="N/a",'Input data & costs'!$Q32="Insert Data" ),"N/A",'Input data & costs'!$Q32*100) -> 95 | K28: =Sources!W33 -> ISF estimate. Assumes reliable peak operation | L28: =IF(AND(ISNUMBER('Inbuilt input data'!AI31),ISNUMBER('Inbuilt input data'!V31)),'Inbuilt input data'!AI31*'Inbuilt input data'!V31,"No data available") -> 9880 | M28: MWp = MW capacity * Firm peak rating | N28: =IF(ISERROR('Input data & costs'!AG32),"No data available",'Input data & costs'!AG32*1000) -> 59217.6 | O28: =IF(Sources!AK33="","No data available","GWh/yr = MW capacity * capacity factor * 8760/1000") -> GWh/yr = MW capacity * capacity factor * 8760/1000 | P28: =IF(ISERROR('Input data & costs'!J32),"No data available",'Input data & costs'!J32) -> 0.37152 | Q28: =Sources!R33 -> Natural gas emissions of 51.6kg CO2e/GJ from DCCEE (2010). Assumes plant efficiency of 50%, ACIL Tasman (2009 , Table 32). Calculation: 51.6*3.6/0.5/1000 | R28: =IF(ISERROR('Input data & costs'!K32),"No data available",'Input data & costs'!K32) -> 1.275 | S28: =IF(Sources!S33="","No data available",Sources!S33) -> ACIL Tasman (2009). Table 35, 2010-11 costs | T28: =IF(ISERROR('Input data & costs'!L32),"No data available",'Input data & costs'!L32) -> 0.031 | U28: =IF(Sources!T33="","No data available",Sources!T33) -> Acil Tasman (2009). Table 32 | V28: =IF(ISERROR('Input data & costs'!M32),"No data available",'Input data & costs'!M32) -> 44.25 | W28: =IF(Sources!U33="","No data available",Sources!U33) -> Acil Tasman (2009). Table 32. Gas price (user selects in "Control Panel") * Conversion factor (3.6) / Thermal efficiency sent out (50%) + VOM non fuel cost | X28: =IF(OR(ISERROR('Input data & costs'!$R32),'Input data & costs'!$R32="TBC",'Input data & costs'!$R32="Insert Data" ),"N/A",'Input data & costs'!$R32*100) -> 100 | Y28: =IF(Sources!X33="","No data available",Sources!X33) -> ISF estimate. | Z28: =IF(ISERROR('Input data & costs'!I32),"No data available",'Input data & costs'!I32) -> 30 | AA28: =Sources!Q33 -> ACIL Tasman (2009). Table 33 | AB28: 7A | AC28: Centralised Fossil | AD28: Combined Cycle Gas Turbine | AE28: Internal combustion jet turbine, powered by natural gas, with waste heat converted to additional electrical energy by steam turbines | AF28: National | AG28: 10400 | AH28: ISF estimate | AI28: 65 | AJ28: Acil Tasman (2008b). Based on average capacity factors of CCGT installed in NEM. | AK28: 95 | AL28: ISF estimate. Assumes reliable peak operation | AM28: 9880 | AN28: MWp = MW capacity * Firm peak rating | AO28: 59217.6 | AP28: GWh/yr = MW capacity * capacity factor * 8760/1000 | AQ28: 0.37152 | AR28: Natural gas emissions of 51.6kg CO2e/GJ from DCCEE (2010). Assumes plant efficiency of 50%, ACIL Tasman (2009 , Table 32). Calculation: 51.6*3.6/0.5/1000 | AS28: 1.275 | AT28: ACIL Tasman (2009). Table 35, 2010-11 costs | AU28: 0.031 | AV28: Acil Tasman (2009). Table 32 | AW28: 44.25 | AX28: Acil Tasman (2009). Table 32. Gas price (user selects in "Control Panel") * Conversion factor (3.6) / Thermal efficiency sent out (50%) + VOM non fuel cost | AY28: 100 | AZ28: ISF estimate. | BA28: 30 | BB28: ACIL Tasman (2009). Table 33
A29: ='Input data & costs'!B33 -> 7B | B29: ='Input data & costs'!C33 -> Centralised Fossil | C29: ='Input data & costs'!D33 -> Open Cycle Gas Turbine | D29: ='Input data & costs'!F33 -> Internal combustion jet turbine, powered by natural gas | E29: ='Control Panel'!$D$6 -> National | F29: ='Inbuilt input data'!AI32 -> 10400 | G29: =Sources!P34 -> ISF estimate | H29: =IF(OR(ISERROR('Input data & costs'!$N33),'Input data & costs'!$N33="TBC",'Input data & costs'!$N33="Insert Data",'Input data & costs'!$N33="n/a" ),"N/A",'Input data & costs'!$N33*100) -> 5 | I29: =IF(Sources!V34="","No data available",Sources!V34) -> Acil Tasman (2008b). Based on average capacity factors of OCGT installed in NEM. | J29: =IF(OR(ISERROR('Input data & costs'!$Q33),'Input data & costs'!$Q33="TBC",'Input data & costs'!$Q33="N/a",'Input data & costs'!$Q33="Insert Data" ),"N/A",'Input data & costs'!$Q33*100) -> 95 | K29: =Sources!W34 -> ACIL Tasman (2008b) | L29: =IF(AND(ISNUMBER('Inbuilt input data'!AI32),ISNUMBER('Inbuilt input data'!V32)),'Inbuilt input data'!AI32*'Inbuilt input data'!V32,"No data available") -> 9880 | M29: MWp = MW capacity * Firm peak rating | N29: =IF(ISERROR('Input data & costs'!AG33),"No data available",'Input data & costs'!AG33*1000) -> 4555.2 | O29: =IF(Sources!AK34="","No data available","GWh/yr = MW capacity * capacity factor * 8760/1000") -> GWh/yr = MW capacity * capacity factor * 8760/1000 | P29: =IF(ISERROR('Input data & costs'!J33),"No data available",'Input data & costs'!J33) -> 0.5992258065 | Q29: =Sources!R34 -> Natural gas emissions of 51.6kg CO2e/GJ from DCCEE (2010). Assumes plant efficiency of 31% ACIL Tasman (2009 , Table 32). Calculation: 51.6*3.6/0.31/1000 | R29: =IF(ISERROR('Input data & costs'!K33),"No data available",'Input data & costs'!K33) -> 0.918 | S29: =IF(Sources!S34="","No data available",Sources!S34) -> ACIL Tasman (2009). Table 35, 2010-11 costs | T29: =IF(ISERROR('Input data & costs'!L33),"No data available",'Input data & costs'!L33) -> 0.013 | U29: =IF(Sources!T34="","No data available",Sources!T34) -> Acil Tasman (2009). Table 32 | V29: =IF(ISERROR('Input data & costs'!M33),"No data available",'Input data & costs'!M33) -> 77.37741935 | W29: =IF(Sources!U34="","No data available",Sources!U34) -> Acil Tasman (2009). Table 32. Gas price (user selects in "Control Panel") * Conversion factor (3.6) / Thermal efficiency sent out (31%) + VOM non fuel cost | X29: =IF(OR(ISERROR('Input data & costs'!$R33),'Input data & costs'!$R33="TBC",'Input data & costs'!$R33="Insert Data" ),"N/A",'Input data & costs'!$R33*100) -> 100 | Y29: =IF(Sources!X34="","No data available",Sources!X34) -> ISF estimate. | Z29: =IF(ISERROR('Input data & costs'!I33),"No data available",'Input data & costs'!I33) -> 30 | AA29: =Sources!Q34 -> ACIL Tasman (2009). Table 33 | AB29: 7B | AC29: Centralised Fossil | AD29: Open Cycle Gas Turbine | AE29: Internal combustion jet turbine, powered by natural gas | AF29: National | AG29: 10400 | AH29: ISF estimate | AI29: 5 | AJ29: Acil Tasman (2008b). Based on average capacity factors of OCGT installed in NEM. | AK29: 95 | AL29: ACIL Tasman (2008b) | AM29: 9880 | AN29: MWp = MW capacity * Firm peak rating | AO29: 4555.2 | AP29: GWh/yr = MW capacity * capacity factor * 8760/1000 | AQ29: 0.5992258065 | AR29: Natural gas emissions of 51.6kg CO2e/GJ from DCCEE (2010). Assumes plant efficiency of 31% ACIL Tasman (2009 , Table 32). Calculation: 51.6*3.6/0.31/1000 | AS29: 0.918 | AT29: ACIL Tasman (2009). Table 35, 2010-11 costs | AU29: 0.013 | AV29: Acil Tasman (2009). Table 32 | AW29: 77.37741935 | AX29: Acil Tasman (2009). Table 32. Gas price (user selects in "Control Panel") * Conversion factor (3.6) / Thermal efficiency sent out (31%) + VOM non fuel cost | AY29: 100 | AZ29: ISF estimate. | BA29: 30 | BB29: ACIL Tasman (2009). Table 33
A30: ='Input data & costs'!B34 -> 7C | B30: ='Input data & costs'!C34 -> Centralised Fossil | C30: ='Input data & costs'!D34 -> Supercritical black coal (dry cool) | D30: ='Input data & costs'!F34 -> Turbine produces electricity from steam at supercritical temperatures. The steam is produced in a boiler by combusting pulverised black coal. | E30: ='Control Panel'!$D$6 -> National | F30: ='Inbuilt input data'!AI33 -> 10000 | G30: =Sources!P35 -> ISF estimate | H30: =IF(OR(ISERROR('Input data & costs'!$N34),'Input data & costs'!$N34="TBC",'Input data & costs'!$N34="Insert Data",'Input data & costs'!$N34="n/a" ),"N/A",'Input data & costs'!$N34*100) -> 65 | I30: =IF(Sources!V35="","No data available",Sources!V35) -> Based on Australian Electricity System Capacity Factor. | J30: =IF(OR(ISERROR('Input data & costs'!$Q34),'Input data & costs'!$Q34="TBC",'Input data & costs'!$Q34="N/a",'Input data & costs'!$Q34="Insert Data" ),"N/A",'Input data & costs'!$Q34*100) -> 95 | K30: =Sources!W35 -> ISF estimate. Assumes reliable peak operation | L30: =IF(AND(ISNUMBER('Inbuilt input data'!AI33),ISNUMBER('Inbuilt input data'!V33)),'Inbuilt input data'!AI33*'Inbuilt input data'!V33,"No data available") -> 9500 | M30: MWp = MW capacity * Firm peak rating | N30: =IF(ISERROR('Input data & costs'!AG34),"No data available",'Input data & costs'!AG34*1000) -> 56940 | O30: =IF(Sources!AK35="","No data available","GWh/yr = MW capacity * capacity factor * 8760/1000") -> GWh/yr = MW capacity * capacity factor * 8760/1000 | P30: =IF(ISERROR('Input data & costs'!J34),"No data available",'Input data & costs'!J34) -> 0.7275 | Q30: =Sources!R35 -> Black coal emissions of 88.7kg CO2e/GJ from DCCEE (2010). Assumes plant efficiency of 44% ACIL Tasman (2009 , Table 32). Calculation: 88.7*3.6/0.44/1000 | R30: =IF(ISERROR('Input data & costs'!K34),"No data available",'Input data & costs'!K34) -> 2.213 | S30: =IF(Sources!S35="","No data available",Sources!S35) -> ACIL Tasman (2009). Table 35, 2010-11 costs | T30: =IF(ISERROR('Input data & costs'!L34),"No data available",'Input data & costs'!L34) -> 0.048 | U30: =IF(Sources!T35="","No data available",Sources!T35) -> Acil Tasman (2009). Table 32 | V30: =IF(ISERROR('Input data & costs'!M34),"No data available",'Input data & costs'!M34) -> 14.34 | W30: =IF(Sources!U35="","No data available",Sources!U35) -> Acil Tasman (2009). Table 32. Average black coal price (Table 48)*Conversion factor (3.6)/ Thermal efficiency sent out (44%) + VOM non fuel cost | X30: =IF(OR(ISERROR('Input data & costs'!$R34),'Input data & costs'!$R34="TBC",'Input data & costs'!$R34="Insert Data" ),"N/A",'Input data & costs'!$R34*100) -> 100 | Y30: =IF(Sources!X35="","No data available",Sources!X35) -> ISF estimate. | Z30: =IF(ISERROR('Input data & costs'!I34),"No data available",'Input data & costs'!I34) -> 40 | AA30: =Sources!Q35 -> ACIL Tasman (2009). Table 33 | AB30: 7C | AC30: Centralised Fossil | AD30: Supercritical black coal (dry cool) | AE30: Turbine produces electricity from steam at supercritical temperatures. The steam is produced in a boiler by combusting pulverised black coal. | AF30: National | AG30: 10000 | AH30: ISF estimate | AI30: 65 | AJ30: Based on Australian Electricity System Capacity Factor. | AK30: 95 | AL30: ISF estimate. Assumes reliable peak operation | AM30: 9500 | AN30: MWp = MW capacity * Firm peak rating | AO30: 56940 | AP30: GWh/yr = MW capacity * capacity factor * 8760/1000 | AQ30: 0.7275 | AR30: Black coal emissions of 88.7kg CO2e/GJ from DCCEE (2010). Assumes plant efficiency of 44% ACIL Tasman (2009 , Table 32). Calculation: 88.7*3.6/0.44/1000 | AS30: 2.213 | AT30: ACIL Tasman (2009). Table 35, 2010-11 costs | AU30: 0.048 | AV30: Acil Tasman (2009). Table 32 | AW30: 14.34 | AX30: Acil Tasman (2009). Table 32. Average black coal price (Table 48)*Conversion factor (3.6)/ Thermal efficiency sent out (44%) + VOM non fuel cost | AY30: 100 | AZ30: ISF estimate. | BA30: 40 | BB30: ACIL Tasman (2009). Table 33
A31: ='Input data & costs'!B35 -> 7D | B31: ='Input data & costs'!C35 -> Centralised Fossil | C31: ='Input data & costs'!D35 -> Supercritical brown coal (dry cool) | D31: ='Input data & costs'!F35 -> Turbine produces electricity from steam at supercritical temperatures. The steam is produced in a boiler by combusting pulverised brown coal. | E31: ='Control Panel'!$D$6 -> National | F31: ='Inbuilt input data'!AI34 -> 4500 | G31: =Sources!P36 -> ISF estimate | H31: =IF(OR(ISERROR('Input data & costs'!$N35),'Input data & costs'!$N35="TBC",'Input data & costs'!$N35="Insert Data",'Input data & costs'!$N35="n/a" ),"N/A",'Input data & costs'!$N35*100) -> 65 | I31: =IF(Sources!V36="","No data available",Sources!V36) -> Based on Australian Electricity System Capacity Factor. | J31: =IF(OR(ISERROR('Input data & costs'!$Q35),'Input data & costs'!$Q35="TBC",'Input data & costs'!$Q35="N/a",'Input data & costs'!$Q35="Insert Data" ),"N/A",'Input data & costs'!$Q35*100) -> 95 | K31: =Sources!W36 -> ISF estimate. Assumes reliable peak operation | L31: =IF(AND(ISNUMBER('Inbuilt input data'!AI34),ISNUMBER('Inbuilt input data'!V34)),'Inbuilt input data'!AI34*'Inbuilt input data'!V34,"No data available") -> 4275 | M31: MWp = MW capacity * Firm peak rating | N31: =IF(ISERROR('Input data & costs'!AG35),"No data available",'Input data & costs'!AG35*1000) -> 25623 | O31: =IF(Sources!AK36="","No data available","GWh/yr = MW capacity * capacity factor * 8760/1000") -> GWh/yr = MW capacity * capacity factor * 8760/1000 | P31: =IF(ISERROR('Input data & costs'!J35),"No data available",'Input data & costs'!J35) -> 0.78 | Q31: =Sources!R36 -> Brown coal emissions of 93.2kg CO2e/GJ from DCCEE (2010). Assumes plant efficiency of 43% (RWE power 2011). Calculation: 93.2*3.6/0.43/1000 | R31: =IF(ISERROR('Input data & costs'!K35),"No data available",'Input data & costs'!K35) -> 3.48 | S31: =IF(Sources!S36="","No data available",Sources!S36) -> Based on upfront costs of 1100MW 43% thermal efficient air-cooled brown coal plant in Germany (RWE power 2011). Converted to AUD. | T31: =IF(ISERROR('Input data & costs'!L35),"No data available",'Input data & costs'!L35) -> 0.055 | U31: =IF(Sources!T36="","No data available",Sources!T36) -> Acil Tasman (2009). Table 32 | V31: =IF(ISERROR('Input data & costs'!M35),"No data available",'Input data & costs'!M35) -> 6.1 | W31: =IF(Sources!U36="","No data available",Sources!U36) -> Acil Tasman (2009). Table 32. Average brown coal price ($0.58/GJ,Table 48)*Conversion factor (3.6)/ Thermal efficiency sent out (43%) + VOM non fuel cost ($1.25/MWh). Calculation = 0.58 | X31: =IF(OR(ISERROR('Input data & costs'!$R35),'Input data & costs'!$R35="TBC",'Input data & costs'!$R35="Insert Data" ),"N/A",'Input data & costs'!$R35*100) -> 100 | Y31: =IF(Sources!X36="","No data available",Sources!X36) -> ISF estimate. | Z31: =IF(ISERROR('Input data & costs'!I35),"No data available",'Input data & costs'!I35) -> 40 | AA31: =Sources!Q36 -> ACIL Tasman (2009). Table 33 | AB31: 7D | AC31: Centralised Fossil | AD31: Supercritical brown coal (dry cool) | AE31: Turbine produces electricity from steam at supercritical temperatures. The steam is produced in a boiler by combusting pulverised brown coal. | AF31: National | AG31: 4500 | AH31: ISF estimate | AI31: 65 | AJ31: Based on Australian Electricity System Capacity Factor. | AK31: 95 | AL31: ISF estimate. Assumes reliable peak operation | AM31: 4275 | AN31: MWp = MW capacity * Firm peak rating | AO31: 25623 | AP31: GWh/yr = MW capacity * capacity factor * 8760/1000 | AQ31: 0.78 | AR31: Brown coal emissions of 93.2kg CO2e/GJ from DCCEE (2010). Assumes plant efficiency of 43% (RWE power 2011). Calculation: 93.2*3.6/0.43/1000 | AS31: 3.48 | AT31: Based on upfront costs of 1100MW 43% thermal efficient air-cooled brown coal plant in Germany (RWE power 2011). Converted to AUD. | AU31: 0.055 | AV31: Acil Tasman (2009). Table 32 | AW31: 6.1 | AX31: Acil Tasman (2009). Table 32. Average brown coal price ($0.58/GJ,Table 48)*Conversion factor (3.6)/ Thermal efficiency sent out (43%) + VOM non fuel cost ($1.25/MWh). Calculation = 0.58 | AY31: 100 | AZ31: ISF estimate. | BA31: 40 | BB31: ACIL Tasman (2009). Table 33
A32: ='Input data & costs'!B36 -> 7E | B32: ='Input data & costs'!C36 -> Centralised Fossil | C32: ='Input data & costs'!D36 -> Improved power station efficiency - black coal | D32: ='Input data & costs'!F36 -> Various measures to improve power station efficiency of existing black coal fired power stations. | E32: ='Control Panel'!$D$6 -> National | F32: ='Inbuilt input data'!AI35 -> 288 | G32: =Sources!P37 -> Sinclair Knight and Mertz (2000). Calculated from 2% CO2 reduction figure, applied to existing black coal capacity. | H32: =IF(OR(ISERROR('Input data & costs'!$N36),'Input data & costs'!$N36="TBC",'Input data & costs'!$N36="Insert Data",'Input data & costs'!$N36="n/a" ),"N/A",'Input data & costs'!$N36*100) -> 65 | I32: =IF(Sources!V37="","No data available",Sources!V37) -> Based on Australian Electricity System Capacity Factor. | J32: =IF(OR(ISERROR('Input data & costs'!$Q36),'Input data & costs'!$Q36="TBC",'Input data & costs'!$Q36="N/a",'Input data & costs'!$Q36="Insert Data" ),"N/A",'Input data & costs'!$Q36*100) -> 95 | K32: =Sources!W37 -> ISF estimate. Assumes reliable peak operation | L32: =IF(AND(ISNUMBER('Inbuilt input data'!AI35),ISNUMBER('Inbuilt input data'!V35)),'Inbuilt input data'!AI35*'Inbuilt input data'!V35,"No data available") -> 273.6 | M32: MWp = MW capacity * Firm peak rating | N32: =IF(ISERROR('Input data & costs'!AG36),"No data available",'Input data & costs'!AG36*1000) -> 1639.872 | O32: =IF(Sources!AK37="","No data available","GWh/yr = MW capacity * capacity factor * 8760/1000") -> GWh/yr = MW capacity * capacity factor * 8760/1000 | P32: =IF(ISERROR('Input data & costs'!J36),"No data available",'Input data & costs'!J36) -> 0 | Q32: =Sources!R37 -> Each additional unit of energy generated produces zero emissions | R32: =IF(ISERROR('Input data & costs'!K36),"No data available",'Input data & costs'!K36) -> 0.76 | S32: =IF(Sources!S37="","No data available",Sources!S37) -> Sinclair Knight and Mertz (2000). See notes Table 4.1 | T32: =IF(ISERROR('Input data & costs'!L36),"No data available",'Input data & costs'!L36) -> 0 | U32: =IF(Sources!T37="","No data available",Sources!T37) -> Sinclair Knight and Mertz (2000). No FOM costs | V32: =IF(ISERROR('Input data & costs'!M36),"No data available",'Input data & costs'!M36) -> 0 | W32: =IF(Sources!U37="","No data available",Sources!U37) -> Sinclair Knight and Mertz (2000). No VOM costs | X32: =IF(OR(ISERROR('Input data & costs'!$R36),'Input data & costs'!$R36="TBC",'Input data & costs'!$R36="Insert Data" ),"N/A",'Input data & costs'!$R36*100) -> 100 | Y32: =IF(Sources!X37="","No data available",Sources!X37) -> ISF estimate. | Z32: =IF(ISERROR('Input data & costs'!I36),"No data available",'Input data & costs'!I36) -> 25 | AA32: =Sources!Q37 -> Sinclair Knight and Mertz (2000). See notes Table 4.1 | AB32: 7E | AC32: Centralised Fossil | AD32: Improved power station efficiency - black coal | AE32: Various measures to improve power station efficiency of existing black coal fired power stations. | AF32: National | AG32: 288 | AH32: Sinclair Knight and Mertz (2000). Calculated from 2% CO2 reduction figure, applied to existing black coal capacity. | AI32: 65 | AJ32: Based on Australian Electricity System Capacity Factor. | AK32: 95 | AL32: ISF estimate. Assumes reliable peak operation | AM32: 273.6 | AN32: MWp = MW capacity * Firm peak rating | AO32: 1639.872 | AP32: GWh/yr = MW capacity * capacity factor * 8760/1000 | AQ32: 0 | AR32: Each additional unit of energy generated produces zero emissions | AS32: 0.76 | AT32: Sinclair Knight and Mertz (2000). See notes Table 4.1 | AU32: 0 | AV32: Sinclair Knight and Mertz (2000). No FOM costs | AW32: 0 | AX32: Sinclair Knight and Mertz (2000). No VOM costs | AY32: 100 | AZ32: ISF estimate. | BA32: 25 | BB32: Sinclair Knight and Mertz (2000). See notes Table 4.1
A33: ='Input data & costs'!B37 -> 7F | B33: ='Input data & costs'!C37 -> Centralised Fossil | C33: ='Input data & costs'!D37 -> Improved power station efficiency - brown coal | D33: ='Input data & costs'!F37 -> Various measures to improve power station efficiency of existing brown coal fired power stations. | E33: ='Control Panel'!$D$6 -> National | F33: ='Inbuilt input data'!AI36 -> 229 | G33: =Sources!P38 -> Sinclair Knight and Mertz (2000). Calculated from 3.3% CO2 reduction figure, applied to existing brown coal capacity. | H33: =IF(OR(ISERROR('Input data & costs'!$N37),'Input data & costs'!$N37="TBC",'Input data & costs'!$N37="Insert Data",'Input data & costs'!$N37="n/a" ),"N/A",'Input data & costs'!$N37*100) -> 65 | I33: =IF(Sources!V38="","No data available",Sources!V38) -> Based on Australian Electricity System Capacity Factor. | J33: =IF(OR(ISERROR('Input data & costs'!$Q37),'Input data & costs'!$Q37="TBC",'Input data & costs'!$Q37="N/a",'Input data & costs'!$Q37="Insert Data" ),"N/A",'Input data & costs'!$Q37*100) -> 95 | K33: =Sources!W38 -> ISF estimate. Assumes reliable peak operation | L33: =IF(AND(ISNUMBER('Inbuilt input data'!AI36),ISNUMBER('Inbuilt input data'!V36)),'Inbuilt input data'!AI36*'Inbuilt input data'!V36,"No data available") -> 217.55 | M33: MWp = MW capacity * Firm peak rating | N33: =IF(ISERROR('Input data & costs'!AG37),"No data available",'Input data & costs'!AG37*1000) -> 1303.926 | O33: =IF(Sources!AK38="","No data available","GWh/yr = MW capacity * capacity factor * 8760/1000") -> GWh/yr = MW capacity * capacity factor * 8760/1000 | P33: =IF(ISERROR('Input data & costs'!J37),"No data available",'Input data & costs'!J37) -> 0 | Q33: =Sources!R38 -> Each additional unit of energy generated produces zero emissions | R33: =IF(ISERROR('Input data & costs'!K37),"No data available",'Input data & costs'!K37) -> 1.11 | S33: =IF(Sources!S38="","No data available",Sources!S38) -> Sinclair Knight and Mertz (2000). See notes Table 4.1 | T33: =IF(ISERROR('Input data & costs'!L37),"No data available",'Input data & costs'!L37) -> 0 | U33: =IF(Sources!T38="","No data available",Sources!T38) -> Sinclair Knight and Mertz (2000). No FOM costs | V33: =IF(ISERROR('Input data & costs'!M37),"No data available",'Input data & costs'!M37) -> 0 | W33: =IF(Sources!U38="","No data available",Sources!U38) -> Sinclair Knight and Mertz (2000). No VOM costs | X33: =IF(OR(ISERROR('Input data & costs'!$R37),'Input data & costs'!$R37="TBC",'Input data & costs'!$R37="Insert Data" ),"N/A",'Input data & costs'!$R37*100) -> 100 | Y33: =IF(Sources!X38="","No data available",Sources!X38) -> ISF estimate. | Z33: =IF(ISERROR('Input data & costs'!I37),"No data available",'Input data & costs'!I37) -> 25 | AA33: =Sources!Q38 -> Sinclair Knight and Mertz (2000). See notes Table 4.1 | AB33: 7F | AC33: Centralised Fossil | AD33: Improved power station efficiency - brown coal | AE33: Various measures to improve power station efficiency of existing brown coal fired power stations. | AF33: National | AG33: 229 | AH33: Sinclair Knight and Mertz (2000). Calculated from 3.3% CO2 reduction figure, applied to existing brown coal capacity. | AI33: 65 | AJ33: Based on Australian Electricity System Capacity Factor. | AK33: 95 | AL33: ISF estimate. Assumes reliable peak operation | AM33: 217.55 | AN33: MWp = MW capacity * Firm peak rating | AO33: 1303.926 | AP33: GWh/yr = MW capacity * capacity factor * 8760/1000 | AQ33: 0 | AR33: Each additional unit of energy generated produces zero emissions | AS33: 1.11 | AT33: Sinclair Knight and Mertz (2000). See notes Table 4.1 | AU33: 0 | AV33: Sinclair Knight and Mertz (2000). No FOM costs | AW33: 0 | AX33: Sinclair Knight and Mertz (2000). No VOM costs | AY33: 100 | AZ33: ISF estimate. | BA33: 25 | BB33: Sinclair Knight and Mertz (2000). See notes Table 4.1
A34: ='Input data & costs'!B38 -> 7G | B34: ='Input data & costs'!C38 -> Centralised Fossil | C34: ='Input data & costs'!D38 -> IGCC with CCS | D34: ='Input data & costs'!F38 -> Internal gasifcation combined cycle technology with carbon capture and storage. Black coal is gasified and combusted to generate electricity, and emissions are pressurised and pumped into underground geologic features. | E34: ='Control Panel'!$D$6 -> National | F34: ='Inbuilt input data'!AI37 -> 1030 | G34: =Sources!P39 -> ISF Estimate, assume technology is first available in 2015 | H34: =IF(OR(ISERROR('Input data & costs'!$N38),'Input data & costs'!$N38="TBC",'Input data & costs'!$N38="Insert Data",'Input data & costs'!$N38="n/a" ),"N/A",'Input data & costs'!$N38*100) -> 65 | I34: =IF(Sources!V39="","No data available",Sources!V39) -> Based on Australian Electricity System Capacity Factor. | J34: =IF(OR(ISERROR('Input data & costs'!$Q38),'Input data & costs'!$Q38="TBC",'Input data & costs'!$Q38="N/a",'Input data & costs'!$Q38="Insert Data" ),"N/A",'Input data & costs'!$Q38*100) -> 95 | K34: =Sources!W39 -> ISF estimate. Assumes reliable peak operation | L34: =IF(AND(ISNUMBER('Inbuilt input data'!AI37),ISNUMBER('Inbuilt input data'!V37)),'Inbuilt input data'!AI37*'Inbuilt input data'!V37,"No data available") -> 978.5 | M34: MWp = MW capacity * Firm peak rating | N34: =IF(ISERROR('Input data & costs'!AG38),"No data available",'Input data & costs'!AG38*1000) -> 5864.82 | O34: =IF(Sources!AK39="","No data available","GWh/yr = MW capacity * capacity factor * 8760/1000") -> GWh/yr = MW capacity * capacity factor * 8760/1000 | P34: =IF(ISERROR('Input data & costs'!J38),"No data available",'Input data & costs'!J38) -> 0.1451454545 | Q34: =Sources!R39 -> Black coal emissions of 88.7kg CO2e/GJ from DCCEE (2010). Assumes plant efficiency of 33%. (ACIL Tasman 2009 , Table 32). CCS assumed to be 85%. Calculation: 88.7*3.6/0.33/1000*0.15 | R34: =IF(ISERROR('Input data & costs'!K38),"No data available",'Input data & costs'!K38) -> 8.11 | S34: =IF(Sources!S39="","No data available",Sources!S39) -> Based on 530MW planned Zerogen plant (QLD), scheduled for 2015 opening. | T34: =IF(ISERROR('Input data & costs'!L38),"No data available",'Input data & costs'!L38) -> 0.075 | U34: =IF(Sources!T39="","No data available",Sources!T39) -> Acil Tasman (2009). Table 32 | V34: =IF(ISERROR('Input data & costs'!M38),"No data available",'Input data & costs'!M38) -> 21.52454545 | W34: =IF(Sources!U39="","No data available",Sources!U39) -> Acil Tasman (2009). Table 32. Average black coal price (Table 48)*Conversion factor (3.6)/ Thermal efficiency sent out (33%) + VOM non fuel cost | X34: =IF(OR(ISERROR('Input data & costs'!$R38),'Input data & costs'!$R38="TBC",'Input data & costs'!$R38="Insert Data" ),"N/A",'Input data & costs'!$R38*100) -> 100 | Y34: =IF(Sources!X39="","No data available",Sources!X39) -> ISF estimate. | Z34: =IF(ISERROR('Input data & costs'!I38),"No data available",'Input data & costs'!I38) -> 30 | AA34: =Sources!Q39 -> ACIL Tasman (2009). Table 33 | AB34: 7G | AC34: Centralised Fossil | AD34: IGCC with CCS | AE34: Internal gasifcation combined cycle technology with carbon capture and storage. Black coal is gasified and combusted to generate electricity, and emissions are pressurised and pumped into underground geologic features. | AF34: National | AG34: 1030 | AH34: ISF Estimate, assume technology is first available in 2015 | AI34: 65 | AJ34: Based on Australian Electricity System Capacity Factor. | AK34: 95 | AL34: ISF estimate. Assumes reliable peak operation | AM34: 978.5 | AN34: MWp = MW capacity * Firm peak rating | AO34: 5864.82 | AP34: GWh/yr = MW capacity * capacity factor * 8760/1000 | AQ34: 0.1451454545 | AR34: Black coal emissions of 88.7kg CO2e/GJ from DCCEE (2010). Assumes plant efficiency of 33%. (ACIL Tasman 2009 , Table 32). CCS assumed to be 85%. Calculation: 88.7*3.6/0.33/1000*0.15 | AS34: 8.11 | AT34: Based on 530MW planned Zerogen plant (QLD), scheduled for 2015 opening. | AU34: 0.075 | AV34: Acil Tasman (2009). Table 32 | AW34: 21.52454545 | AX34: Acil Tasman (2009). Table 32. Average black coal price (Table 48)*Conversion factor (3.6)/ Thermal efficiency sent out (33%) + VOM non fuel cost | AY34: 100 | AZ34: ISF estimate. | BA34: 30 | BB34: ACIL Tasman (2009). Table 33

Sheet DCODE
B3: D-CODE
B4: Description and Costs of Decentralised Energy Model
B5: Developed by the Institute for Sustainable Futures, University of Technology Sydney, as part of the CSIRO Intelligent Grid Research Cluster, July 2011

Sheet Introduction

Sheet Control Panel
B2: Control Panel
B3: Instructions: Choose the model parameters by manually adjusting them. Roll mouse over cells for more information
B4: # | C4: Parameter | D4: Selection (click cell to activate dropdown box) | E4: Information
B5: Model parameters | AD5: 0 | AN5: 0
B6: P1 | C6: Region of analysis | D6: National | E6: info | I6: 5 | AD6: 0 | AN6: 0
B7: P2 | C7: Analysis year | D7: 2020/21 | E7: info | AD7: 0 | AN7: 0
B8: P3 | C8: To | D8: 2010/11 | E8: TO DO | AD8: 0
B9: P3 | C9: Weighted Av Cost of Capital (%) | D9: 0.07 | E9: info | AD9: 0
B10: P4 | C10: Default Network Capital Cost ($M/MW/y) | D10: =SUMPRODUCT('Input data & costs'!BL7:BT7,'Input data & costs'!AI6:AQ6) -> 0.223 | E10: info | AD10: 0
B11: P5 | C11: Standard Emissions Rate (tCO2e/ MWh) | D11: ='Input data & costs'!BV8 -> 0.92 | E11: info | AD11: 0
B12: P6 | C12: Cost of CO2 ($/tCO2-e) | D12: 23 | E12: info | AD12: 0
B13: P7 | C13: Wholesale Gas price ($/GJ) | D13: 6 | E13: info | AD13: 0
B14: P8 | C14: Capacity factors of modelled capacity | D14: Maximum | E14: info | AD14: 0
AD15: 0
B16: Optimum Mix Analysis (OMA) parameters | AD16: 0
C17: Run OMA? | D17: Yes | E17: info | AD17: 0
B18: P9 | C18: Renewable Energy Target (For selected region only) | D18: 0.2 | E18: info | AD18: 0
B19: P10 | C19: Existing supply retirements | D19: Option 1 - Planned retirements occur | E19: info | AD19: 0
B20: P11 | C20: Capacity factors of existing supply | D20: Held constant | E20: info | AD20: 0
B21: P12 | C21: Demand growth - Energy (GWh) | D21: Medium | E21: info | AD21: 0
B22: P13 | C22: Demand growth - Peak power (MWp) | D22: Medium | E22: info | AD22: 0
AD23: 0
AD24: 0
AD25: 0
AD26: 0
AD27: 0
AD28: 0
AD29: 0
AD30: 0
AD31: 0
AD32: 0
D33: Dropdown box hidden cells | AD33: 0
C34: ID | D34: Cells | AD34: 0
C35: P1 | D35: National | E35: NEM | F35: NSW (inc. ACT) | G35: Victoria | H35: Queensland | I35: South Australia | J35: Tasmania | K35: Western Australia | L35: Northern Territory | M35: Custom | AD35: 0
C36: P2 | D36: ='Generation data'!A18 -> 2012/13 | E36: ='Generation data'!A19 -> 2013/14 | F36: ='Generation data'!A20 -> 2014/15 | G36: ='Generation data'!A21 -> 2015/16 | H36: ='Generation data'!A22 -> 2016/17 | I36: ='Generation data'!A23 -> 2017/18 | J36: ='Generation data'!A24 -> 2018/19 | K36: ='Generation data'!A25 -> 2019/20 | L36: ='Generation data'!A26 -> 2020/21 | AD36: 0
C37: P3 | D37: 2010/11 | E37: 2011/12 | AD37: 0
C38: P8 | D38: 4 | E38: 6 | F38: 8 | AD38: 0
C39: P9 | D39: Typical | E39: Maximum | AD39: 0
C40: P10, P11 | D40: Low | E40: Medium | F40: High | AD40: 0
C41: P12 | D41: No RET | E41: 0.1 | F41: 0.2 | G41: 0.3 | AD41: 0
C42: P13 | D42: Option 1 - Planned retirements occur | E42: Option 2 - Coal plants retire after 40 years operation | F42: Option 3 - Coal plants retire after 30 years operation | G42: Option 4 | H42: Option 5 | AD42: 0
C43: P14 | D43: Held constant | E43: Ramped up in response to energy demand growth (where possible) | AD43: 0
C44: P15 | D44: Yes | E44: No | AD44: 0
AD45: 0
D46: Year utilisation | AD46: 0
F47: =IF(D36=$D$7,1,0) -> 0 | G47: 0 | H47: 0 | I47: 0 | J47: 0 | K47: 0 | L47: 0 | M47: 0 | N47: 1
D48: 2010 | E48: =D48+1 -> 2011 | F48: =E48+1 -> 2012 | G48: 2013 | H48: 2014 | I48: 2015 | J48: 2016 | K48: 2017 | L48: 2018 | M48: 2019 | N48: 2020
C49: Analysis year:
D51: Base year: | E51: 2010

Sheet Select technologies
B2: Select Technologies
C3: All technologies | D3: info
B5: No. | C5: Technology / program | D5: Tick to include | F5: Description | G5: Reference cells
B6: 1. Energy Efficiency | G6: For CheckBox_TechDefault to cut/paste into check box linked cells (column E) | H6: To activate cell change macro which runs CheckBoc_TechDefault macro | I6: All technologies | J6: Big Green | K6: Distributed Generation | L6: Distributed Efficiency/ Generation & Load Mgmt | M6: Energy Efficiency | N6: Centralised Fossil Fuel | O6: User select
B7: 1A | C7: Industrial Energy Efficiency | E7: TRUE | F7: A variety of energy efficiency measures undertaken by industrial energy users across multiple industries. | G7: =IF('Input data & costs'!BH6=1,TRUE,FALSE) -> TRUE | H7: =C3 -> All technologies
B8: 1B | C8: Commercial Energy Efficiency | E8: TRUE | F8: Energy efficiency measures undertaken by commercial energy users in areas including: the Energy Star program, lighting, heating and cooling, pumping and air handling. | G8: =IF('Input data & costs'!BH7=1,TRUE,FALSE) -> TRUE
B9: 1C | C9: Residential Energy Efficiency | E9: TRUE | F9: Cost effective reduction in electricity consumption through improvements to residential space heating and cooling, insulation and draught sealing, lighting, refrigeration, hot water demand reduction. | G9: =IF('Input data & costs'!BH8=1,TRUE,FALSE) -> TRUE
B10: 1D | C10: Residential Hot Water | E10: TRUE | F10: Converting electric domestic hot water systems to electric boosted solar, heat pump and gas. | G10: =IF('Input data & costs'!BH9=1,TRUE,FALSE) -> TRUE
B11: 2. Peak Demand Management
B12: 2A | C12: Commercial & Industrial Demand Management | E12: TRUE | F12: Commercial and industrial customers are provided incentives at times of peak demand to shed or interrupt their load or shift their load to times of lesser demand. | G12: =IF('Input data & costs'!BH10=1,TRUE,FALSE) -> TRUE
B13: 2B | C13: Residential Demand Management | E13: TRUE | F13: Residential customers are provided with information and/or incentives to shed or interrupt their load peak demand or shift their load times of lesser demand. Achieved through widespread dynamic time of use pricing (as opposed to static TOU pricing), combined with moderate adoption of programmable communicable thermostats (PCT). | G13: =IF('Input data & costs'!BH11=1,TRUE,FALSE) -> TRUE
B14: 2C | C14: Commercial & Industrial Standby Generation | E14: TRUE | F14: Commercial and industrial customers are provided incentives to turn on their standby generators during demand peaks. | G14: =IF('Input data & costs'!BH12=1,TRUE,FALSE) -> TRUE
B15: 3. Cogeneration and trigeneration
B16: 3A | C16: Industrial Cogeneration | E16: TRUE | F16: Gas turbine at an industrial facility, where in addition to using the electricity generated, the useful heat is used for industrial heating loads. | G16: =IF('Input data & costs'!BH13=1,TRUE,FALSE) -> TRUE
B17: 3B | C17: Commercial Trigeneration | E17: TRUE | F17: Gas turbine at a commercial site, where in addition to using the electricity generated, the useful heat is used for heating loads. D-CODE data includes the electricity generation component and the demand reduction component. | G17: =IF('Input data & costs'!BH14=1,TRUE,FALSE) -> TRUE
B18: 3C | C18: Residential Cogeneration | E18: TRUE | F18: Gas turbine in a residential area, where in addition to using the electricity generated, the useful heat is used for heating loads. D-CODE data includes the electricity generation component and the demand reduction component. | G18: =IF('Input data & costs'!BH15=1,TRUE,FALSE) -> TRUE
B19: 4. Bioenergy
B20: 4A | C20: Refuse Derived Fuel (RDF) to energy | E20: TRUE | F20: Electricity generated from non-recyclable wood waste, paper and plastic | G20: =IF('Input data & costs'!BH16=1,TRUE,FALSE) -> TRUE
B21: 4B | C21: Agricultural Biogas | E21: TRUE | F21: Electricity generated by burning biogas which is produced from agricultural sources, such as digesting livestock waste. | G21: =IF('Input data & costs'!BH17=1,TRUE,FALSE) -> TRUE
B22: 4C | C22: Biomass Plant | E22: TRUE | F22: Electricity generated by burning biomass, specifically forestry and sawmill residues and energy crops such as camphor laurel, oil mallee, eucalyptus and Enercane. | G22: =IF('Input data & costs'!BH18=1,TRUE,FALSE) -> TRUE
B23: 4D | C23: Biomass Cogen | E23: TRUE | F23: Burning biomass, specifically sugar cane bagasse, where in addition to using the electricity generated, the useful heat is used for heat processing. | G23: =IF('Input data & costs'!BH19=1,TRUE,FALSE) -> TRUE
B24: 4E | C24: Landfill gas | E24: TRUE | F24: Energy from capturing and burning methane released from decomposition of landfill waste. | G24: =IF('Input data & costs'!BH20=1,TRUE,FALSE) -> TRUE
B25: 4F | C25: Sewage gas (Municipal water) | E25: TRUE | F25: Energy from capturing and burning gas collected from sewage treatment plant bio-digesters. | G25: =IF('Input data & costs'!BH21=1,TRUE,FALSE) -> TRUE
B26: 5. Renewables
B27: 5A | C27: Improved Hydro Efficiency | E27: TRUE | F27: Various measures to improve the efficiency of existing hydroelectric power stations. | G27: =IF('Input data & costs'!BH22=1,TRUE,FALSE) -> TRUE
B28: 5B | C28: Wind (offshore) | E28: TRUE | F28: Energy from wind is harnessed through large grid connected turbines, located up to several kilometres offshore. | G28: =IF('Input data & costs'!BH23=1,TRUE,FALSE) -> TRUE
B29: 5C | C29: Wind (onshore) | E29: TRUE | F29: Energy from wind is harnessed through large grid connected turbines, located on land. | G29: =IF('Input data & costs'!BH24=1,TRUE,FALSE) -> TRUE
B30: 5D | C30: Solar Thermal (with storage) | E30: TRUE | F30: Mirrors concentrate energy from the sun onto a focal point or tube filled with liquid. This liquid produces steam to drive a turbine. Salt cells can store heat to provide electricity on demand. | G30: =IF('Input data & costs'!BH25=1,TRUE,FALSE) -> TRUE
B31: 5E | C31: Concentrating solar PV | E31: TRUE | F31: Mirrors concentrate and reflect sunlight onto high efficiency solar photovoltaic cells to produce electricity. | G31: =IF('Input data & costs'!BH26=1,TRUE,FALSE) -> TRUE
B32: 5F | C32: Solar PV (grid connected) | E32: TRUE | F32: Energy from the sun is harnessed through grid connected photovoltaic power systems. | G32: =IF('Input data & costs'!BH27=1,TRUE,FALSE) -> TRUE
B33: 5G | C33: Geothermal - Hot Dry Rock | E33: TRUE | F33: Heat stored in low permeability rock below the earth's surface is harnessed by circulating water through drilled or naturally occurring fissures and using the returned superheated steam to generate electricity. | G33: =IF('Input data & costs'!BH28=1,TRUE,FALSE) -> TRUE
B34: 5H | C34: Ocean (tidal) | E34: TRUE | F34: Large turbines are positioned underwater to take advantage of regular tidal flows (wave energy is not included in this analysis). | G34: =IF('Input data & costs'!BH29=1,TRUE,FALSE) -> TRUE
B35: 6. Energy Storage
B36: 6A | C36: Large scale batteries | E36: TRUE | F36: Sodium Sulphur Battery - High Temp battery (molten sulphur and molten sodium). Suitable for applications between 10 and 100MW. Stand alone units used for peak shaving and often used to balance loads of power plants such as wind | G36: =IF('Input data & costs'!BH30=1,TRUE,FALSE) -> TRUE
B37: 6B | C37: Small scale batteries | E37: TRUE | F37: Flow Batteries (Vanadium Redox, Zinc Bromine). Similar in operation to hydrogen fuel cell. Suitable for applications between 100kW and 10MW normally in association with peaky power plants such as wind or solar | G37: =IF('Input data & costs'!BH31=1,TRUE,FALSE) -> TRUE
B38: 7. Centralised Fossil
B39: 7A | C39: Combined Cycle Gas Turbine | E39: TRUE | F39: Internal combustion jet turbine, powered by natural gas, with waste heat converted to additional electrical energy by steam turbines | G39: =IF('Input data & costs'!BH32=1,TRUE,FALSE) -> TRUE
B40: 7B | C40: Open Cycle Gas Turbine | E40: TRUE | F40: Internal combustion jet turbine, powered by natural gas | G40: =IF('Input data & costs'!BH33=1,TRUE,FALSE) -> TRUE
B41: 7C | C41: Supercritical black coal (dry cool) | E41: TRUE | F41: Turbine produces electricity from steam at supercritical temperatures. The steam is produced in a boiler by combusting pulverised black coal. | G41: =IF('Input data & costs'!BH34=1,TRUE,FALSE) -> TRUE
B42: 7D | C42: Supercritical brown coal (dry cool) | E42: TRUE | F42: Turbine produces electricity from steam at supercritical temperatures. The steam is produced in a boiler by combusting pulverised brown coal. | G42: =IF('Input data & costs'!BH35=1,TRUE,FALSE) -> TRUE
B43: 7E | C43: Improved power station efficiency - black coal | E43: TRUE | F43: Various measures to improve power station efficiency of existing black coal fired power stations. | G43: =IF('Input data & costs'!BH36=1,TRUE,FALSE) -> TRUE
B44: 7F | C44: Improved power station efficiency - brown coal | E44: TRUE | F44: Various measures to improve power station efficiency of existing brown coal fired power stations. | G44: =IF('Input data & costs'!BH37=1,TRUE,FALSE) -> TRUE
B45: 7G | C45: IGCC with CCS | E45: TRUE | F45: Internal gasifcation combined cycle technology with carbon capture and storage. Black coal is gasified and combusted to generate electricity, and emissions are pressurised and pumped into underground geologic features. | G45: =IF('Input data & costs'!BH38=1,TRUE,FALSE) -> TRUE
B46: 8. Insert technologies To insert a technology, tick boxes and enter names below
B47: 8A | C47: Enter name here | E47: FALSE | F47: Enter description here (optional) | G47: =IF('Input data & costs'!BH39=1,TRUE,FALSE) -> FALSE
B48: 8B | C48: Enter name here | E48: FALSE | F48: Enter description here (optional) | G48: =IF('Input data & costs'!BH40=1,TRUE,FALSE) -> FALSE
B49: 8C | C49: Enter name here | E49: FALSE | F49: Enter description here (optional) | G49: =IF('Input data & costs'!BH41=1,TRUE,FALSE) -> FALSE
B50: 8D | C50: Enter name here | E50: FALSE | F50: Enter description here (optional) | G50: =IF('Input data & costs'!BH42=1,TRUE,FALSE) -> FALSE
B51: 8E | C51: Enter name here | E51: FALSE | F51: Enter description here (optional) | G51: =IF('Input data & costs'!BH43=1,TRUE,FALSE) -> FALSE
B52: 8F | C52: Enter name here | E52: FALSE | F52: Enter description here (optional) | G52: =IF('Input data & costs'!BH44=1,TRUE,FALSE) -> FALSE
B53: 8G | C53: Enter name here | E53: FALSE | F53: Enter description here (optional) | G53: =IF('Input data & costs'!BH45=1,TRUE,FALSE) -> FALSE
B54: 8H | C54: Enter name here | E54: FALSE | F54: Enter description here (optional) | G54: =IF('Input data & costs'!BH46=1,TRUE,FALSE) -> FALSE
B55: 8I | C55: Enter name here | E55: FALSE | F55: Enter description here (optional) | G55: =IF('Input data & costs'!BH47=1,TRUE,FALSE) -> FALSE

Sheet Demand data (hidden)
A1: Demand Projections
A2: Source: AEMO (2010) Statement of Opportunities | N2: Other parameters
B3: MWp demand selection table | N3: Year: | O3: ='Control Panel'!D7 -> 2020/21
B4: National | C4: NEM | D4: NSW (inc. ACT) | E4: Victoria | F4: Queensland | G4: South Australia | H4: Tasmania | I4: Western Australia | J4: Northern Territory | K4: Selected region: | L4: ='Control Panel'!D6 -> National
B5: =F16 -> 61925.43258 | C5: =M16 -> 52498.15565 | D5: =T16 -> 19655.72739 | E5: =AA16 -> 13165.20198 | F5: =AH16 -> 15595.98262 | G5: =AO16 -> 4081.243655 | H5: =AV16 -> 2243.076923 | I5: =BC16 -> 6689 | J5: =BJ16 -> 495.2 | K5: MWp demand: | L5: =SUMPRODUCT(B5:J5,B6:J6) -> 61925.43258 | N5: Growth rate: | O5: ='Control Panel'!$D$22 -> Medium
B6: =IF(B4=$L$4,1,0) -> 1 | C6: =IF(C4=$L$4,1,0) -> 0 | D6: 0 | E6: 0 | F6: 0 | G6: 0 | H6: 0 | I6: 0 | J6: 0
B7: Annual GWh demand selection table
B8: National | C8: NEM | D8: NSW (inc. ACT) | E8: Victoria | F8: Queensland | G8: South Australia | H8: Tasmania | I8: Western Australia | J8: Northern Territory | K8: Selected region: | L8: ='Control Panel'!D6 -> National
B9: =F30 -> 279699.9798 | C9: =M30 -> 239577.6358 | D9: =T30 -> 93276.42685 | E9: =AA30 -> 53100.83927 | F9: =AH30 -> 77530.78485 | G9: =AO30 -> 15669.58479 | H9: =AV30 -> 12042.56609 | I9: =BC30 -> 25024 | J9: =BJ30 -> 3055.777931 | K9: GWh demand: | L9: =SUMPRODUCT(B9:J9,B10:J10) -> 279699.9798 | N9: Growth rate: | O9: =F28 -> Medium
B10: =IF(B8=$L$8,1,0) -> 1 | C10: =IF(C8=$L$8,1,0) -> 0 | D10: 0 | E10: 0 | F10: 0 | G10: 0 | H10: 0 | I10: 0 | J10: 0
A13: Demand projections @10% PoE (MWp)
A14: National | B14: Low | C14: Medium | D14: High | E14: Growth rate | F14: ='Control Panel'!$D$22 -> Medium | H14: NEM | I14: Low | J14: Medium | K14: High | L14: Growth rate | M14: ='Control Panel'!$D$22 -> Medium | O14: NSW (inc. ACT) | P14: Low | Q14: Medium | R14: High | S14: Growth rate | T14: ='Control Panel'!$D$22 -> Medium | V14: Victoria | W14: Low | X14: Medium | Y14: High | Z14: Growth rate | AA14: ='Control Panel'!$D$22 -> Medium | AC14: Queensland | AD14: Low | AE14: Medium | AF14: High | AG14: Growth rate | AH14: ='Control Panel'!$D$22 -> Medium | AJ14: South Australia | AK14: Low | AL14: Medium | AM14: High | AN14: Growth rate | AO14: ='Control Panel'!$D$22 -> Medium | AQ14: Tasmania | AR14: Low | AS14: Medium | AT14: High | AU14: Growth rate | AV14: ='Control Panel'!$D$22 -> Medium | AX14: Western Australia (energy sent out) | AY14: Low | AZ14: Medium | BA14: High | BB14: Growth rate | BC14: ='Control Panel'!$D$22 -> Medium | BE14: Northern Territory (estimates based on average growth rates of low=3.5, med=4.5, high=5.5 | BF14: Low | BG14: Medium | BH14: High | BI14: Growth rate | BJ14: ='Control Panel'!$D$22 -> Medium
A15: 2010/11 | B15: =P15+W15+AD15+AK15+AR15++AY15+BF15 -> 46527.2 | C15: =Q15+X15+AE15+AL15+AS15++AZ15+BG15 -> 47067.2 | D15: =R15+Y15+AF15+AM15+AT15++BA15+BH15 -> 47631.2 | E15: Year | F15: ='Control Panel'!$D$7 -> 2020/21 | H15: 2010/11 | I15: =P15+W15+AD15+AK15 -> 40086 | J15: =Q15+X15+AE15+AL15 -> 40494 | K15: =R15+Y15+AF15+AM15 -> 40902 | L15: Year | M15: ='Control Panel'!$D$7 -> 2020/21 | O15: 2010/11 | P15: 15596 | Q15: 15657 | R15: 15688 | S15: Year | T15: ='Control Panel'!$D$7 -> 2020/21 | V15: 2010/11 | W15: 10670 | X15: 10783 | Y15: 10911 | Z15: Year | AA15: ='Control Panel'!$D$7 -> 2020/21 | AC15: 2010/11 | AD15: 10300 | AE15: 10524 | AF15: 10783 | AG15: Year | AH15: ='Control Panel'!$D$7 -> 2020/21 | AJ15: 2010/11 | AK15: 3520 | AL15: 3530 | AM15: 3520 | AN15: Year | AO15: ='Control Panel'!$D$7 -> 2020/21 | AQ15: 2010/11 | AR15: 1870 | AS15: 1932 | AT15: 1994 | AU15: Year | AV15: ='Control Panel'!$D$7 -> 2020/21 | AX15: 2010/11 | AY15: 4276 | AZ15: 4346 | BA15: 4440 | BB15: Year | BC15: ='Control Panel'!$D$7 -> 2020/21 | BE15: 2010/11 | BF15: 295.2 | BG15: 295.2 | BH15: 295.2 | BI15: Year | BJ15: ='Control Panel'!$D$7 -> 2020/21
A16: 2011/12 | B16: 47975.2 | C16: 48926.2 | D16: 49857.2 | E16: Projection | F16: =INDEX(A14:D25, MATCH(F15,A14:A25,0),MATCH(F14,A14:D14,0)) -> 61925.43258 | H16: 2011/12 | I16: 41038 | J16: 41850 | K16: 42592 | L16: Projection | M16: =INDEX(H14:K25, MATCH(M15,H14:H25,0),MATCH(M14,H14:K14,0)) -> 52498.15565 | O16: 2011/12 | P16: 16090 | Q16: 16169 | R16: 16229 | S16: Projection | T16: =INDEX(O14:R25, MATCH(T15,O14:O25,0),MATCH(T14,O14:R14,0)) -> 19655.72739 | V16: 2011/12 | W16: 10903 | X16: 11103 | Y16: 11244 | Z16: Projection | AA16: =INDEX(V14:Y25, MATCH(AA15,V14:V25,0),MATCH(AA14,V14:Y14,0)) -> 13165.20198 | AC16: 2011/12 | AD16: 10485 | AE16: 10948 | AF16: 11489 | AG16: Projection | AH16: =INDEX(AC14:AF25, MATCH(AH15,AC14:AC25,0),MATCH(AH14,AC14:AF14,0)) -> 15595.98262 | AJ16: 2011/12 | AK16: 3560 | AL16: 3630 | AM16: 3630 | AN16: Projection | AO16: =INDEX(AJ14:AM25, MATCH(AO15,AJ14:AJ25,0),MATCH(AO14,AJ14:AM14,0)) -> 4081.243655 | AQ16: 2011/12 | AR16: 1901 | AS16: 1968 | AT16: 2062 | AU16: Projection | AV16: =INDEX(AQ14:AT25, MATCH(AV15,AQ14:AQ25,0),MATCH(AV14,AQ14:AT14,0)) -> 2243.076923 | AX16: 2011/12 | AY16: 4726 | AZ16: 4793 | BA16: 4883 | BB16: Projection | BC16: =INDEX(AX14:BA25, MATCH(BC15,AX14:AX25,0),MATCH(BC14,AX14:BA14,0)) -> 6689 | BE16: 2011/12 | BF16: =BF15+15 -> 310.2 | BG16: =BG15+20 -> 315.2 | BH16: =BH15+25 -> 320.2 | BI16: Projection | BJ16: =INDEX(BE14:BH25, MATCH(BJ15,BE14:BE25,0),MATCH(BJ14,BE14:BH14,0)) -> 495.2
A17: 2012/13 | B17: 48986.2 | C17: 50352.2 | D17: 51758.2 | H17: 2012/13 | I17: 41878 | J17: 43055 | K17: 44242 | O17: 2012/13 | P17: 16434 | Q17: 16544 | R17: 16636 | V17: 2012/13 | W17: 11120 | X17: 11372 | Y17: 11598 | AC17: 2012/13 | AD17: 10724 | AE17: 11469 | AF17: 12198 | AJ17: 2012/13 | AK17: 3600 | AL17: 3670 | AM17: 3810 | AQ17: 2012/13 | AR17: 1886 | AS17: 1976 | AT17: 2074 | AX17: 2012/13 | AY17: 4897 | AZ17: 4986 | BA17: 5097 | BE17: 2012/13 | BF17: =BF16+15 -> 325.2 | BG17: =BG16+20 -> 335.2 | BH17: =BH16+25 -> 345.2
A18: 2013/14 | B18: 50207.2 | C18: 52020.2 | D18: 53940.2 | H18: 2013/14 | I18: 42783 | J18: 44312 | K18: 45869 | O18: 2013/14 | P18: 16788 | Q18: 16927 | R18: 17049 | V18: 2013/14 | W18: 11193 | X18: 11461 | Y18: 11716 | AC18: 2013/14 | AD18: 11172 | AE18: 12204 | AF18: 13194 | AJ18: 2013/14 | AK18: 3630 | AL18: 3720 | AM18: 3910 | AQ18: 2013/14 | AR18: 1886 | AS18: 1983 | AT18: 2103 | AX18: 2013/14 | AY18: 5198 | AZ18: 5370 | BA18: 5598 | BE18: 2013/14 | BF18: 340.2 | BG18: 355.2 | BH18: 370.2
A19: 2014/15 | B19: 51186.2 | C19: 53514.2 | D19: 55867.2 | H19: 2014/15 | I19: 43580 | J19: 45537 | K19: 47592 | O19: 2014/15 | P19: 17145 | Q19: 17322 | R19: 17493 | V19: 2014/15 | W19: 11365 | X19: 11673 | Y19: 11963 | AC19: 2014/15 | AD19: 11400 | AE19: 12812 | AF19: 14056 | AJ19: 2014/15 | AK19: 3670 | AL19: 3730 | AM19: 4080 | AQ19: 2014/15 | AR19: 1891 | AS19: 2001 | AT19: 2135 | AX19: 2014/15 | AY19: 5360 | AZ19: 5601 | BA19: 5745 | BE19: 2014/15 | BF19: 355.2 | BG19: 375.2 | BH19: 395.2
A20: 2015/16 | B20: 52217.2 | C20: 55070.2 | D20: 58019.2 | H20: 2015/16 | I20: 44443 | J20: 46895 | K20: 49362 | O20: 2015/16 | P20: 17484 | Q20: 17714 | R20: 17928 | V20: 2015/16 | W20: 11639 | X20: 11990 | Y20: 12339 | AC20: 2015/16 | AD20: 11630 | AE20: 13411 | AF20: 14895 | AJ20: 2015/16 | AK20: 3690 | AL20: 3780 | AM20: 4200 | AQ20: 2015/16 | AR20: 1875 | AS20: 2013 | AT20: 2180 | AX20: 2015/16 | AY20: 5529 | AZ20: 5767 | BA20: 6057 | BE20: 2015/16 | BF20: 370.2 | BG20: 395.2 | BH20: 420.2
A21: 2016/17 | B21: 53120.2 | C21: 56465.2 | D21: 59961.2 | H21: 2016/17 | I21: 45193 | J21: 48053 | K21: 50944 | O21: 2016/17 | P21: 17829 | Q21: 18101 | R21: 18377 | V21: 2016/17 | W21: 11751 | X21: 12174 | Y21: 12542 | AC21: 2016/17 | AD21: 11913 | AE21: 13918 | AF21: 15705 | AJ21: 2016/17 | AK21: 3700 | AL21: 3860 | AM21: 4320 | AQ21: 2016/17 | AR21: 1850 | AS21: 2042 | AT21: 2247 | AX21: 2016/17 | AY21: 5692 | AZ21: 5955 | BA21: 6325 | BE21: 2016/17 | BF21: 385.2 | BG21: 415.2 | BH21: 445.2
A22: 2017/18 | B22: 54242.2 | C22: 57780.2 | D22: 61787.2 | H22: 2017/18 | I22: 46141 | J22: 49118 | K22: 52474 | O22: 2017/18 | P22: 18151 | Q22: 18493 | R22: 18829 | V22: 2017/18 | W22: 11962 | X22: 12421 | Y22: 12826 | AC22: 2017/18 | AD22: 12288 | AE22: 14324 | AF22: 16419 | AJ22: 2017/18 | AK22: 3740 | AL22: 3880 | AM22: 4400 | AQ22: 2017/18 | AR22: 1858 | AS22: 2059 | AT22: 2276 | AX22: 2017/18 | AY22: 5843 | AZ22: 6168 | BA22: 6567 | BE22: 2017/18 | BF22: 400.2 | BG22: 435.2 | BH22: 470.2
A23: 2018/19 | B23: 55220.2 | C23: 59077.2 | D23: 64243.2 | H23: 2018/19 | I23: 46944 | J23: 50199 | K23: 54556 | O23: 2018/19 | P23: 18472 | Q23: 18884 | R23: 19291 | V23: 2018/19 | W23: 12242 | X23: 12699 | Y23: 13163 | AC23: 2018/19 | AD23: 12450 | AE23: 14676 | AF23: 17582 | AJ23: 2018/19 | AK23: 3780 | AL23: 3940 | AM23: 4520 | AQ23: 2018/19 | AR23: 1865 | AS23: 2080 | AT23: 2401 | AX23: 2018/19 | AY23: 5996 | AZ23: 6343 | BA23: 6791 | BE23: 2018/19 | BF23: 415.2 | BG23: 455.2 | BH23: 495.2
A24: 2019/20 | B24: 56230.2 | C24: 60487.2 | D24: 66164.2 | H24: 2019/20 | I24: 47743 | J24: 51335 | K24: 56188 | O24: 2019/20 | P24: 18788 | Q24: 19266 | R24: 19749 | V24: 2019/20 | W24: 12445 | X24: 12930 | Y24: 13461 | AC24: 2019/20 | AD24: 12680 | AE24: 15129 | AF24: 18368 | AJ24: 2019/20 | AK24: 3830 | AL24: 4010 | AM24: 4610 | AQ24: 2019/20 | AR24: 1864 | AS24: 2160 | AT24: 2423 | AX24: 2019/20 | AY24: 6193 | AZ24: 6517 | BA24: 7033 | BE24: 2019/20 | BF24: 430.2 | BG24: 475.2 | BH24: 520.2
A25: 2020/21 | B25: 57206.88291 | C25: 61925.43258 | D25: 68094.95176 | H25: 2020/21 | I25: 48555.68237 | J25: 52498.15565 | K25: 57874.55018 | O25: 2020/21 | P25: =P24*(1+(P24-P23)/P23) -> 19109.4058 | Q25: =Q24*(1+(Q24-Q23)/Q23) -> 19655.72739 | R25: =R24*(1+(R24-R23)/R23) -> 20217.87367 | V25: 2020/21 | W25: =W24*(1+(W24-W23)/W23) -> 12651.3662 | X25: =X24*(1+(X24-X23)/X23) -> 13165.20198 | Y25: =Y24*(1+(Y24-Y23)/Y23) -> 13765.74649 | AC25: 2020/21 | AD25: =AD24*(1+(AD24-AD23)/AD23) -> 12914.249 | AE25: =AE24*(1+(AE24-AE23)/AE23) -> 15595.98262 | AF25: =AF24*(1+(AF24-AF23)/AF23) -> 19189.13798 | AJ25: 2020/21 | AK25: =AK24*(1+(AK24-AK23)/AK23) -> 3880.661376 | AL25: =AL24*(1+(AL24-AL23)/AL23) -> 4081.243655 | AM25: =AM24*(1+(AM24-AM23)/AM23) -> 4701.792035 | AQ25: 2020/21 | AR25: =AR24*(1+(AR24-AR23)/AR23) -> 1863.000536 | AS25: =AS24*(1+(AS24-AS23)/AS23) -> 2243.076923 | AT25: =AT24*(1+(AT24-AT23)/AT23) -> 2445.201583 | AX25: 2020/21 | AY25: 6343 | AZ25: 6689 | BA25: 7230 | BE25: 2020/21 | BF25: 445.2 | BG25: 495.2 | BH25: 545.2
A27: Demand projections (GWh)
A28: National | B28: Low | C28: Medium | D28: High | E28: Growth rate | F28: ='Control Panel'!$D$21 -> Medium | H28: NEM | I28: Low | J28: Medium | K28: High | L28: Growth rate | M28: ='Control Panel'!$D$21 -> Medium | O28: NSW (inc. ACT) | P28: Low | Q28: Medium | R28: High | S28: Growth rate | T28: ='Control Panel'!$D$21 -> Medium | V28: Victoria | W28: Low | X28: Medium | Y28: High | Z28: Growth rate | AA28: ='Control Panel'!$D$21 -> Medium | AC28: Queensland | AD28: Low | AE28: Medium | AF28: High | AG28: Growth rate | AH28: ='Control Panel'!$D$21 -> Medium | AJ28: South Australia | AK28: Low | AL28: Medium | AM28: High | AN28: Growth rate | AO28: ='Control Panel'!$D$21 -> Medium | AQ28: Tasmania | AR28: Low | AS28: Medium | AT28: High | AU28: Growth rate | AV28: ='Control Panel'!$D$21 -> Medium | AX28: Western Australia (energy sent out) | AY28: Low | AZ28: Medium | BA28: High | BB28: Growth rate | BC28: ='Control Panel'!$D$21 -> Medium | BE28: Northern Territory (estimates based on average growth rates of low=3.5, med=4.5, high=5.5 | BF28: Low | BG28: Medium | BH28: High | BI28: Growth rate | BJ28: ='Control Panel'!$D$21 -> Medium
A29: 2010/11 | B29: =P29+W29+AD29+AK29+AR29+AY29+BF29 -> 221206.7 | C29: =Q29+X29+AE29+AL29+AS29+AZ29+BG29 -> 224823.7 | D29: =R29+Y29+AF29+AM29+AT29+BA29+BH29 -> 227704.7 | E29: Year | F29: ='Control Panel'!$D$7 -> 2020/21 | H29: 2010/11 | I29: =P29+W29+AD29+AK29 -> 191446 | J29: =Q29+X29+AE29+AL29 -> 194113 | K29: =R29+Y29+AF29+AM29 -> 196242 | L29: Year | M29: ='Control Panel'!$D$7 -> 2020/21 | O29: 2010/11 | P29: 77481 | Q29: 77720 | R29: 77810 | S29: Year | T29: ='Control Panel'!$D$7 -> 2020/21 | V29: 2010/11 | W29: 47976 | X29: 48599 | Y29: 48599 | Z29: Year | AA29: ='Control Panel'!$D$7 -> 2020/21 | AC29: 2010/11 | AD29: 51672 | AE29: 53487 | AF29: 55475 | AG29: Year | AH29: ='Control Panel'!$D$7 -> 2020/21 | AJ29: 2010/11 | AK29: 14317 | AL29: 14307 | AM29: 14358 | AN29: Year | AO29: ='Control Panel'!$D$7 -> 2020/21 | AQ29: 2010/11 | AR29: 10769 | AS29: 11334 | AT29: 11839 | AU29: Year | AV29: ='Control Panel'!$D$7 -> 2020/21 | AX29: 2010/11 | AY29: 17024 | AZ29: 17409 | BA29: 17656 | BB29: Year | BC29: ='Control Panel'!$D$7 -> 2020/21 | BE29: 2010/11 | BF29: 1967.7 | BG29: 1967.7 | BH29: 1967.7 | BI29: Year | BJ29: ='Control Panel'!$D$7 -> 2020/21
A30: 2011/12 | B30: 227312.5695 | C30: 232404.2465 | D30: 239192.9235 | E30: Projection | F30: =INDEX(A28:D39, MATCH(F29,A28:A39,0),MATCH(F28,A28:D28,0)) -> 279699.9798 | H30: 2011/12 | I30: 196080 | J30: =Q30+X30+AE30+AL30 -> 199922 | K30: 205365 | L30: Projection | M30: =INDEX(H28:K39, MATCH(M29,H28:H39,0),MATCH(M28,H28:K28,0)) -> 239577.6358 | O30: 2011/12 | P30: 79403 | Q30: 80098 | R30: 80516 | S30: Projection | T30: =INDEX(O28:R39, MATCH(T29,O28:O39,0),MATCH(T28,O28:R28,0)) -> 93276.42685 | V30: 2011/12 | W30: 47909 | X30: 49399 | Y30: 50427 | Z30: Projection | AA30: =INDEX(V28:Y39, MATCH(AA29,V28:V39,0),MATCH(AA28,V28:Y28,0)) -> 53100.83927 | AC30: 2011/12 | AD30: 52378 | AE30: 55601 | AF30: 59400 | AG30: Projection | AH30: =INDEX(AC28:AF39, MATCH(AH29,AC28:AC39,0),MATCH(AH28,AC28:AF28,0)) -> 77530.78485 | AJ30: 2011/12 | AK30: 16390 | AL30: 14824 | AM30: 15022 | AN30: Projection | AO30: =INDEX(AJ28:AM39, MATCH(AO29,AJ28:AJ39,0),MATCH(AO28,AJ28:AM28,0)) -> 15669.58479 | AQ30: 2011/12 | AR30: 10849 | AS30: 11482 | AT30: 12202 | AU30: Projection | AV30: =INDEX(AQ28:AT39, MATCH(AV29,AQ28:AQ39,0),MATCH(AV28,AQ28:AT28,0)) -> 12042.56609 | AX30: 2011/12 | AY30: 18347 | AZ30: 18944 | BA30: 19550 | BB30: Projection | BC30: =INDEX(AX28:BA39, MATCH(BC29,AX28:AX39,0),MATCH(BC28,AX28:BA28,0)) -> 25024 | BE30: 2011/12 | BF30: 2036.5695 | BG30: 2056.2465 | BH30: 2075.9235 | BI30: Projection | BJ30: =INDEX(BE28:BH39, MATCH(BJ29,BE28:BE39,0),MATCH(BJ28,BE28:BH28,0)) -> 3055.777931
A31: 2012/13 | B31: 228202.8494 | C31: 238091.7776 | D31: 247474.0993 | H31: 2012/13 | I31: 196705 | J31: 205104 | K31: 212861 | O31: 2012/13 | P31: 80374 | Q31: 81187 | R31: 81723 | V31: 2012/13 | W31: 48162 | X31: 50202 | Y31: 51206 | AC31: 2012/13 | AD31: 53698 | AE31: 58733 | AF31: 63855 | AJ31: 2012/13 | AK31: 14471 | AL31: 14982 | AM31: 16077 | AQ31: 2012/13 | AR31: 10805 | AS31: 11518 | AT31: 12337 | AX31: 2012/13 | AY31: 18585 | AZ31: 19321 | BA31: 20086 | BE31: 2012/13 | BF31: 2107.849432 | BG31: 2148.777592 | BH31: 2190.099292
A32: 2013/14 | B32: 231465.6242 | C32: 243453.4726 | D32: 256626.5548 | H32: 2013/14 | I32: 198805 | J32: 208676 | K32: 219166 | O32: 2013/14 | P32: 80895 | Q32: 81657 | R32: 82241 | V32: 2013/14 | W32: 48079 | X32: 49817 | Y32: 51230 | AC32: 2013/14 | AD32: 55373 | AE32: 62182 | AF32: 69026 | AJ32: 2013/14 | AK32: 14458 | AL32: 15020 | AM32: 16669 | AQ32: 2013/14 | AR32: 10765 | AS32: 11491 | AT32: 12449 | AX32: 2013/14 | AY32: 19714 | AZ32: 21041 | BA32: 22701 | BE32: 2013/14 | BF32: 2181.624163 | BG32: 2245.472584 | BH32: 2310.554754
A33: 2014/15 | B33: 234661.981 | C33: 249313.5189 | D33: 265293.6353 | H33: 2014/15 | I33: 201381 | J33: 213425 | K33: 227154 | O33: 2014/15 | P33: 82518 | Q33: 83241 | R33: 84033 | V33: 2014/15 | W33: 47937 | X33: 49886 | Y33: 51612 | AC33: 2014/15 | AD33: 56366 | AE33: 65510 | AF33: 74044 | AJ33: 2014/15 | AK33: 14560 | AL33: 14788 | AM33: 17465 | AQ33: 2014/15 | AR33: 10795 | AS33: 11536 | AT33: 12579 | AX33: 2014/15 | AY33: 20228 | AZ33: 22006 | BA33: 23123 | BE33: 2014/15 | BF33: 2257.981008 | BG33: 2346.51885 | BH33: 2437.635265
A34: 2015/16 | B34: 237915.0103 | C34: 255177.1122 | D34: 276429.7052 | H34: 2015/16 | I34: 204431 | J34: 218674 | K34: 236227 | O34: 2015/16 | P34: 84290 | Q34: 84983 | R34: 85963 | V34: 2015/16 | W34: 48278 | X34: 50045 | Y34: 52650 | AC34: 2015/16 | AD34: 57252 | AE34: 68657 | AF34: 79510 | AJ34: 2015/16 | AK34: 14611 | AL34: 14989 | AM34: 18104 | AQ34: 2015/16 | AR34: 10475 | AS34: 11573 | AT34: 12795 | AX34: 2015/16 | AY34: 20672 | AZ34: 22478 | BA34: 24836 | BE34: 2015/16 | BF34: 2337.010344 | BG34: 2452.112199 | BH34: 2571.705205
A35: 2016/17 | B35: 240036.8057 | C35: 260016.4572 | D35: 284865.149 | H35: 2016/17 | I35: 206468 | J35: 222705 | K35: 242915 | O35: 2016/17 | P35: 85577 | Q35: 86389 | R35: 87497 | V35: 2016/17 | W35: 48551 | X35: 50772 | Y35: 53388 | AC35: 2016/17 | AD35: 57720 | AE35: 70425 | AF35: 83353 | AJ35: 2016/17 | AK35: 14620 | AL35: 15119 | AM35: 18677 | AQ35: 2016/17 | AR35: 10147 | AS35: 11750 | AT35: 13155 | AX35: 2016/17 | AY35: 21003 | AZ35: 22999 | BA35: 26082 | BE35: 2016/17 | BF35: 2418.805706 | BG35: 2562.457248 | BH35: 2713.148991
A36: 2017/18 | B36: 242670.4639 | C36: 264371.7678 | D36: 291895.3722 | H36: 2017/18 | I36: 208771 | J36: 226098 | K36: 248639 | O36: 2017/18 | P36: 86428 | Q36: 87468 | R36: 88636 | V36: 2017/18 | W36: 48794 | X36: 51566 | Y36: 54102 | AC36: 2017/18 | AD36: 58932 | AE36: 71825 | AF36: 86939 | AJ36: 2017/18 | AK36: 14617 | AL36: 15239 | AM36: 18962 | AQ36: 2017/18 | AR36: 10152 | AS36: 11811 | AT36: 13286 | AX36: 2017/18 | AY36: 21244 | AZ36: 23785 | BA36: 27108 | BE36: 2017/18 | BF36: 2503.463905 | BG36: 2677.767824 | BH36: 2862.372185
A37: 2018/19 | B37: 244795.0851 | C37: 268678.2674 | D37: 304800.8027 | H37: 2018/19 | I37: 210555 | J37: 229783 | K37: 259565 | O37: 2018/19 | P37: 87279 | Q37: 88705 | R37: 89962 | V37: 2018/19 | W37: 49041 | X37: 51993 | Y37: 54812 | AC37: 2018/19 | AD37: 59573 | AE37: 73729 | AF37: 95218 | AJ37: 2018/19 | AK37: 14662 | AL37: 15356 | AM37: 19573 | AQ37: 2018/19 | AR37: 10136 | AS37: 11878 | AT37: 14215 | AX37: 2018/19 | AY37: 21513 | AZ37: 24219 | BA37: 28001 | BE37: 2018/19 | BF37: 2591.085142 | BG37: 2798.267376 | BH37: 3019.802656
A38: 2019/20 | B38: 248875.7731 | C38: 274138.1894 | D38: 314189.8918 | H38: 2019/20 | I38: 213883 | J38: 234624 | K38: 267603 | O38: 2019/20 | P38: 88913 | Q38: 90962 | R38: 92615 | V38: 2019/20 | W38: 49924 | X38: 52544 | Y38: 55783 | AC38: 2019/20 | AD38: 60278 | AE38: 75606 | AF38: 99389 | AJ38: 2019/20 | AK38: 14768 | AL38: 15512 | AM38: 19816 | AQ38: 2019/20 | AR38: 10118 | AS38: 11960 | AT38: 14311 | AX38: 2019/20 | AY38: 22193 | AZ38: 24630 | BA38: 29090 | BE38: 2019/20 | BF38: 2681.773122 | BG38: 2924.189408 | BH38: 3185.891802
A39: 2020/21 | B39: 252550.2664 | C39: 279699.9798 | D39: 323426.9296 | H39: 2020/21 | I39: 217266.5992 | J39: 239577.6358 | K39: 275922.1654 | O39: 2020/21 | P39: =P38*(1+(P38-P37)/P37) -> 90577.59105 | Q39: =Q38*(1+(Q38-Q37)/Q37) -> 93276.42685 | R39: =R38*(1+(R38-R37)/R37) -> 95346.23758 | V39: 2020/21 | W39: =W38*(1+(W38-W37)/W37) -> 50822.89872 | X39: =X38*(1+(X38-X37)/X37) -> 53100.83927 | Y39: =Y38*(1+(Y38-Y37)/Y37) -> 56771.20136 | AC39: 2020/21 | AD39: =AD38*(1+(AD38-AD37)/AD37) -> 60991.34313 | AE39: =AE38*(1+(AE38-AE37)/AE37) -> 77530.78485 | AF39: =AF38*(1+(AF38-AF37)/AF37) -> 103742.7096 | AJ39: 2020/21 | AK39: =AK38*(1+(AK38-AK37)/AK37) -> 14874.76633 | AL39: =AL38*(1+(AL38-AL37)/AL37) -> 15669.58479 | AM39: =AM38*(1+(AM38-AM37)/AM37) -> 20062.01686 | AQ39: 2020/21 | AR39: =AR38*(1+(AR38-AR37)/AR37) -> 10100.03197 | AS39: =AS38*(1+(AS38-AS37)/AS37) -> 12042.56609 | AT39: =AT38*(1+(AT38-AT37)/AT37) -> 14407.64833 | AX39: 2020/21 | AY39: 22408 | AZ39: 25024 | BA39: 29736 | BE39: 2020/21 | BF39: 2775.635181 | BG39: 3055.777931 | BH39: 3361.115851

Sheet Plant retirements (hidden)
A1: Power station shut downs (MW/yr)
A2: Roll over cell to see name of retiring power station
A3: Supply scenario 1 - Planned shut downs occur (MWp total capacity) - AEMO (2010) Statement of Opportunities (does not included non-schedulable peak demand)
B4: ='Peak Supply data'!B16 -> National | C4: ='Peak Supply data'!C16 -> NEM | D4: ='Peak Supply data'!D16 -> NSW (inc. ACT) | E4: ='Peak Supply data'!E16 -> Victoria | F4: ='Peak Supply data'!F16 -> Queensland | G4: ='Peak Supply data'!G16 -> South Australia | H4: ='Peak Supply data'!H16 -> Tasmania | I4: ='Peak Supply data'!I16 -> Western Australia | J4: ='Peak Supply data'!J16 -> Northern Territory
A5: ='Peak Supply data'!A17 -> 2010/11 | B5: =SUM(D5:J5) -> 51398 | C5: =SUM(D5:H5) -> 45412 | D5: 15951 | E5: 10741 | F5: 12302 | G5: 3989 | H5: 2429 | I5: 5426 | J5: 560
A6: ='Peak Supply data'!A18 -> 2011/12 | B6: =SUM(D6:J6) -> 52318 | C6: =SUM(D6:H6) -> 46332 | D6: 16782 | E6: 10814 | F6: 12280 | G6: 4168 | H6: 2288 | I6: 5426 | J6: 560
A7: ='Peak Supply data'!A19 -> 2012/13 | B7: 52156 | C7: 46170 | D7: 16859 | E7: 10748 | F7: 12160 | G7: 4169 | H7: 2234 | I7: 5426 | J7: 560
A8: ='Peak Supply data'!A20 -> 2013/14 | B8: 52303 | C8: 46317 | D8: 16859 | E8: 10759 | F8: 12159 | G8: 4170 | H8: 2370 | I8: 5426 | J8: 560
A9: ='Peak Supply data'!A21 -> 2014/15 | B9: 51731 | C9: 45745 | D9: 16187 | E9: 10767 | F9: 12159 | G9: 4171 | H9: 2461 | I9: 5426 | J9: 560
A10: ='Peak Supply data'!A22 -> 2015/16 | B10: 51780 | C10: 45794 | D10: 16259 | E10: 10775 | F10: 12129 | G10: 4171 | H10: 2460 | I10: 5426 | J10: 560
A11: ='Peak Supply data'!A23 -> 2016/17 | B11: 51942 | C11: 45956 | D11: 16259 | E11: 10868 | F11: 12102 | G11: 4171 | H11: 2556 | I11: 5426 | J11: 560
A12: ='Peak Supply data'!A24 -> 2017/18 | B12: 51953 | C12: 45967 | D12: 16259 | E12: 10874 | F12: 12101 | G12: 4171 | H12: 2562 | I12: 5426 | J12: 560
A13: ='Peak Supply data'!A25 -> 2018/19 | B13: 51957 | C13: 45971 | D13: 16259 | E13: 10872 | F13: 12101 | G13: 4171 | H13: 2568 | I13: 5426 | J13: 560
A14: ='Peak Supply data'!A26 -> 2019/20 | B14: 51950 | C14: 45964 | D14: 16259 | E14: 10870 | F14: 12099 | G14: 4171 | H14: 2565 | I14: 5426 | J14: 560
A15: ='Peak Supply data'!A27 -> 2020/21 | B15: 51950 | C15: 45964 | D15: 16259 | E15: 10870 | F15: 12099 | G15: 4171 | H15: 2565 | I15: 5426 | J15: 560
A17: Option 2 - coal plants retire at initial scheduled retirement date (40 years life) MWp total retirements - Plant age taken from ESAA (2010) Electricity Gas Australia | L17: MWp total capacity (=2011 scheduled peak capacity + non-scheduled peak capacity - peak capacity retirements
B18: ='Peak Supply data'!B30 -> National | C18: ='Peak Supply data'!C30 -> NEM | D18: ='Peak Supply data'!D30 -> NSW (inc. ACT) | E18: ='Peak Supply data'!E30 -> Victoria | F18: ='Peak Supply data'!F30 -> Queensland | G18: ='Peak Supply data'!G30 -> South Australia | H18: ='Peak Supply data'!H30 -> Tasmania | I18: ='Peak Supply data'!I30 -> Western Australia | J18: ='Peak Supply data'!J30 -> Northern Territory | L18: National | M18: NEM | N18: NSW (inc. ACT) | O18: Victoria | P18: Queensland | Q18: South Australia | R18: Tasmania | S18: Western Australia | T18: Northern Territory
A19: ='Peak Supply data'!A31 -> 2010/11 | B19: =SUM(D19:J19) -> 3197 | C19: =SUM(D19:H19) -> 3197 | D19: 570 | E19: 1924 | F19: 475 | G19: 228 | H19: 0 | I19: 0 | J19: 0 | L19: =B5-B19+SUM('Generation data'!D64:J64) -> 49237.3 | M19: =C5-C19+SUM('Generation data'!D64:H64) -> 43060 | N19: =D5-D19 -> 15381 | O19: =E5-E19+'Generation data'!E$64 -> 8868 | P19: =F5-F19+'Generation data'!F$64 -> 12007 | Q19: =G5-G19+'Generation data'!G$64 -> 3838 | R19: =H5-H19+'Generation data'!H$64 -> 2506 | S19: =I5-I19+'Generation data'!I$64 -> 5617.1 | T19: =J5-J19+'Generation data'!J$64 -> 560.2
A20: ='Peak Supply data'!A32 -> 2011/12 | B20: =SUM(D20:J20) -> 1957 | C20: =SUM(D20:H20) -> 1957 | D20: 1957 | E20: 0 | F20: 0 | G20: 0 | H20: 0 | I20: 0 | J20: 0 | L20: =L19-B20 -> 47280.3 | M20: =M19-C20 -> 41103 | N20: =N19-D20 -> 13424 | O20: =O19-E20 -> 8868 | P20: =P19-F20 -> 12007 | Q20: =Q19-G20 -> 3838 | R20: =R19-H20 -> 2506 | S20: =S19-I20 -> 5617.1 | T20: =T19-J20 -> 560.2
A21: ='Peak Supply data'!A33 -> 2012/13 | B21: 0 | C21: 0 | D21: 0 | E21: 0 | F21: 0 | G21: 0 | H21: 0 | I21: 0 | J21: 0 | L21: 47280.3 | M21: 41103 | N21: 13424 | O21: =O20-E21 -> 8868 | P21: 12007 | Q21: 3838 | R21: 2506 | S21: 5617.1 | T21: 560.2
A22: ='Peak Supply data'!A34 -> 2013/14 | B22: 1503.75 | C22: 1503.75 | D22: 0 | E22: 1480 | F22: 23.75 | G22: 0 | H22: 0 | I22: 0 | J22: 0 | L22: 45776.55 | M22: 39599.25 | N22: 13424 | O22: 7388 | P22: 11983.25 | Q22: 3838 | R22: 2506 | S22: 5617.1 | T22: 560.2
A23: ='Peak Supply data'!A35 -> 2014/15 | B23: 35.6 | C23: 35.6 | D23: 0 | E23: 0 | F23: 35.6 | G23: 0 | H23: 0 | I23: 0 | J23: 0 | L23: 45740.95 | M23: 39563.65 | N23: 13424 | O23: 7388 | P23: 11947.65 | Q23: 3838 | R23: 2506 | S23: 5617.1 | T23: 560.2
A24: ='Peak Supply data'!A36 -> 2015/16 | B24: 0 | C24: 0 | D24: 0 | E24: 0 | F24: 0 | G24: 0 | H24: 0 | I24: 0 | J24: 0 | L24: 45740.95 | M24: 39563.65 | N24: 13424 | O24: 7388 | P24: 11947.65 | Q24: 3838 | R24: 2506 | S24: 5617.1 | T24: 560.2
A25: ='Peak Supply data'!A37 -> 2016/17 | B25: 2578.3 | C25: 2578.3 | D25: 950 | E25: 0 | F25: =32.3+1596 -> 1628.3 | G25: 0 | H25: 0 | I25: 0 | J25: 0 | L25: 43162.65 | M25: 36985.35 | N25: 12474 | O25: 7388 | P25: 10319.35 | Q25: 3838 | R25: 2506 | S25: 5617.1 | T25: 560.2
A26: ='Peak Supply data'!A38 -> 2017/18 | B26: 0 | C26: 0 | D26: 0 | E26: 0 | F26: 0 | G26: 0 | H26: 0 | I26: 0 | J26: 0 | L26: 43162.65 | M26: 36985.35 | N26: 12474 | O26: 7388 | P26: 10319.35 | Q26: 3838 | R26: 2506 | S26: 5617.1 | T26: 560.2
A27: ='Peak Supply data'!A39 -> 2018/19 | B27: 1254 | C27: 1254 | D27: 1254 | E27: 0 | F27: 0 | G27: 0 | H27: 0 | I27: 0 | J27: 0 | L27: 41908.65 | M27: 35731.35 | N27: 11220 | O27: 7388 | P27: 10319.35 | Q27: 3838 | R27: 2506 | S27: 5617.1 | T27: 560.2
A28: ='Peak Supply data'!A40 -> 2019/20 | B28: 0 | C28: 0 | D28: 0 | E28: 0 | F28: 0 | G28: 0 | H28: 0 | I28: 0 | J28: 0 | L28: 41908.65 | M28: 35731.35 | N28: 11220 | O28: 7388 | P28: 10319.35 | Q28: 3838 | R28: 2506 | S28: 5617.1 | T28: 560.2
A29: ='Peak Supply data'!A41 -> 2020/21 | B29: 0 | C29: 0 | D29: 0 | E29: 0 | F29: 0 | G29: 0 | H29: 0 | I29: 0 | J29: 0 | L29: 41908.65 | M29: 35731.35 | N29: 11220 | O29: 7388 | P29: 10319.35 | Q29: 3838 | R29: 2506 | S29: 5617.1 | T29: 560.2
A31: Option 3 - Accelerated coal fired plants retirement (close after 30 year life) MWp total retirements - Plant ages taken from ESAA (2010) Electricity Gas Australia | L31: MWp total capacity (=2011 scheduled peak capacity + non-scheduled peak capacity - peak capacity retirements
B32: ='Peak Supply data'!B44 -> National | C32: ='Peak Supply data'!C44 -> NEM | D32: ='Peak Supply data'!D44 -> NSW (inc. ACT) | E32: ='Peak Supply data'!E44 -> Victoria | F32: ='Peak Supply data'!F44 -> Queensland | G32: ='Peak Supply data'!G44 -> South Australia | H32: ='Peak Supply data'!H44 -> Tasmania | I32: ='Peak Supply data'!I44 -> Western Australia | J32: ='Peak Supply data'!J44 -> Northern Territory | L32: National | M32: NEM | N32: NSW (inc. ACT) | O32: Victoria | P32: Queensland | Q32: South Australia | R32: Tasmania | S32: Western Australia | T32: Northern Territory
A33: ='Peak Supply data'!A45 -> 2010/11 | B33: =SUM(D33:J33) -> 10354.65 | C33: =SUM(D33:H33) -> 10354.65 | D33: 4731 | E33: 3233 | F33: =475+35.6+1628.3+F22 -> 2162.65 | G33: 228 | H33: 0 | I33: 0 | J33: 0 | L33: =B5-B33+SUM('Generation data'!D64:J64) -> 42079.65 | M33: =C5-C33+SUM('Generation data'!D64:H64) -> 35902.35 | N33: =D5-D33+'Generation data'!D$64 -> 11680 | O33: =E5-E33+'Generation data'!E$64 -> 7559 | P33: =F5-F33+'Generation data'!F$64 -> 10319.35 | Q33: =G5-G33+'Generation data'!G$64 -> 3838 | R33: =H5-H33+'Generation data'!H$64 -> 2506 | S33: =I5-I33+'Generation data'!I$64 -> 5617.1 | T33: =J5-J33+'Generation data'!J$64 -> 560.2
A34: ='Peak Supply data'!A46 -> 2011/12 | B34: =SUM(D34:J34) -> 0 | C34: =SUM(D34:H34) -> 0 | D34: 0 | E34: 0 | F34: 0 | G34: 0 | H34: 0 | I34: 0 | J34: 0 | L34: =L33-B34 -> 42079.65 | M34: =M33-C34 -> 35902.35 | N34: =N33-D34 -> 11680 | O34: =O33-E34 -> 7559 | P34: =P33-F34 -> 10319.35 | Q34: =Q33-G34 -> 3838 | R34: =R33-H34 -> 2506 | S34: =S33-I34 -> 5617.1 | T34: =T33-J34 -> 560.2
A35: ='Peak Supply data'!A47 -> 2012/13 | B35: 5296 | C35: 5168 | D35: 5168 | E35: 0 | F35: 0 | G35: 0 | H35: 0 | I35: 128 | J35: 0 | L35: 36783.65 | M35: 30734.35 | N35: 6512 | O35: 7559 | P35: 10319.35 | Q35: 3838 | R35: 2506 | S35: 5489.1 | T35: 560.2
A36: ='Peak Supply data'!A48 -> 2013/14 | B36: 0 | C36: 0 | D36: 0 | E36: 0 | F36: 0 | G36: 0 | H36: 0 | I36: 0 | J36: 0 | L36: 36783.65 | M36: 30734.35 | N36: 6512 | O36: 7559 | P36: 10319.35 | Q36: 3838 | R36: 2506 | S36: 5489.1 | T36: 560.2
A37: ='Peak Supply data'!A49 -> 2014/15 | B37: 3410.5 | C37: 3410.5 | D37: 0 | E37: 2080.5 | F37: 1330 | G37: 0 | H37: 0 | I37: 0 | J37: 0 | L37: 33373.15 | M37: 27323.85 | N37: 6512 | O37: 5478.5 | P37: 8989.35 | Q37: 3838 | R37: 2506 | S37: 5489.1 | T37: 560.2
A38: ='Peak Supply data'!A50 -> 2015/16 | B38: 513 | C38: 513 | D38: 0 | E38: 0 | F38: 0 | G38: 513 | H38: 0 | I38: 0 | J38: 0 | L38: 32860.15 | M38: 26810.85 | N38: 6512 | O38: 5478.5 | P38: 8989.35 | Q38: 3325 | R38: 2506 | S38: 5489.1 | T38: 560.2
A39: ='Peak Supply data'!A51 -> 2016/17 | B39: 811 | C39: 0 | D39: 0 | E39: 0 | F39: 0 | G39: 0 | H39: 0 | I39: 811 | J39: 0 | L39: 32049.15 | M39: 26810.85 | N39: 6512 | O39: 5478.5 | P39: 8989.35 | Q39: 3325 | R39: 2506 | S39: 4678.1 | T39: 560.2
A40: ='Peak Supply data'!A52 -> 2017/18 | B40: 0 | C40: 0 | D40: 0 | E40: 0 | F40: 0 | G40: 0 | H40: 0 | I40: 0 | J40: 0 | L40: 32049.15 | M40: 26810.85 | N40: 6512 | O40: 5478.5 | P40: 8989.35 | Q40: 3325 | R40: 2506 | S40: 4678.1 | T40: 560.2
A41: ='Peak Supply data'!A53 -> 2018/19 | B41: 665 | C41: 665 | D41: 0 | E41: 0 | F41: 665 | G41: 0 | H41: 0 | I41: 0 | J41: 0 | L41: 31384.15 | M41: 26145.85 | N41: 6512 | O41: 5478.5 | P41: 8324.35 | Q41: 3325 | R41: 2506 | S41: 4678.1 | T41: 560.2
A42: ='Peak Supply data'!A54 -> 2019/20 | B42: 0 | C42: 0 | D42: 0 | E42: 0 | F42: 0 | G42: 0 | H42: 0 | I42: 0 | J42: 0 | L42: 31384.15 | M42: 26145.85 | N42: 6512 | O42: 5478.5 | P42: 8324.35 | Q42: 3325 | R42: 2506 | S42: 4678.1 | T42: 560.2
A43: ='Peak Supply data'!A55 -> 2020/21 | B43: 0 | C43: 0 | D43: 0 | E43: 0 | F43: 0 | G43: 0 | H43: 0 | I43: 0 | J43: 0 | L43: 31384.15 | M43: 26145.85 | N43: 6512 | O43: =O42-E43 -> 5478.5 | P43: 8324.35 | Q43: 3325 | R43: 2506 | S43: 4678.1 | T43: 560.2

Sheet Peak Supply data (hidden)
A1: Peak capacity of existing supply (commissioned in, and previous to, 2011)
A3: Source: ESAA (2010) Electricity Gas Australia (2008-09 capacity), and AEMO statement of opportunities 2009 and 2010 for capacity installed between 2009-2010. | O3: Source: Individual power station data from ESAA (2010). Newly installed capacity to 2011 obtained from AEMO (2010) Statement of Opportunities
B4: Existing MWp selection table | O4: Peak capacity reserve margins
B5: Option 1 | C5: Option 2 | D5: Option 3 | H5: Peak Capacity (MWp): | I5: =LOOKUP(I8,B5:F5,B6:F6) -> 52986.3 | P5: 2010-11 capacity - MW | Q5: 2010-2011 firm peak capacity (MWp) | R5: 2010-2011 forecast Peak demand (10% POE) - medium | S5: 2010-2011 forecast plant reserve margin (MWp) | T5: 2010-2011 forecast reserve plant margin (%) | U5: 2010-2011 forecast system firm peak rating
B6: =K19 -> 52986.3 | C6: =K33 -> 41908.65 | D6: =K47 -> 31384.15 | O6: NSW (inc. ACT) | P6: 16279.825 | Q6: 14660.71875 | R6: 15657 | S6: -996.28125 | T6: -0.06795582584 | U6: =Q6/P6 -> 0.9005452301
H7: Parameters | O7: VIC | P7: 13239.904 | Q7: 10968.5663 | R7: 10783 | S7: 185.5663 | T7: 0.01691800869 | U7: =Q7/P7 -> 0.8284475703
H8: Supply option: | I8: ='Control Panel'!D19 -> Option 1 - Planned retirements occur | O8: QLD | P8: 14037.985 | Q8: 12932.95325 | R8: 10524 | S8: 2408.95325 | T8: 0.1862647458 | U8: 0.9212827375
H9: Scale: | I9: =K18 -> National | O9: SA | P9: 4911.197 | Q9: 3698.56465 | R9: 3530 | S9: 168.56465 | T9: 0.0455756938 | U9: 0.7530882288
H10: Analysis timeframe: | I10: =K17 -> 2020/21 | O10: TAS | P10: 2910.267 | Q10: 1845.8444 | R10: 1932 | S10: -86.1556 | T10: -0.04667544025 | U10: 0.6342525961
O11: WA (SWIS) | P11: 5567.745 | Q11: 5116.04025 | R11: 4346 | S11: 770.04025 | T11: 0.1505148928 | U11: 0.9188711498
B12: National | C12: NEM | D12: NSW (inc. ACT) | E12: Victoria | F12: Queensland | G12: South Australia | H12: Tasmania | I12: Western Australia | J12: Northern Territory | O12: NT | P12: 733.347 | Q12: 696.36815 | R12: 295.2 | S12: 401.16815 | T12: 0.5760862986 | U12: 0.9495752352
A13: 2010-2011 firm peak capacity (MWp) | B13: =B17 -> 52434.3 | C13: =C17 -> 46257 | D13: 16411 | E13: 10792 | F13: 12482 | G13: 4066 | H13: 2506 | I13: 5617.1 | J13: 560.2 | O13: National | P13: 57680.27 | Q13: 49919.05575 | R13: 47067.2 | S13: 2851.85575 | T13: 0.05712960125 | U13: 0.8654442108
A14: Firm peak rating of system | D14: 0.9005452301 | E14: 0.8284475703 | F14: 0.9212827375 | G14: 0.7530882288 | H14: 0.6342525961 | I14: 0.9188711498 | J14: 0.9495752352 | O14: NEM | P14: 48468.911 | Q14: 44106.64735 | R14: 42426 | S14: 1680.64735 | T14: 0.03810417366 | U14: 0.9099987278
A15: Supply scenario 1 - Planned shut downs occur - MWp
B16: National | C16: NEM | D16: NSW (inc. ACT) | E16: Victoria | F16: Queensland | G16: South Australia | H16: Tasmania | I16: Western Australia | J16: Northern Territory
A17: 2010/11 | B17: =SUM(D17:J17) -> 52434.3 | C17: =SUM(D17:H17) -> 46257 | D17: ='Plant retirements'!D5+'Generation data'!D$64 -> 16411 | E17: ='Plant retirements'!E5+'Generation data'!E$64 -> 10792 | F17: ='Plant retirements'!F5+'Generation data'!F$64 -> 12482 | G17: ='Plant retirements'!G5+'Generation data'!G$64 -> 4066 | H17: ='Plant retirements'!H5+'Generation data'!H$64 -> 2506 | I17: ='Plant retirements'!I5+'Generation data'!I$64 -> 5617.1 | J17: ='Plant retirements'!J5+'Generation data'!J$64 -> 560.2 | K17: ='Control Panel'!$D$7 -> 2020/21 | L17: =IF(A17='Control Panel'!$D$7,1,0) -> 0
A18: 2011/12 | B18: =SUM(D18:J18) -> 53354.3 | C18: =SUM(D18:H18) -> 47177 | D18: ='Plant retirements'!D6+'Generation data'!D$64 -> 17242 | E18: ='Plant retirements'!E6+'Generation data'!E$64 -> 10865 | F18: ='Plant retirements'!F6+'Generation data'!F$64 -> 12460 | G18: ='Plant retirements'!G6+'Generation data'!G$64 -> 4245 | H18: ='Plant retirements'!H6+'Generation data'!H$64 -> 2365 | I18: ='Plant retirements'!I6+'Generation data'!I$64 -> 5617.1 | J18: ='Plant retirements'!J6+'Generation data'!J$64 -> 560.2 | K18: ='Control Panel'!$D$6 -> National | L18: =IF(A18='Control Panel'!$D$7,1,0) -> 0
A19: 2012/13 | B19: 53192.3 | C19: 47015 | D19: ='Plant retirements'!D7+'Generation data'!D$64 -> 17319 | E19: ='Plant retirements'!E7+'Generation data'!E$64 -> 10799 | F19: ='Plant retirements'!F7+'Generation data'!F$64 -> 12340 | G19: ='Plant retirements'!G7+'Generation data'!G$64 -> 4246 | H19: ='Plant retirements'!H7+'Generation data'!H$64 -> 2311 | I19: ='Plant retirements'!I7+'Generation data'!I$64 -> 5617.1 | J19: ='Plant retirements'!J7+'Generation data'!J$64 -> 560.2 | K19: =INDEX(A16:J27, MATCH(K17,A16:A27,0), MATCH(K18,A16:J16,0)) -> 52986.3 | L19: =IF(A19='Control Panel'!$D$7,1,0) -> 0
A20: 2013/14 | B20: 53339.3 | C20: 47162 | D20: ='Plant retirements'!D8+'Generation data'!D$64 -> 17319 | E20: ='Plant retirements'!E8+'Generation data'!E$64 -> 10810 | F20: ='Plant retirements'!F8+'Generation data'!F$64 -> 12339 | G20: ='Plant retirements'!G8+'Generation data'!G$64 -> 4247 | H20: ='Plant retirements'!H8+'Generation data'!H$64 -> 2447 | I20: ='Plant retirements'!I8+'Generation data'!I$64 -> 5617.1 | J20: ='Plant retirements'!J8+'Generation data'!J$64 -> 560.2 | L20: =IF(A20='Control Panel'!$D$7,1,0) -> 0
A21: 2014/15 | B21: 52767.3 | C21: 46590 | D21: ='Plant retirements'!D9+'Generation data'!D$64 -> 16647 | E21: ='Plant retirements'!E9+'Generation data'!E$64 -> 10818 | F21: ='Plant retirements'!F9+'Generation data'!F$64 -> 12339 | G21: ='Plant retirements'!G9+'Generation data'!G$64 -> 4248 | H21: ='Plant retirements'!H9+'Generation data'!H$64 -> 2538 | I21: ='Plant retirements'!I9+'Generation data'!I$64 -> 5617.1 | J21: ='Plant retirements'!J9+'Generation data'!J$64 -> 560.2 | L21: =IF(A21='Control Panel'!$D$7,1,0) -> 0
A22: 2015/16 | B22: 52816.3 | C22: 46639 | D22: ='Plant retirements'!D10+'Generation data'!D$64 -> 16719 | E22: ='Plant retirements'!E10+'Generation data'!E$64 -> 10826 | F22: ='Plant retirements'!F10+'Generation data'!F$64 -> 12309 | G22: ='Plant retirements'!G10+'Generation data'!G$64 -> 4248 | H22: ='Plant retirements'!H10+'Generation data'!H$64 -> 2537 | I22: ='Plant retirements'!I10+'Generation data'!I$64 -> 5617.1 | J22: ='Plant retirements'!J10+'Generation data'!J$64 -> 560.2 | L22: =IF(A22='Control Panel'!$D$7,1,0) -> 0
A23: 2016/17 | B23: 52978.3 | C23: 46801 | D23: ='Plant retirements'!D11+'Generation data'!D$64 -> 16719 | E23: ='Plant retirements'!E11+'Generation data'!E$64 -> 10919 | F23: ='Plant retirements'!F11+'Generation data'!F$64 -> 12282 | G23: ='Plant retirements'!G11+'Generation data'!G$64 -> 4248 | H23: ='Plant retirements'!H11+'Generation data'!H$64 -> 2633 | I23: ='Plant retirements'!I11+'Generation data'!I$64 -> 5617.1 | J23: ='Plant retirements'!J11+'Generation data'!J$64 -> 560.2 | L23: =IF(A23='Control Panel'!$D$7,1,0) -> 0
A24: 2017/18 | B24: 52989.3 | C24: 46812 | D24: ='Plant retirements'!D12+'Generation data'!D$64 -> 16719 | E24: ='Plant retirements'!E12+'Generation data'!E$64 -> 10925 | F24: ='Plant retirements'!F12+'Generation data'!F$64 -> 12281 | G24: ='Plant retirements'!G12+'Generation data'!G$64 -> 4248 | H24: ='Plant retirements'!H12+'Generation data'!H$64 -> 2639 | I24: ='Plant retirements'!I12+'Generation data'!I$64 -> 5617.1 | J24: ='Plant retirements'!J12+'Generation data'!J$64 -> 560.2 | L24: =IF(A24='Control Panel'!$D$7,1,0) -> 0
A25: 2018/19 | B25: 52993.3 | C25: 46816 | D25: ='Plant retirements'!D13+'Generation data'!D$64 -> 16719 | E25: ='Plant retirements'!E13+'Generation data'!E$64 -> 10923 | F25: ='Plant retirements'!F13+'Generation data'!F$64 -> 12281 | G25: ='Plant retirements'!G13+'Generation data'!G$64 -> 4248 | H25: ='Plant retirements'!H13+'Generation data'!H$64 -> 2645 | I25: ='Plant retirements'!I13+'Generation data'!I$64 -> 5617.1 | J25: ='Plant retirements'!J13+'Generation data'!J$64 -> 560.2 | L25: =IF(A25='Control Panel'!$D$7,1,0) -> 0
A26: 2019/20 | B26: 52986.3 | C26: 46809 | D26: ='Plant retirements'!D14+'Generation data'!D$64 -> 16719 | E26: ='Plant retirements'!E14+'Generation data'!E$64 -> 10921 | F26: ='Plant retirements'!F14+'Generation data'!F$64 -> 12279 | G26: ='Plant retirements'!G14+'Generation data'!G$64 -> 4248 | H26: ='Plant retirements'!H14+'Generation data'!H$64 -> 2642 | I26: ='Plant retirements'!I14+'Generation data'!I$64 -> 5617.1 | J26: ='Plant retirements'!J14+'Generation data'!J$64 -> 560.2 | L26: =IF(A26='Control Panel'!$D$7,1,0) -> 0
A27: 2020/21 | B27: 52986.3 | C27: 46809 | D27: ='Plant retirements'!D15+'Generation data'!D$64 -> 16719 | E27: ='Plant retirements'!E15+'Generation data'!E$64 -> 10921 | F27: ='Plant retirements'!F15+'Generation data'!F$64 -> 12279 | G27: ='Plant retirements'!G15+'Generation data'!G$64 -> 4248 | H27: ='Plant retirements'!H15+'Generation data'!H$64 -> 2642 | I27: ='Plant retirements'!I15+'Generation data'!I$64 -> 5617.1 | J27: ='Plant retirements'!J15+'Generation data'!J$64 -> 560.2 | L27: =IF(A27='Control Panel'!$D$7,1,0) -> 1
B28: =SUMPRODUCT(B17:B27,$L$31:$L$41) -> 52986.3 | C28: 46809 | D28: 16719 | E28: 10921 | F28: 12279 | G28: 4248 | H28: 2642 | I28: 5617.1 | J28: 560.2
A29: Option 2 - coal plants retire at initial scheduled retirement date (40 years life)
B30: National | C30: NEM | D30: NSW (inc. ACT) | E30: Victoria | F30: Queensland | G30: South Australia | H30: Tasmania | I30: Western Australia | J30: Northern Territory
A31: 2010/11 | B31: ='Plant retirements'!L19 -> 49237.3 | C31: ='Plant retirements'!M19 -> 43060 | D31: ='Plant retirements'!N19 -> 15381 | E31: ='Plant retirements'!O19 -> 8868 | F31: ='Plant retirements'!P19 -> 12007 | G31: ='Plant retirements'!Q19 -> 3838 | H31: ='Plant retirements'!R19 -> 2506 | I31: ='Plant retirements'!S19 -> 5617.1 | J31: ='Plant retirements'!T19 -> 560.2 | K31: ='Control Panel'!$D$7 -> 2020/21 | L31: =IF(A31='Control Panel'!$D$7,1,0) -> 0
A32: 2011/12 | B32: ='Plant retirements'!L20 -> 47280.3 | C32: ='Plant retirements'!M20 -> 41103 | D32: ='Plant retirements'!N20 -> 13424 | E32: ='Plant retirements'!O20 -> 8868 | F32: ='Plant retirements'!P20 -> 12007 | G32: ='Plant retirements'!Q20 -> 3838 | H32: ='Plant retirements'!R20 -> 2506 | I32: ='Plant retirements'!S20 -> 5617.1 | J32: ='Plant retirements'!T20 -> 560.2 | K32: ='Control Panel'!$D$6 -> National | L32: =IF(A32='Control Panel'!$D$7,1,0) -> 0
A33: 2012/13 | B33: ='Plant retirements'!L21 -> 47280.3 | C33: ='Plant retirements'!M21 -> 41103 | D33: ='Plant retirements'!N21 -> 13424 | E33: ='Plant retirements'!O21 -> 8868 | F33: ='Plant retirements'!P21 -> 12007 | G33: ='Plant retirements'!Q21 -> 3838 | H33: ='Plant retirements'!R21 -> 2506 | I33: ='Plant retirements'!S21 -> 5617.1 | J33: ='Plant retirements'!T21 -> 560.2 | K33: =INDEX(A30:J41, MATCH(K31,A30:A41,0), MATCH(K32,A30:J30,0)) -> 41908.65 | L33: =IF(A33='Control Panel'!$D$7,1,0) -> 0
A34: 2013/14 | B34: ='Plant retirements'!L22 -> 45776.55 | C34: ='Plant retirements'!M22 -> 39599.25 | D34: ='Plant retirements'!N22 -> 13424 | E34: ='Plant retirements'!O22 -> 7388 | F34: ='Plant retirements'!P22 -> 11983.25 | G34: ='Plant retirements'!Q22 -> 3838 | H34: ='Plant retirements'!R22 -> 2506 | I34: ='Plant retirements'!S22 -> 5617.1 | J34: ='Plant retirements'!T22 -> 560.2 | L34: =IF(A34='Control Panel'!$D$7,1,0) -> 0
A35: 2014/15 | B35: ='Plant retirements'!L23 -> 45740.95 | C35: ='Plant retirements'!M23 -> 39563.65 | D35: ='Plant retirements'!N23 -> 13424 | E35: ='Plant retirements'!O23 -> 7388 | F35: ='Plant retirements'!P23 -> 11947.65 | G35: ='Plant retirements'!Q23 -> 3838 | H35: ='Plant retirements'!R23 -> 2506 | I35: ='Plant retirements'!S23 -> 5617.1 | J35: ='Plant retirements'!T23 -> 560.2 | L35: =IF(A35='Control Panel'!$D$7,1,0) -> 0
A36: 2015/16 | B36: ='Plant retirements'!L24 -> 45740.95 | C36: ='Plant retirements'!M24 -> 39563.65 | D36: ='Plant retirements'!N24 -> 13424 | E36: ='Plant retirements'!O24 -> 7388 | F36: ='Plant retirements'!P24 -> 11947.65 | G36: ='Plant retirements'!Q24 -> 3838 | H36: ='Plant retirements'!R24 -> 2506 | I36: ='Plant retirements'!S24 -> 5617.1 | J36: ='Plant retirements'!T24 -> 560.2 | L36: =IF(A36='Control Panel'!$D$7,1,0) -> 0
A37: 2016/17 | B37: ='Plant retirements'!L25 -> 43162.65 | C37: ='Plant retirements'!M25 -> 36985.35 | D37: ='Plant retirements'!N25 -> 12474 | E37: ='Plant retirements'!O25 -> 7388 | F37: ='Plant retirements'!P25 -> 10319.35 | G37: ='Plant retirements'!Q25 -> 3838 | H37: ='Plant retirements'!R25 -> 2506 | I37: ='Plant retirements'!S25 -> 5617.1 | J37: ='Plant retirements'!T25 -> 560.2 | L37: =IF(A37='Control Panel'!$D$7,1,0) -> 0
A38: 2017/18 | B38: ='Plant retirements'!L26 -> 43162.65 | C38: ='Plant retirements'!M26 -> 36985.35 | D38: ='Plant retirements'!N26 -> 12474 | E38: ='Plant retirements'!O26 -> 7388 | F38: ='Plant retirements'!P26 -> 10319.35 | G38: ='Plant retirements'!Q26 -> 3838 | H38: ='Plant retirements'!R26 -> 2506 | I38: ='Plant retirements'!S26 -> 5617.1 | J38: ='Plant retirements'!T26 -> 560.2 | L38: =IF(A38='Control Panel'!$D$7,1,0) -> 0
A39: 2018/19 | B39: ='Plant retirements'!L27 -> 41908.65 | C39: ='Plant retirements'!M27 -> 35731.35 | D39: ='Plant retirements'!N27 -> 11220 | E39: ='Plant retirements'!O27 -> 7388 | F39: ='Plant retirements'!P27 -> 10319.35 | G39: ='Plant retirements'!Q27 -> 3838 | H39: ='Plant retirements'!R27 -> 2506 | I39: ='Plant retirements'!S27 -> 5617.1 | J39: ='Plant retirements'!T27 -> 560.2 | L39: =IF(A39='Control Panel'!$D$7,1,0) -> 0
A40: 2019/20 | B40: ='Plant retirements'!L28 -> 41908.65 | C40: ='Plant retirements'!M28 -> 35731.35 | D40: ='Plant retirements'!N28 -> 11220 | E40: ='Plant retirements'!O28 -> 7388 | F40: ='Plant retirements'!P28 -> 10319.35 | G40: ='Plant retirements'!Q28 -> 3838 | H40: ='Plant retirements'!R28 -> 2506 | I40: ='Plant retirements'!S28 -> 5617.1 | J40: ='Plant retirements'!T28 -> 560.2 | L40: =IF(A40='Control Panel'!$D$7,1,0) -> 0
A41: 2020/21 | B41: ='Plant retirements'!L29 -> 41908.65 | C41: ='Plant retirements'!M29 -> 35731.35 | D41: ='Plant retirements'!N29 -> 11220 | E41: ='Plant retirements'!O29 -> 7388 | F41: ='Plant retirements'!P29 -> 10319.35 | G41: ='Plant retirements'!Q29 -> 3838 | H41: ='Plant retirements'!R29 -> 2506 | I41: ='Plant retirements'!S29 -> 5617.1 | J41: ='Plant retirements'!T29 -> 560.2 | L41: =IF(A41='Control Panel'!$D$7,1,0) -> 1
B42: =SUMPRODUCT(B31:B41,$L$31:$L$41) -> 41908.65 | C42: =SUMPRODUCT(C31:C41,$L$31:$L$41) -> 35731.35 | D42: 11220 | E42: 7388 | F42: 10319.35 | G42: 3838 | H42: 2506 | I42: 5617.1 | J42: 560.2
A43: Option 3 - Accelerated coal fired plants retirement (close after 30 year life)
B44: National | C44: NEM | D44: NSW (inc. ACT) | E44: Victoria | F44: Queensland | G44: South Australia | H44: Tasmania | I44: Western Australia | J44: Northern Territory
A45: 2010/11 | B45: ='Plant retirements'!L33 -> 42079.65 | C45: ='Plant retirements'!M33 -> 35902.35 | D45: ='Plant retirements'!N33 -> 11680 | E45: ='Plant retirements'!O33 -> 7559 | F45: ='Plant retirements'!P33 -> 10319.35 | G45: ='Plant retirements'!Q33 -> 3838 | H45: ='Plant retirements'!R33 -> 2506 | I45: ='Plant retirements'!S33 -> 5617.1 | J45: ='Plant retirements'!T33 -> 560.2 | K45: ='Control Panel'!$D$7 -> 2020/21 | L45: =IF(A45='Control Panel'!$D$7,1,0) -> 0
A46: 2011/12 | B46: ='Plant retirements'!L34 -> 42079.65 | C46: ='Plant retirements'!M34 -> 35902.35 | D46: ='Plant retirements'!N34 -> 11680 | E46: ='Plant retirements'!O34 -> 7559 | F46: ='Plant retirements'!P34 -> 10319.35 | G46: ='Plant retirements'!Q34 -> 3838 | H46: ='Plant retirements'!R34 -> 2506 | I46: ='Plant retirements'!S34 -> 5617.1 | J46: ='Plant retirements'!T34 -> 560.2 | K46: ='Control Panel'!$D$6 -> National | L46: =IF(A46='Control Panel'!$D$7,1,0) -> 0
A47: 2012/13 | B47: ='Plant retirements'!L35 -> 36783.65 | C47: ='Plant retirements'!M35 -> 30734.35 | D47: ='Plant retirements'!N35 -> 6512 | E47: ='Plant retirements'!O35 -> 7559 | F47: ='Plant retirements'!P35 -> 10319.35 | G47: ='Plant retirements'!Q35 -> 3838 | H47: ='Plant retirements'!R35 -> 2506 | I47: ='Plant retirements'!S35 -> 5489.1 | J47: ='Plant retirements'!T35 -> 560.2 | K47: =INDEX(A44:J55, MATCH(K45,A44:A55,0), MATCH(K46,A44:J44,0)) -> 31384.15 | L47: =IF(A47='Control Panel'!$D$7,1,0) -> 0
A48: 2013/14 | B48: ='Plant retirements'!L36 -> 36783.65 | C48: ='Plant retirements'!M36 -> 30734.35 | D48: ='Plant retirements'!N36 -> 6512 | E48: ='Plant retirements'!O36 -> 7559 | F48: ='Plant retirements'!P36 -> 10319.35 | G48: ='Plant retirements'!Q36 -> 3838 | H48: ='Plant retirements'!R36 -> 2506 | I48: ='Plant retirements'!S36 -> 5489.1 | J48: ='Plant retirements'!T36 -> 560.2 | L48: =IF(A48='Control Panel'!$D$7,1,0) -> 0
A49: 2014/15 | B49: ='Plant retirements'!L37 -> 33373.15 | C49: ='Plant retirements'!M37 -> 27323.85 | D49: ='Plant retirements'!N37 -> 6512 | E49: ='Plant retirements'!O37 -> 5478.5 | F49: ='Plant retirements'!P37 -> 8989.35 | G49: ='Plant retirements'!Q37 -> 3838 | H49: ='Plant retirements'!R37 -> 2506 | I49: ='Plant retirements'!S37 -> 5489.1 | J49: ='Plant retirements'!T37 -> 560.2 | L49: =IF(A49='Control Panel'!$D$7,1,0) -> 0
A50: 2015/16 | B50: ='Plant retirements'!L38 -> 32860.15 | C50: ='Plant retirements'!M38 -> 26810.85 | D50: ='Plant retirements'!N38 -> 6512 | E50: ='Plant retirements'!O38 -> 5478.5 | F50: ='Plant retirements'!P38 -> 8989.35 | G50: ='Plant retirements'!Q38 -> 3325 | H50: ='Plant retirements'!R38 -> 2506 | I50: ='Plant retirements'!S38 -> 5489.1 | J50: ='Plant retirements'!T38 -> 560.2 | L50: =IF(A50='Control Panel'!$D$7,1,0) -> 0
A51: 2016/17 | B51: ='Plant retirements'!L39 -> 32049.15 | C51: ='Plant retirements'!M39 -> 26810.85 | D51: ='Plant retirements'!N39 -> 6512 | E51: ='Plant retirements'!O39 -> 5478.5 | F51: ='Plant retirements'!P39 -> 8989.35 | G51: ='Plant retirements'!Q39 -> 3325 | H51: ='Plant retirements'!R39 -> 2506 | I51: ='Plant retirements'!S39 -> 4678.1 | J51: ='Plant retirements'!T39 -> 560.2 | L51: =IF(A51='Control Panel'!$D$7,1,0) -> 0
A52: 2017/18 | B52: ='Plant retirements'!L40 -> 32049.15 | C52: ='Plant retirements'!M40 -> 26810.85 | D52: ='Plant retirements'!N40 -> 6512 | E52: ='Plant retirements'!O40 -> 5478.5 | F52: ='Plant retirements'!P40 -> 8989.35 | G52: ='Plant retirements'!Q40 -> 3325 | H52: ='Plant retirements'!R40 -> 2506 | I52: ='Plant retirements'!S40 -> 4678.1 | J52: ='Plant retirements'!T40 -> 560.2 | L52: =IF(A52='Control Panel'!$D$7,1,0) -> 0
A53: 2018/19 | B53: ='Plant retirements'!L41 -> 31384.15 | C53: ='Plant retirements'!M41 -> 26145.85 | D53: ='Plant retirements'!N41 -> 6512 | E53: ='Plant retirements'!O41 -> 5478.5 | F53: ='Plant retirements'!P41 -> 8324.35 | G53: ='Plant retirements'!Q41 -> 3325 | H53: ='Plant retirements'!R41 -> 2506 | I53: ='Plant retirements'!S41 -> 4678.1 | J53: ='Plant retirements'!T41 -> 560.2 | L53: =IF(A53='Control Panel'!$D$7,1,0) -> 0
A54: 2019/20 | B54: ='Plant retirements'!L42 -> 31384.15 | C54: ='Plant retirements'!M42 -> 26145.85 | D54: ='Plant retirements'!N42 -> 6512 | E54: ='Plant retirements'!O42 -> 5478.5 | F54: ='Plant retirements'!P42 -> 8324.35 | G54: ='Plant retirements'!Q42 -> 3325 | H54: ='Plant retirements'!R42 -> 2506 | I54: ='Plant retirements'!S42 -> 4678.1 | J54: ='Plant retirements'!T42 -> 560.2 | L54: =IF(A54='Control Panel'!$D$7,1,0) -> 0
A55: 2020/21 | B55: ='Plant retirements'!L43 -> 31384.15 | C55: ='Plant retirements'!M43 -> 26145.85 | D55: ='Plant retirements'!N43 -> 6512 | E55: ='Plant retirements'!O43 -> 5478.5 | F55: ='Plant retirements'!P43 -> 8324.35 | G55: ='Plant retirements'!Q43 -> 3325 | H55: ='Plant retirements'!R43 -> 2506 | I55: ='Plant retirements'!S43 -> 4678.1 | J55: ='Plant retirements'!T43 -> 560.2 | L55: =IF(A55='Control Panel'!$D$7,1,0) -> 1
B56: =SUMPRODUCT(B45:B55,$L$31:$L$41) -> 31384.15 | C56: 26145.85 | D56: 6512 | E56: 5478.5 | F56: 8324.35 | G56: 3325 | H56: 2506 | I56: 4678.1 | J56: 560.2
A58: Calculations for coal power station efficiency factor (affects capacity of power station efficiency technology)
B59: Percent reduction of black coal fired power
B60: National | C60: NEM | D60: NSW (inc. ACT) | E60: Victoria | F60: Queensland | G60: South Australia | H60: Tasmania | I60: Western Australia | J60: Northern Territory | K60: Selected region | L60: Selected existing supply option | X60: Percent reduction of existing black coal capacity in scenario
A61: Option 1 - Planned retirements occur | B61: =SUM(D61:H61) -> 105 | C61: =SUM(D61:H61) -> 105 | D61: =D28-D$13 -> 308 | E61: 0 | F61: =F28-F$13 -> -203 | G61: 0 | H61: 0 | I61: =I28-I$13 -> 0 | J61: =J28-J$13 -> 0 | K61: =SUMPRODUCT(B61:J61,$B$65:$J$65) -> 105 | L61: =IF(A61='Control Panel'!$D$19,1,0) -> 1 | M61: =SUMPRODUCT(K61:K63,L61:L63) -> 105 | X61: =IF(ISNUMBER(M61/K64),IF(M61/K64<0,M61/K64,0),0) -> 0
A62: Option 2 - Coal plants retire after 40 years operation | B62: =SUM(D62:H62) -> -7353.65 | C62: =SUM(D62:H62) -> -7353.65 | D62: =D42-D$13 -> -5191 | E62: 0 | F62: =F42-F$13 -> -2162.65 | G62: 0 | H62: =H42-H$13 -> 0 | I62: =I42-I$13 -> 0 | J62: =J42-J$13 -> 0 | K62: =SUMPRODUCT(B62:J62,$B$65:$J$65) -> -7353.65 | L62: =IF(A62='Control Panel'!$D$19,1,0) -> 0
A63: Option 3 - Coal plants retire after 30 years operation | B63: =SUM(D63:H63) -> -14056.65 | C63: =SUM(D63:H63) -> -14056.65 | D63: =D56-D$13 -> -9899 | E63: 0 | F63: =F56-F$13 -> -4157.65 | G63: 0 | H63: =H56-H$13 -> 0 | I63: =I56-I$13 -> -939 | J63: =J56-J$13 -> 0 | K63: =SUMPRODUCT(B63:J63,$B$65:$J$65) -> -14056.65 | L63: =IF(A63='Control Panel'!$D$19,1,0) -> 0
A64: Total initial MWp | B64: =SUM(D64:H64) -> 20535 | C64: =SUM(D64:H64) -> 20535 | D64: =11730*$H$76 -> 11730 | E64: 0 | F64: =8805*H76 -> 8805 | G64: 0 | H64: 0 | I64: =1537*H76 -> 1537 | J64: 0 | K64: =SUMPRODUCT(B64:J64,$B$65:$J$65) -> 20535
A65: Dummy | B65: =IF(B60=$I$9,1,0) -> 1 | C65: =IF(C60=$I$9,1,0) -> 0 | D65: 0 | E65: 0 | F65: 0 | G65: 0 | H65: 0 | I65: 0 | J65: 0
B67: Percent reduction of brown coal fired power
B68: National | C68: NEM | D68: NSW (inc. ACT) | E68: Victoria | F68: Queensland | G68: South Australia | H68: Tasmania | I68: Western Australia | J68: Northern Territory | K68: Selected region | L68: Selected existing supply option | X68: Percent reduction of brown coal capacity in scenario
A69: Option 1 - Planned retirements occur | B69: =SUM(D69:J69) -> 311 | C69: =SUM(D69:H69) -> 311 | D69: 0 | E69: =E28-E$13 -> 129 | F69: 0 | G69: =G28-G$13 -> 182 | H69: 0 | I69: =I61 -> 0 | J69: =J61 -> 0 | K69: =SUMPRODUCT(B69:J69,$B$65:$J$65) -> 311 | L69: =IF(A69='Control Panel'!$D$19,1,0) -> 1 | M69: =SUMPRODUCT(K69:K71,L69:L71) -> 311 | X69: =IF(ISNUMBER(M69/K72),IF(M69/K72<0,M69/K72,0),0) -> 0
A70: Option 2 - Coal plants retire after 40 years operation | B70: =SUM(D70:J70) -> -3632 | C70: =SUM(D70:H70) -> -3632 | D70: 0 | E70: =E42-E$13 -> -3404 | F70: 0 | G70: =G42-G$13 -> -228 | H70: 0 | I70: 0 | J70: 0 | K70: =SUMPRODUCT(B70:J70,$B$65:$J$65) -> -3632 | L70: =IF(A70='Control Panel'!$D$19,1,0) -> 0
A71: Option 3 - Coal plants retire after 30 years operation | B71: =SUM(D71:J71) -> -6054.5 | C71: =SUM(D71:H71) -> -6054.5 | D71: 0 | E71: =E56-E$13 -> -5313.5 | F71: 0 | G71: =G56-G$13 -> -741 | H71: 0 | I71: 0 | J71: 0 | K71: =SUMPRODUCT(B71:J71,$B$65:$J$65) -> -6054.5 | L71: =IF(A71='Control Panel'!$D$19,1,0) -> 0
A72: Total MWp | B72: =SUM(D72:J72) -> 7335 | C72: =SUM(D72:H72) -> 7335 | D72: 0 | E72: =6555*$H$76 -> 6555 | F72: 0 | G72: =780*H76 -> 780 | H72: 0 | I72: 0 | J72: 0 | K72: =SUMPRODUCT(B72:J72,$B$65:$J$65) -> 7335
A73: Dummy | B73: =IF(B68=$I$9,1,0) -> 1 | C73: =IF(C68=$I$9,1,0) -> 0 | D73: 0 | E73: 0 | F73: 0 | G73: 0 | H73: 0 | I73: 0 | J73: 0
G76: Firm peak rating used in calculations | H76: 1

Sheet Generation data (hidden)
A1: Generation provided by existing supply (GWh)
B2: This spreadsheets calculates the generation provided by existing supply.
B5: Parameters | E5: Selection table | F5: Fixed CF | G5: Flexible CF
B6: Supply option: | C6: =IF('Control Panel'!$D$20='Control Panel'!$D$43,'Generation data'!F5,'Generation data'!G5) -> Fixed CF | E6: ='Control Panel'!D42 -> Option 1 - Planned retirements occur | F6: =L18 -> 240106.2854 | G6: =X18 -> 356894.6232
B7: Capacity factors: | C7: ='Control Panel'!D19 -> Option 1 - Planned retirements occur | E7: ='Control Panel'!E42 -> Option 2 - Coal plants retire after 40 years operation | F7: =L32 -> 184510.0063 | G7: =X32 -> 273758.7865
B8: Scale: | C8: =L17 -> National | E8: ='Control Panel'!F42 -> Option 3 - Coal plants retire after 30 years operation | F8: =L46 -> 138217.8321 | G8: =X46 -> 199774.4799
B9: Analysis year: | C9: =L16 -> 2020/21 | E9: Annual generation capability of existing supply (GWh) | G9: =INDEX(E5:G10, MATCH(C7,E5:E10,0),MATCH(C6,E5:G5,0)) -> 240106.2854
A13: Fixed capacity factors on existing capacity | N13: Flexible capacity factors on existing capacity 1
A14: Supply scenario 1 - BAU (Committed capacity to 2011 installed and planned shut downs occur - GWh) | N14: Supply scenario 1 - BAU (Committed capacity to 2011 installed and planned shut downs occur - GWh)
B15: National | C15: NEM | D15: NSW (inc. ACT) | E15: Victoria | F15: Queensland | G15: South Australia | H15: Tasmania | I15: Western Australia | J15: Northern Territory | O15: National | P15: NEM | Q15: NSW (inc. ACT) | R15: Victoria | S15: Queensland | T15: South Australia | U15: Tasmania | V15: Western Australia | W15: Northern Territory
A16: 2010/11 | B16: =SUM(D16:J16) -> 237821.5 | C16: =SUM(D16:H16) -> 218528 | D16: =D$65*('Peak Supply data'!D17/'Peak Supply data'!D$13) -> 75135 | E16: =E$65*('Peak Supply data'!E17/'Peak Supply data'!E$13) -> 57196 | F16: =F$65*('Peak Supply data'!F17/'Peak Supply data'!F$13) -> 61625 | G16: =G$65*('Peak Supply data'!G17/'Peak Supply data'!G$13) -> 14756 | H16: =H$65*('Peak Supply data'!H17/'Peak Supply data'!H$13) -> 9816 | I16: =I$65*('Peak Supply data'!I17/'Peak Supply data'!I$13) -> 17384 | J16: =J$65*('Peak Supply data'!J17/'Peak Supply data'!J$13) -> 1909.5 | L16: ='Control Panel'!$D$7 -> 2020/21 | N16: 2010/11 | O16: =SUM(Q16:W16) -> 352370.9467 | P16: =SUM(Q16:U16) -> 303631.4421 | Q16: =(D16-D$67-D$76)*(1+D$82) -> 112037.6937 | R16: =(E16-E$67-E$76)*(1+E$82) -> 67923.97047 | S16: 93976.80126 | T16: 26652.51925 | U16: 3040.457399 | V16: 43238.87652 | W16: 5500.6281 | X16: ='Control Panel'!$D$7 -> 2020/21
A17: 2011/12 | B17: =SUM(D17:J17) -> 242001.6818 | C17: =SUM(D17:H17) -> 222708.1818 | D17: =D$65*('Peak Supply data'!D18/'Peak Supply data'!D$13) -> 78939.59357 | E17: =E$65*('Peak Supply data'!E18/'Peak Supply data'!E$13) -> 57582.88918 | F17: =F$65*('Peak Supply data'!F18/'Peak Supply data'!F$13) -> 61516.38359 | G17: =G$65*('Peak Supply data'!G18/'Peak Supply data'!G$13) -> 15405.6124 | H17: =H$65*('Peak Supply data'!H18/'Peak Supply data'!H$13) -> 9263.703113 | I17: =I$65*('Peak Supply data'!I18/'Peak Supply data'!I$13) -> 17384 | J17: =J$65*('Peak Supply data'!J18/'Peak Supply data'!J$13) -> 1909.5 | L17: ='Control Panel'!$D$6 -> National | N17: 2011/12 | O17: 358777.4908 | P17: 310037.9862 | Q17: =(D17-D$67-D$76)*(1+D$82) -> 117969.3936 | R17: 68410.20533 | S17: 93805.61046 | T17: 28267.46253 | U17: 1585.314281 | V17: 43238.87652 | W17: 5500.6281 | X17: ='Control Panel'!$D$6 -> National
A18: 2012/13 | B18: 241204.0812 | C18: 221910.5812 | D18: =D$65*('Peak Supply data'!D19/'Peak Supply data'!D$13) -> 79292.1251 | E18: =E$65*('Peak Supply data'!E19/'Peak Supply data'!E$13) -> 57233.09896 | F18: =F$65*('Peak Supply data'!F19/'Peak Supply data'!F$13) -> 60923.93046 | G18: =G$65*('Peak Supply data'!G19/'Peak Supply data'!G$13) -> 15409.24152 | H18: =H$65*('Peak Supply data'!H19/'Peak Supply data'!H$13) -> 9052.185156 | I18: =I$65*('Peak Supply data'!I19/'Peak Supply data'!I$13) -> 17384 | J18: =J$65*('Peak Supply data'!J19/'Peak Supply data'!J$13) -> 1909.5 | L18: =INDEX(A15:K26, MATCH(L16,A15:A26,0), MATCH(L17,A15:K15,0)) -> 240106.2854 | N18: 2012/13 | O18: 357405.4745 | P18: 308665.9698 | Q18: 118519.0216 | R18: 67970.59573 | S18: 92871.84247 | T18: 28276.48456 | U18: 1028.025427 | V18: 43238.87652 | W18: 5500.6281 | X18: =INDEX(N15:W26, MATCH(X16,N15:N26,0), MATCH(X17,N15:W15,0)) -> 356894.6232
A19: 2013/14 | B19: =SUM(D19:J19) -> 241793.7835 | C19: 222500.2835 | D19: =D$65*('Peak Supply data'!D20/'Peak Supply data'!D$13) -> 79292.1251 | E19: =E$65*('Peak Supply data'!E20/'Peak Supply data'!E$13) -> 57291.39733 | F19: =F$65*('Peak Supply data'!F20/'Peak Supply data'!F$13) -> 60918.99335 | G19: =G$65*('Peak Supply data'!G20/'Peak Supply data'!G$13) -> 15412.87063 | H19: =H$65*('Peak Supply data'!H20/'Peak Supply data'!H$13) -> 9584.897047 | I19: =I$65*('Peak Supply data'!I20/'Peak Supply data'!I$13) -> 17384 | J19: =J$65*('Peak Supply data'!J20/'Peak Supply data'!J$13) -> 1909.5 | N19: 2013/14 | O19: 358883.5256 | P19: 310144.021 | Q19: 118519.0216 | R19: 68043.864 | S19: 92864.06107 | T19: 28285.50659 | U19: 2431.567725 | V19: 43238.87652 | W19: 5500.6281
A20: 2014/15 | B20: 239119.6195 | C20: 219826.1195 | D20: =D$65*('Peak Supply data'!D21/'Peak Supply data'!D$13) -> 76215.48626 | E20: =E$65*('Peak Supply data'!E21/'Peak Supply data'!E$13) -> 57333.79615 | F20: =F$65*('Peak Supply data'!F21/'Peak Supply data'!F$13) -> 60918.99335 | G20: =G$65*('Peak Supply data'!G21/'Peak Supply data'!G$13) -> 15416.49975 | H20: =H$65*('Peak Supply data'!H21/'Peak Supply data'!H$13) -> 9941.343974 | I20: =I$65*('Peak Supply data'!I21/'Peak Supply data'!I$13) -> 17384 | J20: =J$65*('Peak Supply data'!J21/'Peak Supply data'!J$13) -> 1909.5 | N20: 2014/15 | O20: 355088.2149 | P20: 306348.7103 | Q20: 113722.2679 | R20: 68097.15001 | S20: 92864.06107 | T20: 28294.52862 | U20: 3370.702645 | V20: 43238.87652 | W20: 5500.6281
A21: 2015/16 | B21: 239339.6279 | C21: 220046.1279 | D21: =D$65*('Peak Supply data'!D22/'Peak Supply data'!D$13) -> 76545.12613 | E21: =E$65*('Peak Supply data'!E22/'Peak Supply data'!E$13) -> 57376.19496 | F21: =F$65*('Peak Supply data'!F22/'Peak Supply data'!F$13) -> 60770.88007 | G21: =G$65*('Peak Supply data'!G22/'Peak Supply data'!G$13) -> 15416.49975 | H21: =H$65*('Peak Supply data'!H22/'Peak Supply data'!H$13) -> 9937.426975 | I21: =I$65*('Peak Supply data'!I22/'Peak Supply data'!I$13) -> 17384 | J21: =J$65*('Peak Supply data'!J22/'Peak Supply data'!J$13) -> 1909.5 | N21: 2015/16 | O21: 355411.6766 | P21: 306672.172 | Q21: 114236.2058 | R21: 68150.43602 | S21: 92630.61907 | T21: 28294.52862 | U21: 3360.382481 | V21: 43238.87652 | W21: 5500.6281
A22: 2016/17 | B22: 240075.2441 | C22: 220781.7441 | D22: =D$65*('Peak Supply data'!D23/'Peak Supply data'!D$13) -> 76545.12613 | E22: =E$65*('Peak Supply data'!E23/'Peak Supply data'!E$13) -> 57869.08117 | F22: =F$65*('Peak Supply data'!F23/'Peak Supply data'!F$13) -> 60637.57811 | G22: =G$65*('Peak Supply data'!G23/'Peak Supply data'!G$13) -> 15416.49975 | H22: =H$65*('Peak Supply data'!H23/'Peak Supply data'!H$13) -> 10313.4589 | I22: =I$65*('Peak Supply data'!I23/'Peak Supply data'!I$13) -> 17384 | J22: =J$65*('Peak Supply data'!J23/'Peak Supply data'!J$13) -> 1909.5 | N22: 2016/17 | O22: 356811.7645 | P22: 308072.2598 | Q22: 114236.2058 | R22: 68769.88591 | S22: 92420.52127 | T22: 28294.52862 | U22: 4351.118221 | V22: 43238.87652 | W22: 5500.6281
A23: 2017/18 | B23: 240125.6081 | C23: 220832.1081 | D23: =D$65*('Peak Supply data'!D24/'Peak Supply data'!D$13) -> 76545.12613 | E23: =E$65*('Peak Supply data'!E24/'Peak Supply data'!E$13) -> 57900.88028 | F23: =F$65*('Peak Supply data'!F24/'Peak Supply data'!F$13) -> 60632.641 | G23: =G$65*('Peak Supply data'!G24/'Peak Supply data'!G$13) -> 15416.49975 | H23: =H$65*('Peak Supply data'!H24/'Peak Supply data'!H$13) -> 10336.96089 | I23: =I$65*('Peak Supply data'!I24/'Peak Supply data'!I$13) -> 17384 | J23: =J$65*('Peak Supply data'!J24/'Peak Supply data'!J$13) -> 1909.5 | N23: 2017/18 | O23: 356905.8685 | P23: 308166.3639 | Q23: 114236.2058 | R23: 68809.85041 | S23: 92412.73987 | T23: 28294.52862 | U23: 4413.039205 | V23: 43238.87652 | W23: 5500.6281
A24: 2018/19 | B24: 240138.5104 | C24: 220845.0104 | D24: =D$65*('Peak Supply data'!D25/'Peak Supply data'!D$13) -> 76545.12613 | E24: =E$65*('Peak Supply data'!E25/'Peak Supply data'!E$13) -> 57890.28058 | F24: =F$65*('Peak Supply data'!F25/'Peak Supply data'!F$13) -> 60632.641 | G24: =G$65*('Peak Supply data'!G25/'Peak Supply data'!G$13) -> 15416.49975 | H24: =H$65*('Peak Supply data'!H25/'Peak Supply data'!H$13) -> 10360.46289 | I24: =I$65*('Peak Supply data'!I25/'Peak Supply data'!I$13) -> 17384 | J24: =J$65*('Peak Supply data'!J25/'Peak Supply data'!J$13) -> 1909.5 | N24: 2018/19 | O24: 356954.468 | P24: 308214.9634 | Q24: 114236.2058 | R24: 68796.52891 | S24: 92412.73987 | T24: 28294.52862 | U24: 4474.960188 | V24: 43238.87652 | W24: 5500.6281
A25: 2019/20 | B25: 240106.2854 | C25: 220812.7854 | D25: =D$65*('Peak Supply data'!D26/'Peak Supply data'!D$13) -> 76545.12613 | E25: =E$65*('Peak Supply data'!E26/'Peak Supply data'!E$13) -> 57879.68087 | F25: =F$65*('Peak Supply data'!F26/'Peak Supply data'!F$13) -> 60622.76678 | G25: =G$65*('Peak Supply data'!G26/'Peak Supply data'!G$13) -> 15416.49975 | H25: =H$65*('Peak Supply data'!H26/'Peak Supply data'!H$13) -> 10348.71189 | I25: =I$65*('Peak Supply data'!I26/'Peak Supply data'!I$13) -> 17384 | J25: =J$65*('Peak Supply data'!J26/'Peak Supply data'!J$13) -> 1909.5 | N25: 2019/20 | O25: 356894.6232 | P25: 308155.1186 | Q25: 114236.2058 | R25: 68783.20741 | S25: 92397.17707 | T25: 28294.52862 | U25: 4443.999696 | V25: 43238.87652 | W25: 5500.6281
A26: 2020/21 | B26: 240106.2854 | C26: 220812.7854 | D26: =D$65*('Peak Supply data'!D27/'Peak Supply data'!D$13) -> 76545.12613 | E26: =E$65*('Peak Supply data'!E27/'Peak Supply data'!E$13) -> 57879.68087 | F26: =F$65*('Peak Supply data'!F27/'Peak Supply data'!F$13) -> 60622.76678 | G26: =G$65*('Peak Supply data'!G27/'Peak Supply data'!G$13) -> 15416.49975 | H26: =H$65*('Peak Supply data'!H27/'Peak Supply data'!H$13) -> 10348.71189 | I26: =I$65*('Peak Supply data'!I27/'Peak Supply data'!I$13) -> 17384 | J26: =J$65*('Peak Supply data'!J27/'Peak Supply data'!J$13) -> 1909.5 | N26: 2020/21 | O26: 356894.6232 | P26: 308155.1186 | Q26: 114236.2058 | R26: 68783.20741 | S26: 92397.17707 | T26: 28294.52862 | U26: 4443.999696 | V26: 43238.87652 | W26: 5500.6281
A28: Option 2 coal plants retire at initial scheduled retirement date (40 years life) | N28: Option 2 coal plants retire at initial scheduled retirement date (40 years life)
B29: National | C29: NEM | D29: NSW (inc. ACT) | E29: Victoria | F29: Queensland | G29: South Australia | H29: Tasmania | I29: Western Australia | J29: Northern Territory | O29: National | P29: NEM | Q29: NSW (inc. ACT) | R29: Victoria | S29: Queensland | T29: South Australia | U29: Tasmania | V29: Western Australia | W29: Northern Territory
A30: 2010/11 | B30: 219736.3375 | C30: =SUM(D30:H30) -> 200442.8375 | D30: =D$65*('Peak Supply data'!D31/'Peak Supply data'!D$13) -> 70419.31844 | E30: =E$65*('Peak Supply data'!E31/'Peak Supply data'!E$13) -> 46999.08525 | F30: =F$65*('Peak Supply data'!F31/'Peak Supply data'!F$13) -> 59279.87302 | G30: =G$65*('Peak Supply data'!G31/'Peak Supply data'!G$13) -> 13928.56075 | H30: =H$65*('Peak Supply data'!H31/'Peak Supply data'!H$13) -> 9816 | I30: =I$65*('Peak Supply data'!I31/'Peak Supply data'!I$13) -> 17384 | J30: =J$65*('Peak Supply data'!J31/'Peak Supply data'!J$13) -> 1909.5 | L30: ='Control Panel'!$D$7 -> 2020/21 | N30: 2010/11 | O30: =SUM(Q30:W30) -> 326450.306 | P30: =SUM(Q30:U30) -> 277710.8014 | Q30: =(D30-D$67-D$76)*(1+D$82) -> 104685.5265 | R30: =(E30-E$67-E$76)*(1+E$82) -> 55108.68467 | S30: 90280.63629 | T30: 24595.49653 | U30: 3040.457399 | V30: 43238.87652 | W30: 5500.6281 | X30: ='Control Panel'!$D$7 -> 2020/21
A31: 2011/12 | B31: 210776.5425 | C31: 191483.0425 | D31: =D$65*('Peak Supply data'!D32/'Peak Supply data'!D$13) -> 61459.52349 | E31: =E$65*('Peak Supply data'!E32/'Peak Supply data'!E$13) -> 46999.08525 | F31: =F$65*('Peak Supply data'!F32/'Peak Supply data'!F$13) -> 59279.87302 | G31: =G$65*('Peak Supply data'!G32/'Peak Supply data'!G$13) -> 13928.56075 | H31: =H$65*('Peak Supply data'!H32/'Peak Supply data'!H$13) -> 9816 | I31: =I$65*('Peak Supply data'!I32/'Peak Supply data'!I$13) -> 17384 | J31: =J$65*('Peak Supply data'!J32/'Peak Supply data'!J$13) -> 1909.5 | L31: ='Control Panel'!$D$6 -> National | N31: 2011/12 | O31: 312481.1884 | P31: 263741.6838 | Q31: =(D31-D$67-D$76)*(1+D$82) -> 90716.40887 | R31: =(E31-E$67-E$76)*(1+E$82) -> 55108.68467 | S31: =(F31-F$67-F$76)*(1+F$82) -> 90280.63629 | T31: =(G31-G$67-G$76)*(1+G$82) -> 24595.49653 | U31: =(H31-H$67-H$76)*(1+H$82) -> 3040.457399 | V31: =(I31-I$67-I$76)*(1+I$82) -> 43238.87652 | W31: =(J31-J$67-J$76)*(1+J$82) -> 5500.6281 | X31: ='Control Panel'!$D$6 -> National
A32: 2012/13 | B32: 210776.5425 | C32: 191483.0425 | D32: =D$65*('Peak Supply data'!D33/'Peak Supply data'!D$13) -> 61459.52349 | E32: =E$65*('Peak Supply data'!E33/'Peak Supply data'!E$13) -> 46999.08525 | F32: =F$65*('Peak Supply data'!F33/'Peak Supply data'!F$13) -> 59279.87302 | G32: =G$65*('Peak Supply data'!G33/'Peak Supply data'!G$13) -> 13928.56075 | H32: =H$65*('Peak Supply data'!H33/'Peak Supply data'!H$13) -> 9816 | I32: =I$65*('Peak Supply data'!I33/'Peak Supply data'!I$13) -> 17384 | J32: =J$65*('Peak Supply data'!J33/'Peak Supply data'!J$13) -> 1909.5 | L32: =INDEX(A29:K40, MATCH(L30,A29:A40,0), MATCH(L31,A29:K29,0)) -> 184510.0063 | N32: 2012/13 | O32: 312481.1884 | P32: 263741.6838 | Q32: 90716.40887 | R32: 55108.68467 | S32: 90280.63629 | T32: 24595.49653 | U32: 3040.457399 | V32: 43238.87652 | W32: 5500.6281 | X32: =INDEX(N29:W40, MATCH(X30,N29:N40,0), MATCH(X31,N29:W29,0)) -> 273758.7865
A33: 2013/14 | B33: 202815.5056 | C33: 183522.0056 | D33: =D$65*('Peak Supply data'!D34/'Peak Supply data'!D$13) -> 61459.52349 | E33: =E$65*('Peak Supply data'!E34/'Peak Supply data'!E$13) -> 39155.30467 | F33: =F$65*('Peak Supply data'!F34/'Peak Supply data'!F$13) -> 59162.61667 | G33: =G$65*('Peak Supply data'!G34/'Peak Supply data'!G$13) -> 13928.56075 | H33: =H$65*('Peak Supply data'!H34/'Peak Supply data'!H$13) -> 9816 | I33: =I$65*('Peak Supply data'!I34/'Peak Supply data'!I$13) -> 17384 | J33: =J$65*('Peak Supply data'!J34/'Peak Supply data'!J$13) -> 1909.5 | N33: 2013/14 | O33: 302438.468 | P33: 253698.9634 | Q33: 90716.40887 | R33: 45250.77251 | S33: 90095.82804 | T33: 24595.49653 | U33: 3040.457399 | V33: 43238.87652 | W33: 5500.6281
A34: 2014/15 | B34: 202639.7445 | C34: 183346.2445 | D34: =D$65*('Peak Supply data'!D35/'Peak Supply data'!D$13) -> 61459.52349 | E34: =E$65*('Peak Supply data'!E35/'Peak Supply data'!E$13) -> 39155.30467 | F34: =F$65*('Peak Supply data'!F35/'Peak Supply data'!F$13) -> 58986.85557 | G34: =G$65*('Peak Supply data'!G35/'Peak Supply data'!G$13) -> 13928.56075 | H34: =H$65*('Peak Supply data'!H35/'Peak Supply data'!H$13) -> 9816 | I34: =I$65*('Peak Supply data'!I35/'Peak Supply data'!I$13) -> 17384 | J34: =J$65*('Peak Supply data'!J35/'Peak Supply data'!J$13) -> 1909.5 | N34: 2014/15 | O34: 302161.4501 | P34: 253421.9455 | Q34: 90716.40887 | R34: 45250.77251 | S34: 89818.8102 | T34: 24595.49653 | U34: 3040.457399 | V34: 43238.87652 | W34: 5500.6281
A35: 2015/16 | B35: 202639.7445 | C35: 183346.2445 | D35: =D$65*('Peak Supply data'!D36/'Peak Supply data'!D$13) -> 61459.52349 | E35: =E$65*('Peak Supply data'!E36/'Peak Supply data'!E$13) -> 39155.30467 | F35: =F$65*('Peak Supply data'!F36/'Peak Supply data'!F$13) -> 58986.85557 | G35: =G$65*('Peak Supply data'!G36/'Peak Supply data'!G$13) -> 13928.56075 | H35: =H$65*('Peak Supply data'!H36/'Peak Supply data'!H$13) -> 9816 | I35: =I$65*('Peak Supply data'!I36/'Peak Supply data'!I$13) -> 17384 | J35: =J$65*('Peak Supply data'!J36/'Peak Supply data'!J$13) -> 1909.5 | N35: 2015/16 | O35: 302161.4501 | P35: 253421.9455 | Q35: 90716.40887 | R35: 45250.77251 | S35: 89818.8102 | T35: 24595.49653 | U35: 3040.457399 | V35: 43238.87652 | W35: 5500.6281
A36: 2016/17 | B36: 190251.2342 | C36: 170957.7342 | D36: =D$65*('Peak Supply data'!D37/'Peak Supply data'!D$13) -> 57110.10846 | E36: =E$65*('Peak Supply data'!E37/'Peak Supply data'!E$13) -> 39155.30467 | F36: =F$65*('Peak Supply data'!F37/'Peak Supply data'!F$13) -> 50947.76027 | G36: =G$65*('Peak Supply data'!G37/'Peak Supply data'!G$13) -> 13928.56075 | H36: =H$65*('Peak Supply data'!H37/'Peak Supply data'!H$13) -> 9816 | I36: =I$65*('Peak Supply data'!I37/'Peak Supply data'!I$13) -> 17384 | J36: =J$65*('Peak Supply data'!J37/'Peak Supply data'!J$13) -> 1909.5 | N36: 2016/17 | O36: 282709.8716 | P36: 233970.3669 | Q36: 83935.2838 | R36: 45250.77251 | S36: 77148.35669 | T36: 24595.49653 | U36: 3040.457399 | V36: 43238.87652 | W36: 5500.6281
A37: 2017/18 | B37: 190251.2342 | C37: 170957.7342 | D37: =D$65*('Peak Supply data'!D38/'Peak Supply data'!D$13) -> 57110.10846 | E37: =E$65*('Peak Supply data'!E38/'Peak Supply data'!E$13) -> 39155.30467 | F37: =F$65*('Peak Supply data'!F38/'Peak Supply data'!F$13) -> 50947.76027 | G37: =G$65*('Peak Supply data'!G38/'Peak Supply data'!G$13) -> 13928.56075 | H37: =H$65*('Peak Supply data'!H38/'Peak Supply data'!H$13) -> 9816 | I37: =I$65*('Peak Supply data'!I38/'Peak Supply data'!I$13) -> 17384 | J37: =J$65*('Peak Supply data'!J38/'Peak Supply data'!J$13) -> 1909.5 | N37: 2017/18 | O37: 282709.8716 | P37: 233970.3669 | Q37: 83935.2838 | R37: 45250.77251 | S37: 77148.35669 | T37: 24595.49653 | U37: 3040.457399 | V37: 43238.87652 | W37: 5500.6281
A38: 2018/19 | B38: 184510.0063 | C38: 165216.5063 | D38: =D$65*('Peak Supply data'!D39/'Peak Supply data'!D$13) -> 51368.88063 | E38: =E$65*('Peak Supply data'!E39/'Peak Supply data'!E$13) -> 39155.30467 | F38: =F$65*('Peak Supply data'!F39/'Peak Supply data'!F$13) -> 50947.76027 | G38: =G$65*('Peak Supply data'!G39/'Peak Supply data'!G$13) -> 13928.56075 | H38: =H$65*('Peak Supply data'!H39/'Peak Supply data'!H$13) -> 9816 | I38: =I$65*('Peak Supply data'!I39/'Peak Supply data'!I$13) -> 17384 | J38: =J$65*('Peak Supply data'!J39/'Peak Supply data'!J$13) -> 1909.5 | N38: 2018/19 | O38: 273758.7865 | P38: 225019.2818 | Q38: 74984.19871 | R38: 45250.77251 | S38: 77148.35669 | T38: 24595.49653 | U38: 3040.457399 | V38: 43238.87652 | W38: 5500.6281
A39: 2019/20 | B39: 184510.0063 | C39: 165216.5063 | D39: =D$65*('Peak Supply data'!D40/'Peak Supply data'!D$13) -> 51368.88063 | E39: =E$65*('Peak Supply data'!E40/'Peak Supply data'!E$13) -> 39155.30467 | F39: =F$65*('Peak Supply data'!F40/'Peak Supply data'!F$13) -> 50947.76027 | G39: =G$65*('Peak Supply data'!G40/'Peak Supply data'!G$13) -> 13928.56075 | H39: =H$65*('Peak Supply data'!H40/'Peak Supply data'!H$13) -> 9816 | I39: =I$65*('Peak Supply data'!I40/'Peak Supply data'!I$13) -> 17384 | J39: =J$65*('Peak Supply data'!J40/'Peak Supply data'!J$13) -> 1909.5 | N39: 2019/20 | O39: 273758.7865 | P39: 225019.2818 | Q39: 74984.19871 | R39: 45250.77251 | S39: 77148.35669 | T39: 24595.49653 | U39: 3040.457399 | V39: 43238.87652 | W39: 5500.6281
A40: 2020/21 | B40: 184510.0063 | C40: 165216.5063 | D40: =D$65*('Peak Supply data'!D41/'Peak Supply data'!D$13) -> 51368.88063 | E40: =E$65*('Peak Supply data'!E41/'Peak Supply data'!E$13) -> 39155.30467 | F40: =F$65*('Peak Supply data'!F41/'Peak Supply data'!F$13) -> 50947.76027 | G40: =G$65*('Peak Supply data'!G41/'Peak Supply data'!G$13) -> 13928.56075 | H40: =H$65*('Peak Supply data'!H41/'Peak Supply data'!H$13) -> 9816 | I40: =I$65*('Peak Supply data'!I41/'Peak Supply data'!I$13) -> 17384 | J40: =J$65*('Peak Supply data'!J41/'Peak Supply data'!J$13) -> 1909.5 | N40: 2020/21 | O40: 273758.7865 | P40: 225019.2818 | Q40: 74984.19871 | R40: 45250.77251 | S40: 77148.35669 | T40: 24595.49653 | U40: 3040.457399 | V40: 43238.87652 | W40: 5500.6281
A42: Option 3 - Accelerated coal fired plants retirement (close after 30 year life) | N42: Option 3 - Accelerated coal fired plants retirement (close after 30 year life)
B43: National | C43: NEM | D43: NSW (inc. ACT) | E43: Victoria | F43: Queensland | G43: South Australia | H43: Tasmania | I43: Western Australia | J43: Northern Territory | O43: National | P43: NEM | Q43: NSW (inc. ACT) | R43: Victoria | S43: Queensland | T43: South Australia | U43: Tasmania | V43: Western Australia | W43: Northern Territory
A44: 2010/11 | B44: 187522.3135 | C44: 168228.8135 | D44: =D$65*('Peak Supply data'!D45/'Peak Supply data'!D$13) -> 53474.91317 | E44: =E$65*('Peak Supply data'!E45/'Peak Supply data'!E$13) -> 40061.57932 | F44: =F$65*('Peak Supply data'!F45/'Peak Supply data'!F$13) -> 50947.76027 | G44: =G$65*('Peak Supply data'!G45/'Peak Supply data'!G$13) -> 13928.56075 | H44: =H$65*('Peak Supply data'!H45/'Peak Supply data'!H$13) -> 9816 | I44: =I$65*('Peak Supply data'!I45/'Peak Supply data'!I$13) -> 17384 | J44: =J$65*('Peak Supply data'!J45/'Peak Supply data'!J$13) -> 1909.5 | L44: ='Control Panel'!$D$7 -> 2020/21 | N44: 2010/11 | O44: =SUM(Q44:W44) -> 278181.2671 | P44: =SUM(Q44:U44) -> 229441.7625 | Q44: =(D44-D$67-D$76)*(1+D$82) -> 78267.69085 | R44: =(E44-E$67-E$76)*(1+E$82) -> 46389.76101 | S44: 77148.35669 | T44: 24595.49653 | U44: 3040.457399 | V44: 43238.87652 | W44: 5500.6281 | X44: ='Control Panel'!$D$7 -> 2020/21
A45: 2011/12 | B45: 187522.3135 | C45: 168228.8135 | D45: =D$65*('Peak Supply data'!D46/'Peak Supply data'!D$13) -> 53474.91317 | E45: =E$65*('Peak Supply data'!E46/'Peak Supply data'!E$13) -> 40061.57932 | F45: =F$65*('Peak Supply data'!F46/'Peak Supply data'!F$13) -> 50947.76027 | G45: =G$65*('Peak Supply data'!G46/'Peak Supply data'!G$13) -> 13928.56075 | H45: =H$65*('Peak Supply data'!H46/'Peak Supply data'!H$13) -> 9816 | I45: =I$65*('Peak Supply data'!I46/'Peak Supply data'!I$13) -> 17384 | J45: =J$65*('Peak Supply data'!J46/'Peak Supply data'!J$13) -> 1909.5 | L45: ='Control Panel'!$D$6 -> National | N45: 2011/12 | O45: 278181.2671 | P45: 229441.7625 | Q45: =(D45-D$67-D$76)*(1+D$82) -> 78267.69085 | R45: =(E45-E$67-E$76)*(1+E$82) -> 46389.76101 | S45: =(F45-F$67-F$76)*(1+F$82) -> 77148.35669 | T45: =(G45-G$67-G$76)*(1+G$82) -> 24595.49653 | U45: =(H45-H$67-H$76)*(1+H$82) -> 3040.457399 | V45: =(I45-I$67-I$76)*(1+I$82) -> 43238.87652 | W45: =(J45-J$67-J$76)*(1+J$82) -> 5500.6281 | X45: ='Control Panel'!$D$6 -> National
A46: 2012/13 | B46: 163465.3568 | C46: 144567.9958 | D46: =D$65*('Peak Supply data'!D47/'Peak Supply data'!D$13) -> 29814.09542 | E46: =E$65*('Peak Supply data'!E47/'Peak Supply data'!E$13) -> 40061.57932 | F46: =F$65*('Peak Supply data'!F47/'Peak Supply data'!F$13) -> 50947.76027 | G46: =G$65*('Peak Supply data'!G47/'Peak Supply data'!G$13) -> 13928.56075 | H46: =H$65*('Peak Supply data'!H47/'Peak Supply data'!H$13) -> 9816 | I46: =I$65*('Peak Supply data'!I47/'Peak Supply data'!I$13) -> 16987.86107 | J46: =J$65*('Peak Supply data'!J47/'Peak Supply data'!J$13) -> 1909.5 | L46: =INDEX(A43:K54, MATCH(L44,A43:A54,0), MATCH(L45,A43:K43,0)) -> 138217.8321 | N46: 2012/13 | O46: 240268.5493 | P46: 192552.4421 | Q46: 41378.37049 | R46: 46389.76101 | S46: 77148.35669 | T46: 24595.49653 | U46: 3040.457399 | V46: 42215.47911 | W46: 5500.6281 | X46: =INDEX(N43:W54, MATCH(X44,N43:N54,0), MATCH(X45,N43:W43,0)) -> 199774.4799
A47: 2013/14 | B47: 163465.3568 | C47: 144567.9958 | D47: =D$65*('Peak Supply data'!D48/'Peak Supply data'!D$13) -> 29814.09542 | E47: =E$65*('Peak Supply data'!E48/'Peak Supply data'!E$13) -> 40061.57932 | F47: =F$65*('Peak Supply data'!F48/'Peak Supply data'!F$13) -> 50947.76027 | G47: =G$65*('Peak Supply data'!G48/'Peak Supply data'!G$13) -> 13928.56075 | H47: =H$65*('Peak Supply data'!H48/'Peak Supply data'!H$13) -> 9816 | I47: =I$65*('Peak Supply data'!I48/'Peak Supply data'!I$13) -> 16987.86107 | J47: =J$65*('Peak Supply data'!J48/'Peak Supply data'!J$13) -> 1909.5 | N47: 2013/14 | O47: 240268.5493 | P47: 192552.4421 | Q47: 41378.37049 | R47: 46389.76101 | S47: 77148.35669 | T47: 24595.49653 | U47: 3040.457399 | V47: 42215.47911 | W47: 5500.6281
A48: 2014/15 | B48: 145872.6597 | C48: 126975.2987 | D48: =D$65*('Peak Supply data'!D49/'Peak Supply data'!D$13) -> 29814.09542 | E48: =E$65*('Peak Supply data'!E49/'Peak Supply data'!E$13) -> 29035.23777 | F48: =F$65*('Peak Supply data'!F49/'Peak Supply data'!F$13) -> 44381.40472 | G48: =G$65*('Peak Supply data'!G49/'Peak Supply data'!G$13) -> 13928.56075 | H48: =H$65*('Peak Supply data'!H49/'Peak Supply data'!H$13) -> 9816 | I48: =I$65*('Peak Supply data'!I49/'Peak Supply data'!I$13) -> 16987.86107 | J48: =J$65*('Peak Supply data'!J49/'Peak Supply data'!J$13) -> 1909.5 | N48: 2014/15 | O48: 216061.594 | P48: 168345.4868 | Q48: 41378.37049 | R48: 32532.06761 | S48: 66799.09478 | T48: 24595.49653 | U48: 3040.457399 | V48: 42215.47911 | W48: 5500.6281
A49: 2015/16 | B49: 144010.9214 | C49: 125113.5603 | D49: =D$65*('Peak Supply data'!D50/'Peak Supply data'!D$13) -> 29814.09542 | E49: =E$65*('Peak Supply data'!E50/'Peak Supply data'!E$13) -> 29035.23777 | F49: =F$65*('Peak Supply data'!F50/'Peak Supply data'!F$13) -> 44381.40472 | G49: =G$65*('Peak Supply data'!G50/'Peak Supply data'!G$13) -> 12066.82243 | H49: =H$65*('Peak Supply data'!H50/'Peak Supply data'!H$13) -> 9816 | I49: =I$65*('Peak Supply data'!I50/'Peak Supply data'!I$13) -> 16987.86107 | J49: =J$65*('Peak Supply data'!J50/'Peak Supply data'!J$13) -> 1909.5 | N49: 2015/16 | O49: 211433.2929 | P49: 163717.1857 | Q49: 41378.37049 | R49: 32532.06761 | S49: 66799.09478 | T49: 19967.19541 | U49: 3040.457399 | V49: 42215.47911 | W49: 5500.6281
A50: 2016/17 | B50: 141501.0099 | C50: 125113.5603 | D50: =D$65*('Peak Supply data'!D51/'Peak Supply data'!D$13) -> 29814.09542 | E50: =E$65*('Peak Supply data'!E51/'Peak Supply data'!E$13) -> 29035.23777 | F50: =F$65*('Peak Supply data'!F51/'Peak Supply data'!F$13) -> 44381.40472 | G50: =G$65*('Peak Supply data'!G51/'Peak Supply data'!G$13) -> 12066.82243 | H50: =H$65*('Peak Supply data'!H51/'Peak Supply data'!H$13) -> 9816 | I50: =I$65*('Peak Supply data'!I51/'Peak Supply data'!I$13) -> 14477.94955 | J50: =J$65*('Peak Supply data'!J51/'Peak Supply data'!J$13) -> 1909.5 | N50: 2016/17 | O50: 204949.1109 | P50: 163717.1857 | Q50: 41378.37049 | R50: 32532.06761 | S50: 66799.09478 | T50: 19967.19541 | U50: 3040.457399 | V50: 35731.2971 | W50: 5500.6281
A51: 2017/18 | B51: 141501.0099 | C51: 125113.5603 | D51: =D$65*('Peak Supply data'!D52/'Peak Supply data'!D$13) -> 29814.09542 | E51: =E$65*('Peak Supply data'!E52/'Peak Supply data'!E$13) -> 29035.23777 | F51: =F$65*('Peak Supply data'!F52/'Peak Supply data'!F$13) -> 44381.40472 | G51: =G$65*('Peak Supply data'!G52/'Peak Supply data'!G$13) -> 12066.82243 | H51: =H$65*('Peak Supply data'!H52/'Peak Supply data'!H$13) -> 9816 | I51: =I$65*('Peak Supply data'!I52/'Peak Supply data'!I$13) -> 14477.94955 | J51: =J$65*('Peak Supply data'!J52/'Peak Supply data'!J$13) -> 1909.5 | N51: 2017/18 | O51: 204949.1109 | P51: 163717.1857 | Q51: 41378.37049 | R51: 32532.06761 | S51: 66799.09478 | T51: 19967.19541 | U51: 3040.457399 | V51: 35731.2971 | W51: 5500.6281
A52: 2018/19 | B52: 138217.8321 | C52: 121830.3826 | D52: =D$65*('Peak Supply data'!D53/'Peak Supply data'!D$13) -> 29814.09542 | E52: =E$65*('Peak Supply data'!E53/'Peak Supply data'!E$13) -> 29035.23777 | F52: =F$65*('Peak Supply data'!F53/'Peak Supply data'!F$13) -> 41098.22695 | G52: =G$65*('Peak Supply data'!G53/'Peak Supply data'!G$13) -> 12066.82243 | H52: =H$65*('Peak Supply data'!H53/'Peak Supply data'!H$13) -> 9816 | I52: =I$65*('Peak Supply data'!I53/'Peak Supply data'!I$13) -> 14477.94955 | J52: =J$65*('Peak Supply data'!J53/'Peak Supply data'!J$13) -> 1909.5 | N52: 2018/19 | O52: 199774.4799 | P52: 158542.5547 | Q52: 41378.37049 | R52: 32532.06761 | S52: 61624.46383 | T52: 19967.19541 | U52: 3040.457399 | V52: 35731.2971 | W52: 5500.6281
A53: 2019/20 | B53: 138217.8321 | C53: 121830.3826 | D53: =D$65*('Peak Supply data'!D54/'Peak Supply data'!D$13) -> 29814.09542 | E53: =E$65*('Peak Supply data'!E54/'Peak Supply data'!E$13) -> 29035.23777 | F53: =F$65*('Peak Supply data'!F54/'Peak Supply data'!F$13) -> 41098.22695 | G53: =G$65*('Peak Supply data'!G54/'Peak Supply data'!G$13) -> 12066.82243 | H53: =H$65*('Peak Supply data'!H54/'Peak Supply data'!H$13) -> 9816 | I53: =I$65*('Peak Supply data'!I54/'Peak Supply data'!I$13) -> 14477.94955 | J53: =J$65*('Peak Supply data'!J54/'Peak Supply data'!J$13) -> 1909.5 | N53: 2019/20 | O53: 199774.4799 | P53: 158542.5547 | Q53: 41378.37049 | R53: 32532.06761 | S53: 61624.46383 | T53: 19967.19541 | U53: 3040.457399 | V53: 35731.2971 | W53: 5500.6281
A54: 2020/21 | B54: 138217.8321 | C54: 121830.3826 | D54: =D$65*('Peak Supply data'!D55/'Peak Supply data'!D$13) -> 29814.09542 | E54: =E$65*('Peak Supply data'!E55/'Peak Supply data'!E$13) -> 29035.23777 | F54: =F$65*('Peak Supply data'!F55/'Peak Supply data'!F$13) -> 41098.22695 | G54: =G$65*('Peak Supply data'!G55/'Peak Supply data'!G$13) -> 12066.82243 | H54: =H$65*('Peak Supply data'!H55/'Peak Supply data'!H$13) -> 9816 | I54: =I$65*('Peak Supply data'!I55/'Peak Supply data'!I$13) -> 14477.94955 | J54: =J$65*('Peak Supply data'!J55/'Peak Supply data'!J$13) -> 1909.5 | N54: 2020/21 | O54: 199774.4799 | P54: 158542.5547 | Q54: 41378.37049 | R54: 32532.06761 | S54: 61624.46383 | T54: 19967.19541 | U54: 3040.457399 | V54: 35731.2971 | W54: 5500.6281
B61: BASE DATA | C61: Source | D61: NSW (inc. ACT) | E61: VIC | F61: QLD | G61: SA | H61: TAS | I61: WA (SWIS) | J61: NT
B62: Total Capacity 2010-11 MWp | D62: =SUM(D63:D64) -> 16411 | E62: =SUM(E63:E64) -> 10792 | F62: 12482 | G62: 4066 | H62: 2506 | I62: 5425.6 | J62: 560.5
B63: Scheduled and semi-scheduled capacity 2010-11 MWp | C63: AEMO (2010) | D63: 15951 | E63: 10741 | F63: 12302 | G63: 3989 | H63: 2429 | I63: =1537+267.5+640+1441+680+586+83 -> 5234.5 | J63: =323.2+30+130.8+76.3 -> 560.3
B64: Non-scheduled summer peak capacity 2010-11 MWp | C64: AEMO (2010) | D64: 460 | E64: 51 | F64: 180 | G64: 77 | H64: 77 | I64: 191.1 | J64: 0.2
B65: Total forecast supply 2010-11 GWh | D65: =SUM(D66:D68) -> 75135 | E65: 57196 | F65: 61625 | G65: 14756 | H65: 9816 | I65: 17384 | J65: 1909.5
B66: Scheduled and Semi-scheduled generation 2010-11 | C66: AEMO (2010) | D66: 69750 | E66: 55238 | F66: 58696 | G66: 12716 | H66: 8726 | I66: =9198+4067.4+2615.6 -> 15881 | J66: =925+469.8+129.7 -> 1524.5
B67: Non-scheduled generation 2010-11 GWh | C67: AEMO (2010) | D67: 1702 | E67: 750 | F67: 1452 | G67: 1742 | H67: 1066 | I67: 647 | J67: 0
B68: Energy purchased (i.e. non-grid or embedded generation) 2010-11 | C68: ESAA (2010) | D68: 3683 | E68: 1208 | F68: 1477 | G68: 298 | H68: 24 | I68: 856 | J68: 385
B71: RAMP-UP CAPACITY POTENTIAL (expanding capacity factors of scheduled (exc. Hydro and wind) generation | C71: Source | D71: NSW (inc. ACT) | E71: VIC | F71: QLD | G71: SA | H71: TAS | I71: WA (SWIS) | J71: NT
B72: =B63 -> Scheduled and semi-scheduled capacity 2010-11 MWp | C72: AEMO (2010) | D72: =D63 -> 15951 | E72: 10741 | F72: 12302 | G72: 3989 | H72: 2429 | I72: 5234.5 | J72: 560.3
B73: Assumed firm peak rating (exc. hydro/wind S and SS gen) | C73: AEMO(2010) | D73: 0.95 | E73: 0.95 | F73: 0.95 | G73: 0.95 | H73: 0.95 | I73: 0.95 | J73: 0.95
B74: Scheduled and semi-scheduled capacity 2010-11 MW | C74: Calculated using above data | D74: =D72/D73 -> 16790.52632 | E74: =E72/E73 -> 11306.31579 | F74: 12949.47368 | G74: 4198.947368 | H74: 2556.842105 | I74: 5510 | J74: 589.7894737
B75: Hydro and wind capacity scheduled and semischeduled MW | C75: AEMO (2010) | D75: 2515 | E75: 2388 | F75: 641 | G75: 719 | H75: 2157
B76: Hydro and wind capacity scheduled and semischeduled GWH | D76: 1572 | E76: 2400 | F76: 547 | G76: 2293 | H76: 7596
B77: S and SS (exc. hydro and wind) capacity MW | C77: AEMO (2010) | D77: =D74-D75 -> 14275.52632 | E77: =E74-E75 -> 8918.315789 | F77: 12308.47368 | G77: 3479.947368 | H77: 399.8421053 | I77: 5510 | J77: 589.7894737
B78: S and SS (exc. hydro and wind) capacity GWH | D78: =D66-D76 -> 68178 | E78: =E66-E76 -> 52838 | F78: 58149 | G78: 10423 | H78: 1130 | I78: 15881 | J78: 1524.5
B79: S and SS (exc. hydro and wind) capacity Capacity factor | D79: =D78/(D77*8760/1000) -> 0.5451901765 | E79: =E78/(E77*8760/1000) -> 0.6763311933 | F79: 0.5393043743 | G79: 0.3419132696 | H79: 0.3226159329 | I79: 0.3290198808 | J79: 0.2950708484
B80: Potential maximum capacity factor of all S and SS generators (exc. Hydro and wind) | C80: ISF assumption | D80: 0.85 | E80: 0.85 | F80: 0.85 | G80: 0.85 | H80: 0.85 | I80: 0.85 | J80: 0.85
B81: Max potential increased generation on S/SS (exc. Hydro and wind), 2010-11 | D81: =D77*D80*8760/1000-D78 -> 38117.56895 | E81: =E77*E80*8760/1000-E78 -> 13567.77937 | F81: 33499.89505 | G81: 15488.68811 | H81: 1847.224316 | I81: 25146.46 | J81: 2867.072421
B82: Percentage increase generation on S/SS (exc. Hydro and wind) | D82: =D81/D78 -> 0.5590889869 | E82: =E81/E78 -> 0.256780714 | F82: 0.5761044051 | G82: 1.486010564 | H82: 1.634711784 | I82: 1.583430514 | J82: 1.8806641

Sheet Renewable generation data (hidden)
B1: Additional Renewable Energy capacity required
B2: RET selected: | C2: =G12 -> 0.2 | E2: Selection table additional GWh required
B3: Year of analysis: | C3: =G11 -> 2020/21 | E3: National | F3: NEM | G3: NSW (inc. ACT) | H3: Victoria | I3: Queensland | J3: South Australia | K3: Tasmania | L3: Western Australia | M3: Northern Territory | N3: Custom
B4: Region selected: | C4: ='Control Panel'!D6 -> National | E4: =G13 -> 30600 | F4: =N13 -> 27540 | G4: =IF(ISNUMBER($G$12), $G$12*('Demand data'!D9-'Optimal Mix Calculator'!$AR$18)-C28,0) -> 9332.128316 | H4: =IF(ISNUMBER($G$12), $G$12*'Demand data'!E9-C29,0) -> 7840.118794 | I4: =IF(ISNUMBER($G$12), $G$12*'Demand data'!F9-C30,0) -> 13314.82418 | J4: =IF(ISNUMBER($G$12), $G$12*'Demand data'!G9-C31,0) -> -136.728995 | K4: =IF(ISNUMBER($G$12), $G$12*'Demand data'!H9-C33,0) -> -208.0035443 | L4: =IF(ISNUMBER($G$12), $G$12*'Demand data'!I9-C33,0) -> 2388.283238 | M4: =IF(ISNUMBER($G$12), $G$12*'Demand data'!J9-C34,0) -> 611.1555862 | N4: 0 | O4: GWh required
B5: Additional RE required: | C5: =SUMPRODUCT(E4:N4,E5:N5) -> 30600 | E5: =IF(E3='Control Panel'!$D$6,1,0) -> 1 | F5: =IF(F3='Control Panel'!$D$6,1,0) -> 0 | G5: =IF(G3='Control Panel'!$D$6,1,0) -> 0 | H5: =IF(H3='Control Panel'!$D$6,1,0) -> 0 | I5: =IF(I3='Control Panel'!$D$6,1,0) -> 0 | J5: =IF(J3='Control Panel'!$D$6,1,0) -> 0 | K5: =IF(K3='Control Panel'!$D$6,1,0) -> 0 | L5: =IF(L3='Control Panel'!$D$6,1,0) -> 0 | M5: =IF(M3='Control Panel'!$D$6,1,0) -> 0 | N5: =IF(N3='Control Panel'!$D$6,1,0) -> 0 | O5: Selection dummy
B8: National/NEM level RET
B10: Baseline 2009/10 | C10: 10400 | D10: 10400 | E10: 10400 | F10: 10400 | I10: Baseline 2009/10 | J10: =C10*0.9 -> 9360 | K10: =D10*0.9 -> 9360 | L10: =E10*0.9 -> 9360 | M10: =F10*0.9 -> 9360
B11: National RET 2020 | C11: No RET | D11: 0.1 | E11: 0.2 | F11: 0.3 | G11: ='Control Panel'!$D$7 -> 2020/21 | I11: NEM RET 2020 | J11: No RET | K11: 0.1 | L11: 0.2 | M11: 0.3 | N11: ='Control Panel'!$D$7 -> 2020/21 | P11: RET targets, ORER (2011)
B12: 2010/11 | C12: 0 | D12: 0 | E12: 0 | F12: 0 | G12: ='Control Panel'!$D$18 -> 0.2 | I12: 2010/11 | J12: =C12*0.9 -> 0 | K12: =D12*0.9 -> 0 | L12: =E12*0.9 -> 0 | M12: =F12*0.9 -> 0 | N12: ='Control Panel'!$D$18 -> 0.2 | P12: 16338
B13: 2011/12 | C13: =T12+AA13+AH13+AO13+AV13++BC13+BJ13 -> 0 | D13: =D14-$D$22/10 -> 1010 | E13: 0 | F13: =(E14-E13)*1.5 -> 8907 | G13: =INDEX(B11:F22, MATCH(G11,B11:B22,0), MATCH(G12,B11:F11,0)) -> 30600 | I13: 2011/12 | J13: =C13*0.9 -> 0 | K13: =D13*0.9 -> 909 | L13: =E13*0.9 -> 0 | M13: =F13*0.9 -> 8016.3 | N13: =INDEX(I11:M22, MATCH(N11,I11:I22,0), MATCH(N12,I11:M11,0)) -> 27540 | P13: 18238
B14: 2012/13 | C14: 0 | D14: 2020 | E14: =P12-$E$10 -> 5938 | F14: =F15-$F$22/10 -> 10220 | I14: 2012/13 | J14: 0 | K14: 1818 | L14: 5344.2 | M14: 9198 | P14: 16100
B15: 2013/14 | C15: 0 | D15: 3030 | E15: 7838 | F15: 15330 | I15: 2013/14 | J15: 0 | K15: 2727 | L15: 7054.2 | M15: 13797 | P15: 18000
B16: 2014/15 | C16: 0 | D16: 4040 | E16: 5700 | F16: 20440 | I16: 2014/15 | J16: 0 | K16: 3636 | L16: 5130 | M16: 18396 | P16: 20581
B17: 2015/16 | C17: 0 | D17: 5050 | E17: 7600 | F17: 25550 | I17: 2015/16 | J17: 0 | K17: 4545 | L17: 6840 | M17: 22995 | P17: 25181
B18: 2016/17 | C18: 0 | D18: 6060 | E18: 10181 | F18: 30660 | I18: 2016/17 | J18: 0 | K18: 5454 | L18: 9162.9 | M18: 27594 | P18: 29781
B19: 2017/18 | C19: 0 | D19: 7070 | E19: 14781 | F19: 35770 | I19: 2017/18 | J19: 0 | K19: 6363 | L19: 13302.9 | M19: 32193 | P19: 34381
B20: 2018/19 | C20: 0 | D20: 8080 | E20: 19381 | F20: 40880 | I20: 2018/19 | J20: 0 | K20: 7272 | L20: 17442.9 | M20: 36792 | P20: 41000
B21: 2019/20 | C21: 0 | D21: 9090 | E21: 23981 | F21: 45990 | I21: 2019/20 | J21: 0 | K21: 8181 | L21: 21582.9 | M21: 41391
B22: 2020/21 | C22: 0 | D22: =(E22+$D$10)*0.5-$D$10 -> 10100 | E22: 30600 | F22: =(E22+$F$10)*1.5-$F$10 -> 51100 | I22: 2020/21 | J22: 0 | K22: 9090 | L22: 27540 | M22: 45990
B24: State based RET, existing renewable capacity
I25: Reduction in RET due to demand reduction in Optimal mix case
B26: Source: MMA (2010). | C26: Includes renewable generation that is both RET and non-RET classified (national RET scheme) | I26: =IF(ISNUMBER(G12),G12*'Optimal Mix Calculator'!AR18,0) -> 3828.471854 | J26: GWh
B27: Renewable 2011 by state (GWh)
B28: NSW (inc. ACT) | C28: 5494.6852 | D28: =IF($C$4=B28,1,0) -> 0
B29: Victoria | C29: 2780.04906 | D29: 0
B30: Queensland | C30: 2191.332788 | D30: 0
B31: South Australia | C31: 3270.645953 | D31: 0
B32: Tasmania | C32: 9811.937858 | D32: 0
B33: Western Australia | C33: 2616.516762 | D33: 0
B34: Northern Territory | C34: 0 | D34: 0
B35: Custom | C35: 0 | D35: 0
C36: =SUMPRODUCT(C28:C35,D28:D35) -> 0

Sheet Standard emissions rate data (hidden)
A1: Standard emissions rate calculator | G1: Emissions rate of existing supply = [Emissions of supply 2010 x Total generation 2010 + Change of Emissions (Selected year and 2010) x Change of Generation (Selected year and 2010)] / Generation in selected year
A2: Standard emissions rate of existing supply
B3: Standard emissions rate of existing capacity, at max supply | C3: =INDEX(E3:G8, MATCH(C7,E3:E8,0),MATCH(C6,E3:G3,0)) -> 0.9261316054 | E3: Selection table | F3: Fixed CF | G3: Flexible CF | J3: =E14*'Demand data'!C15 -> 58499.40383 | V3: Emissions from retiring plants
E4: ='Control Panel'!D42 -> Option 1 - Planned retirements occur | F4: =L16 -> 0.9261316054 | G4: =Y16 -> 0.9556490617 | V4: Natural Gas | W4: Black Coal | X4: Brown coal
B5: Parameters | E5: ='Control Panel'!E42 -> Option 2 - Coal plants retire after 40 years operation | F5: =L30 -> 0.8989518678 | G5: =Y30 -> 0.9372200016 | K5: National | L5: NEM | M5: NSW (inc. ACT) | N5: Victoria | O5: Queensland | P5: South Australia | Q5: Tasmania | R5: Western Australia | S5: Northern Territory | T5: Custom | V5: 51.6 | W5: 88.7 | X5: 93.2 | Y5: kg CO2/GJ
B6: Supply option: | C6: =IF('Control Panel'!D20='Control Panel'!D43,F3,G3) -> Fixed CF | E6: ='Control Panel'!F42 -> Option 3 - Coal plants retire after 30 years operation | F6: =L44 -> 0.8596379283 | G6: =Y44 -> 0.9079208856 | J6: 2010 standard emissions rates | K6: 0.92 | L6: 0.9493591423 | M6: 0.9 | N6: 1.23 | O6: 0.89 | P6: 0.72 | Q6: 0.32 | R6: 0.82 | S6: 0.68 | T6: 0.92 | V6: 0.3 | W6: 0.33 | X6: 0.255 | Y6: Assumed efficiency of retiring plants
B7: Capacity factors: | C7: ='Control Panel'!D19 -> Option 1 - Planned retirements occur | J7: Additional/avoided generation emissions rates (see avoided generation for assumptions) | K7: 1.016334289 | L7: 1.033749947 | M7: 0.9676363636 | N7: 1.315764706 | O7: 0.925824 | P7: 0.8978258824 | Q7: 0.6192 | R7: 0.8003869091 | S7: 0.6192 | T7: 1.016 | V7: =V5*3.6/V6/1000 -> 0.6192 | W7: =W5*3.6/W6/1000 -> 0.9676363636 | X7: =X5*3.6/X6/1000 -> 1.315764706 | Y7: kg CO2/MWh
B8: Scale: | C8: =L15 -> National | K8: =IF(K5='Control Panel'!$D$6,1,0) -> 1 | L8: =IF(L5='Control Panel'!$D$6,1,0) -> 0 | M8: =IF(M5='Control Panel'!$D$6,1,0) -> 0 | N8: =IF(N5='Control Panel'!$D$6,1,0) -> 0 | O8: =IF(O5='Control Panel'!$D$6,1,0) -> 0 | P8: =IF(P5='Control Panel'!$D$6,1,0) -> 0 | Q8: =IF(Q5='Control Panel'!$D$6,1,0) -> 0 | R8: =IF(R5='Control Panel'!$D$6,1,0) -> 0 | S8: =IF(S5='Control Panel'!$D$6,1,0) -> 0 | T8: =IF(T5='Control Panel'!$D$6,1,0) -> 0
B9: Analysis timeframe: | C9: =L14 -> 2020/21
A11: Fixed capacity factors on existing capacity, assuming max generation potential of existing supply | N11: Flexible capacity factors on existing capacity 1
A12: Supply scenario 1 - BAU (Committed capacity to 2011 installed and planned shut downs occur - GWh) | N12: Supply scenario 1 - BAU (Committed capacity to 2011 installed and planned shut downs occur - GWh)
B13: National | C13: NEM | D13: NSW (inc. ACT) | E13: Victoria | F13: Queensland | G13: South Australia | H13: Tasmania | I13: Western Australia | J13: Northern Territory | O13: National | P13: NEM | Q13: NSW (inc. ACT) | R13: Victoria | S13: Queensland | T13: South Australia | U13: Tasmania | V13: Western Australia | W13: Northern Territory
A14: 2010/11 | B14: =(('Generation data'!B16-'Demand data'!$C$29)*$K$7+'Demand data'!$C$29*$K$6)/'Generation data'!B16 -> 0.9252650152 | C14: =(('Generation data'!C16-'Demand data'!$J$29)*$L$7+'Demand data'!$J$29*$L$6)/'Generation data'!C16 -> 0.9587876892 | D14: =(('Generation data'!D16-'Demand data'!$Q$29)*$M$7+'Demand data'!$Q$29*$M$6)/'Generation data'!D16 -> 0.8976729886 | E14: =(('Generation data'!E16-'Demand data'!$X$29)*$N$7+'Demand data'!$X$29*$N$6)/'Generation data'!E16 -> 1.242891097 | F14: =(('Generation data'!F16-'Demand data'!$AE$29)*$O$7+'Demand data'!$AE$29*$O$6)/'Generation data'!F16 -> 0.8947308026 | G14: =(('Generation data'!G16-'Demand data'!$AL$29)*$P$7+'Demand data'!$AL$29*$P$6)/'Generation data'!G16 -> 0.7254109394 | H14: =(('Generation data'!H16-'Demand data'!$AS$29)*$Q$7+'Demand data'!$AS$29*$Q$6)/'Generation data'!H16 -> 0.2737300733 | I14: =(('Generation data'!I16-'Demand data'!$AZ$29)*$R$7+'Demand data'!$AZ$29*$R$6)/'Generation data'!I16 -> 0.8200282057 | J14: =(('Generation data'!J16-'Demand data'!$BG$29)*$S$7+'Demand data'!$BG$29*$S$6)/'Generation data'!J16 -> 0.6818531343 | L14: ='Control Panel'!$D$7 -> 2020/21 | N14: 2010/11 | O14: =(('Generation data'!O16-'Demand data'!$C$29)*$K$7+'Demand data'!$C$29*$K$6)/'Generation data'!O16 -> 0.9548699954 | P14: =(('Generation data'!P16-'Demand data'!$J$29)*$L$7+'Demand data'!$J$29*$L$6)/'Generation data'!P16 -> 0.979798511 | Q14: =(('Generation data'!Q16-'Demand data'!$Q$29)*$M$7+'Demand data'!$Q$29*$M$6)/'Generation data'!Q16 -> 0.9207173491 | R14: =(('Generation data'!R16-'Demand data'!$X$29)*$N$7+'Demand data'!$X$29*$N$6)/'Generation data'!R16 -> 1.254400818 | S14: =(('Generation data'!S16-'Demand data'!$AE$29)*$O$7+'Demand data'!$AE$29*$O$6)/'Generation data'!S16 -> 0.9054347309 | T14: =(('Generation data'!T16-'Demand data'!$AL$29)*$P$7+'Demand data'!$AL$29*$P$6)/'Generation data'!T16 -> 0.8023694313 | U14: =(('Generation data'!H16-'Demand data'!$AS$29)*$Q$7+'Demand data'!$AS$29*$Q$6)/'Generation data'!H16 -> 0.2737300733 | V14: =(('Generation data'!V16-'Demand data'!$AZ$29)*$R$7+'Demand data'!$AZ$29*$R$6)/'Generation data'!V16 -> 0.8082836059 | W14: =(('Generation data'!W16-'Demand data'!$BG$29)*$S$7+'Demand data'!$BG$29*$S$6)/'Generation data'!W16 -> 0.6409495453 | Y14: ='Control Panel'!$D$7 -> 2020/21
A15: 2011/12 | B15: =(('Generation data'!B17-'Demand data'!C$29)*K$7+'Demand data'!C$29*K$6)/'Generation data'!B17 -> 0.9268380874 | C15: =(('Generation data'!C17-'Demand data'!J$29)*L$7+'Demand data'!J$29*L$6)/'Generation data'!C17 -> 0.9601947137 | D15: =(('Generation data'!D17-'Demand data'!Q$29)*M$7+'Demand data'!Q$29*M$6)/'Generation data'!D17 -> 0.901044962 | E15: =(('Generation data'!E17-'Demand data'!X$29)*N$7+'Demand data'!X$29*N$6)/'Generation data'!E17 -> 1.243380722 | F15: =(('Generation data'!F17-'Demand data'!AE$29)*O$7+'Demand data'!AE$29*O$6)/'Generation data'!F17 -> 0.8946759029 | G15: =(('Generation data'!G17-'Demand data'!AL$29)*P$7+'Demand data'!AL$29*P$6)/'Generation data'!G17 -> 0.7326812043 | H15: =(('Generation data'!H17-'Demand data'!$AS$29)*Q$7+'Demand data'!AS$29*Q$6)/'Generation data'!H17 -> 0.2531333462 | I15: =(('Generation data'!I17-'Demand data'!AZ$29)*R$7+'Demand data'!AZ$29*R$6)/'Generation data'!I17 -> 0.8200282057 | J15: =(('Generation data'!J17-'Demand data'!BG$29)*S$7+'Demand data'!BG$29*S$6)/'Generation data'!J17 -> 0.6818531343 | L15: ='Control Panel'!$D$6 -> National | N15: 2011/12 | O15: =(('Generation data'!O17-'Demand data'!$C$29)*$K$7+'Demand data'!$C$29*$K$6)/'Generation data'!O17 -> 0.9559675384 | P15: =(('Generation data'!P17-'Demand data'!$J$29)*$L$7+'Demand data'!$J$29*$L$6)/'Generation data'!P17 -> 0.9809133494 | Q15: =(('Generation data'!Q17-'Demand data'!$Q$29)*$M$7+'Demand data'!$Q$29*$M$6)/'Generation data'!Q17 -> 0.9230765162 | R15: =(('Generation data'!R17-'Demand data'!$X$29)*$N$7+'Demand data'!$X$29*$N$6)/'Generation data'!R17 -> 1.25483697 | S15: =(('Generation data'!S17-'Demand data'!$AE$29)*$O$7+'Demand data'!$AE$29*$O$6)/'Generation data'!S17 -> 0.9053975215 | T15: =(('Generation data'!T17-'Demand data'!$AL$29)*$P$7+'Demand data'!$AL$29*$P$6)/'Generation data'!T17 -> 0.8078229365 | U15: =(('Generation data'!H17-'Demand data'!$AS$29)*$Q$7+'Demand data'!$AS$29*$Q$6)/'Generation data'!H17 -> 0.2531333462 | V15: =(('Generation data'!V17-'Demand data'!$AZ$29)*$R$7+'Demand data'!$AZ$29*$R$6)/'Generation data'!V17 -> 0.8082836059 | W15: =(('Generation data'!W17-'Demand data'!$BG$29)*$S$7+'Demand data'!$BG$29*$S$6)/'Generation data'!W17 -> 0.6409495453 | Y15: ='Control Panel'!$D$6 -> National
A16: 2012/13 | B16: =(('Generation data'!B18-'Demand data'!C$29)*K$7+'Demand data'!C$29*K$6)/'Generation data'!B18 -> 0.9265421462 | C16: =(('Generation data'!C18-'Demand data'!J$29)*L$7+'Demand data'!J$29*L$6)/'Generation data'!C18 -> 0.9599303383 | D16: =(('Generation data'!D18-'Demand data'!Q$29)*M$7+'Demand data'!Q$29*M$6)/'Generation data'!D18 -> 0.9013410263 | E16: =(('Generation data'!E18-'Demand data'!X$29)*N$7+'Demand data'!X$29*N$6)/'Generation data'!E18 -> 1.242938334 | F16: =(('Generation data'!F18-'Demand data'!AE$29)*O$7+'Demand data'!AE$29*O$6)/'Generation data'!F18 -> 0.8943730041 | G16: =(('Generation data'!G18-'Demand data'!AL$29)*P$7+'Demand data'!AL$29*P$6)/'Generation data'!G18 -> 0.7327200985 | H16: =(('Generation data'!H18-'Demand data'!$AS$29)*Q$7+'Demand data'!AS$29*Q$6)/'Generation data'!H18 -> 0.2445796468 | I16: =(('Generation data'!I18-'Demand data'!AZ$29)*R$7+'Demand data'!AZ$29*R$6)/'Generation data'!I18 -> 0.8200282057 | J16: =(('Generation data'!J18-'Demand data'!BG$29)*S$7+'Demand data'!BG$29*S$6)/'Generation data'!J18 -> 0.6818531343 | L16: =INDEX(A13:K24, MATCH(L14,A13:A24,0), MATCH(L15,A13:K13,0)) -> 0.9261316054 | N16: 2012/13 | O16: =(('Generation data'!O18-'Demand data'!$C$29)*$K$7+'Demand data'!$C$29*$K$6)/'Generation data'!O18 -> 0.9557358011 | P16: =(('Generation data'!P18-'Demand data'!$J$29)*$L$7+'Demand data'!$J$29*$L$6)/'Generation data'!P18 -> 0.9806784914 | Q16: =(('Generation data'!Q18-'Demand data'!$Q$29)*$M$7+'Demand data'!$Q$29*$M$6)/'Generation data'!Q18 -> 0.923283161 | R16: =(('Generation data'!R18-'Demand data'!$X$29)*$N$7+'Demand data'!$X$29*$N$6)/'Generation data'!R18 -> 1.254442911 | S16: =(('Generation data'!S18-'Demand data'!$AE$29)*$O$7+'Demand data'!$AE$29*$O$6)/'Generation data'!S18 -> 0.9051921461 | T16: =(('Generation data'!T18-'Demand data'!$AL$29)*$P$7+'Demand data'!$AL$29*$P$6)/'Generation data'!T18 -> 0.8078516533 | U16: =(('Generation data'!H18-'Demand data'!$AS$29)*$Q$7+'Demand data'!$AS$29*$Q$6)/'Generation data'!H18 -> 0.2445796468 | V16: =(('Generation data'!V18-'Demand data'!$AZ$29)*$R$7+'Demand data'!$AZ$29*$R$6)/'Generation data'!V18 -> 0.8082836059 | W16: =(('Generation data'!W18-'Demand data'!$BG$29)*$S$7+'Demand data'!$BG$29*$S$6)/'Generation data'!W18 -> 0.6409495453 | Y16: =INDEX(N13:X24, MATCH(Y14,N13:N24,0), MATCH(Y15,N13:X13,0)) -> 0.9556490617
A17: 2013/14 | B17: =(('Generation data'!B19-'Demand data'!C$29)*K$7+'Demand data'!C$29*K$6)/'Generation data'!B19 -> 0.9267611371 | C17: =(('Generation data'!C19-'Demand data'!J$29)*L$7+'Demand data'!J$29*L$6)/'Generation data'!C19 -> 0.9601259856 | D17: =(('Generation data'!D19-'Demand data'!Q$29)*M$7+'Demand data'!Q$29*M$6)/'Generation data'!D19 -> 0.9013410263 | E17: =(('Generation data'!E19-'Demand data'!X$29)*N$7+'Demand data'!X$29*N$6)/'Generation data'!E19 -> 1.243012441 | F17: =(('Generation data'!F19-'Demand data'!AE$29)*O$7+'Demand data'!AE$29*O$6)/'Generation data'!F19 -> 0.8943704552 | G17: =(('Generation data'!G19-'Demand data'!AL$29)*P$7+'Demand data'!AL$29*P$6)/'Generation data'!G19 -> 0.7327589744 | H17: =(('Generation data'!H19-'Demand data'!$AS$29)*Q$7+'Demand data'!AS$29*Q$6)/'Generation data'!H19 -> 0.2654003939 | I17: =(('Generation data'!I19-'Demand data'!AZ$29)*R$7+'Demand data'!AZ$29*R$6)/'Generation data'!I19 -> 0.8200282057 | J17: =(('Generation data'!J19-'Demand data'!BG$29)*S$7+'Demand data'!BG$29*S$6)/'Generation data'!J19 -> 0.6818531343 | N17: 2013/14 | O17: =(('Generation data'!O19-'Demand data'!$C$29)*$K$7+'Demand data'!$C$29*$K$6)/'Generation data'!O19 -> 0.9559853742 | P17: =(('Generation data'!P19-'Demand data'!$J$29)*$L$7+'Demand data'!$J$29*$L$6)/'Generation data'!P19 -> 0.9809314136 | Q17: =(('Generation data'!Q19-'Demand data'!$Q$29)*$M$7+'Demand data'!$Q$29*$M$6)/'Generation data'!Q19 -> 0.923283161 | R17: =(('Generation data'!R19-'Demand data'!$X$29)*$N$7+'Demand data'!$X$29*$N$6)/'Generation data'!R19 -> 1.254508941 | S17: =(('Generation data'!S19-'Demand data'!$AE$29)*$O$7+'Demand data'!$AE$29*$O$6)/'Generation data'!S19 -> 0.9051904173 | T17: =(('Generation data'!T19-'Demand data'!$AL$29)*$P$7+'Demand data'!$AL$29*$P$6)/'Generation data'!T19 -> 0.8078803517 | U17: =(('Generation data'!H19-'Demand data'!$AS$29)*$Q$7+'Demand data'!$AS$29*$Q$6)/'Generation data'!H19 -> 0.2654003939 | V17: =(('Generation data'!V19-'Demand data'!$AZ$29)*$R$7+'Demand data'!$AZ$29*$R$6)/'Generation data'!V19 -> 0.8082836059 | W17: =(('Generation data'!W19-'Demand data'!$BG$29)*$S$7+'Demand data'!$BG$29*$S$6)/'Generation data'!W19 -> 0.6409495453
A18: 2014/15 | B18: =(('Generation data'!B20-'Demand data'!C$29)*K$7+'Demand data'!C$29*K$6)/'Generation data'!B20 -> 0.9257594071 | C18: =(('Generation data'!C20-'Demand data'!J$29)*L$7+'Demand data'!J$29*L$6)/'Generation data'!C20 -> 0.9592303571 | D18: =(('Generation data'!D20-'Demand data'!Q$29)*M$7+'Demand data'!Q$29*M$6)/'Generation data'!D20 -> 0.8986648404 | E18: =(('Generation data'!E20-'Demand data'!X$29)*N$7+'Demand data'!X$29*N$6)/'Generation data'!E20 -> 1.243066241 | F18: =(('Generation data'!F20-'Demand data'!AE$29)*O$7+'Demand data'!AE$29*O$6)/'Generation data'!F20 -> 0.8943704552 | G18: =(('Generation data'!G20-'Demand data'!AL$29)*P$7+'Demand data'!AL$29*P$6)/'Generation data'!G20 -> 0.7327978319 | H18: =(('Generation data'!H20-'Demand data'!$AS$29)*Q$7+'Demand data'!AS$29*Q$6)/'Generation data'!H20 -> 0.2780858801 | I18: =(('Generation data'!I20-'Demand data'!AZ$29)*R$7+'Demand data'!AZ$29*R$6)/'Generation data'!I20 -> 0.8200282057 | J18: =(('Generation data'!J20-'Demand data'!BG$29)*S$7+'Demand data'!BG$29*S$6)/'Generation data'!J20 -> 0.6818531343 | N18: 2014/15 | O18: =(('Generation data'!O20-'Demand data'!$C$29)*$K$7+'Demand data'!$C$29*$K$6)/'Generation data'!O20 -> 0.9553403432 | P18: =(('Generation data'!P20-'Demand data'!$J$29)*$L$7+'Demand data'!$J$29*$L$6)/'Generation data'!P20 -> 0.9802770523 | Q18: =(('Generation data'!Q20-'Demand data'!$Q$29)*$M$7+'Demand data'!$Q$29*$M$6)/'Generation data'!Q20 -> 0.921412363 | R18: =(('Generation data'!R20-'Demand data'!$X$29)*$N$7+'Demand data'!$X$29*$N$6)/'Generation data'!R20 -> 1.254556874 | S18: =(('Generation data'!S20-'Demand data'!$AE$29)*$O$7+'Demand data'!$AE$29*$O$6)/'Generation data'!S20 -> 0.9051904173 | T18: =(('Generation data'!T20-'Demand data'!$AL$29)*$P$7+'Demand data'!$AL$29*$P$6)/'Generation data'!T20 -> 0.8079090319 | U18: =(('Generation data'!H20-'Demand data'!$AS$29)*$Q$7+'Demand data'!$AS$29*$Q$6)/'Generation data'!H20 -> 0.2780858801 | V18: =(('Generation data'!V20-'Demand data'!$AZ$29)*$R$7+'Demand data'!$AZ$29*$R$6)/'Generation data'!V20 -> 0.8082836059 | W18: =(('Generation data'!W20-'Demand data'!$BG$29)*$S$7+'Demand data'!$BG$29*$S$6)/'Generation data'!W20 -> 0.6409495453
A19: 2015/16 | B19: =(('Generation data'!B21-'Demand data'!C$29)*K$7+'Demand data'!C$29*K$6)/'Generation data'!B21 -> 0.9258426663 | C19: =(('Generation data'!C21-'Demand data'!J$29)*L$7+'Demand data'!J$29*L$6)/'Generation data'!C21 -> 0.9593048639 | D19: =(('Generation data'!D21-'Demand data'!Q$29)*M$7+'Demand data'!Q$29*M$6)/'Generation data'!D21 -> 0.8989618647 | E19: =(('Generation data'!E21-'Demand data'!X$29)*N$7+'Demand data'!X$29*N$6)/'Generation data'!E21 -> 1.243119963 | F19: =(('Generation data'!F21-'Demand data'!AE$29)*O$7+'Demand data'!AE$29*O$6)/'Generation data'!F21 -> 0.8942937953 | G19: =(('Generation data'!G21-'Demand data'!AL$29)*P$7+'Demand data'!AL$29*P$6)/'Generation data'!G21 -> 0.7327978319 | H19: =(('Generation data'!H21-'Demand data'!$AS$29)*Q$7+'Demand data'!AS$29*Q$6)/'Generation data'!H21 -> 0.2779514244 | I19: =(('Generation data'!I21-'Demand data'!AZ$29)*R$7+'Demand data'!AZ$29*R$6)/'Generation data'!I21 -> 0.8200282057 | J19: =(('Generation data'!J21-'Demand data'!BG$29)*S$7+'Demand data'!BG$29*S$6)/'Generation data'!J21 -> 0.6818531343 | N19: 2015/16 | O19: =(('Generation data'!O21-'Demand data'!$C$29)*$K$7+'Demand data'!$C$29*$K$6)/'Generation data'!O21 -> 0.9553958541 | P19: =(('Generation data'!P21-'Demand data'!$J$29)*$L$7+'Demand data'!$J$29*$L$6)/'Generation data'!P21 -> 0.9803334527 | Q19: =(('Generation data'!Q21-'Demand data'!$Q$29)*$M$7+'Demand data'!$Q$29*$M$6)/'Generation data'!Q21 -> 0.9216203204 | R19: =(('Generation data'!R21-'Demand data'!$X$29)*$N$7+'Demand data'!$X$29*$N$6)/'Generation data'!R21 -> 1.254604731 | S19: =(('Generation data'!S21-'Demand data'!$AE$29)*$O$7+'Demand data'!$AE$29*$O$6)/'Generation data'!S21 -> 0.9051384178 | T19: =(('Generation data'!T21-'Demand data'!$AL$29)*$P$7+'Demand data'!$AL$29*$P$6)/'Generation data'!T21 -> 0.8079090319 | U19: =(('Generation data'!H21-'Demand data'!$AS$29)*$Q$7+'Demand data'!$AS$29*$Q$6)/'Generation data'!H21 -> 0.2779514244 | V19: =(('Generation data'!V21-'Demand data'!$AZ$29)*$R$7+'Demand data'!$AZ$29*$R$6)/'Generation data'!V21 -> 0.8082836059 | W19: =(('Generation data'!W21-'Demand data'!$BG$29)*$S$7+'Demand data'!$BG$29*$S$6)/'Generation data'!W21 -> 0.6409495453
A20: 2016/17 | B20: =(('Generation data'!B22-'Demand data'!C$29)*K$7+'Demand data'!C$29*K$6)/'Generation data'!B22 -> 0.9261199423 | C20: =(('Generation data'!C22-'Demand data'!J$29)*L$7+'Demand data'!J$29*L$6)/'Generation data'!C22 -> 0.9595529053 | D20: =(('Generation data'!D22-'Demand data'!Q$29)*M$7+'Demand data'!Q$29*M$6)/'Generation data'!D22 -> 0.8989618647 | E20: =(('Generation data'!E22-'Demand data'!X$29)*N$7+'Demand data'!X$29*N$6)/'Generation data'!E22 -> 1.243738697 | F20: =(('Generation data'!F22-'Demand data'!AE$29)*O$7+'Demand data'!AE$29*O$6)/'Generation data'!F22 -> 0.8942244812 | G20: =(('Generation data'!G22-'Demand data'!AL$29)*P$7+'Demand data'!AL$29*P$6)/'Generation data'!G22 -> 0.7327978319 | H20: =(('Generation data'!H22-'Demand data'!$AS$29)*Q$7+'Demand data'!AS$29*Q$6)/'Generation data'!H22 -> 0.2903934538 | I20: =(('Generation data'!I22-'Demand data'!AZ$29)*R$7+'Demand data'!AZ$29*R$6)/'Generation data'!I22 -> 0.8200282057 | J20: =(('Generation data'!J22-'Demand data'!BG$29)*S$7+'Demand data'!BG$29*S$6)/'Generation data'!J22 -> 0.6818531343 | N20: 2016/17 | O20: =(('Generation data'!O22-'Demand data'!$C$29)*$K$7+'Demand data'!$C$29*$K$6)/'Generation data'!O22 -> 0.9556349694 | P20: =(('Generation data'!P22-'Demand data'!$J$29)*$L$7+'Demand data'!$J$29*$L$6)/'Generation data'!P22 -> 0.9805762133 | Q20: =(('Generation data'!Q22-'Demand data'!$Q$29)*$M$7+'Demand data'!$Q$29*$M$6)/'Generation data'!Q22 -> 0.9216203204 | R20: =(('Generation data'!R22-'Demand data'!$X$29)*$N$7+'Demand data'!$X$29*$N$6)/'Generation data'!R22 -> 1.255155634 | S20: =(('Generation data'!S22-'Demand data'!$AE$29)*$O$7+'Demand data'!$AE$29*$O$6)/'Generation data'!S22 -> 0.9050913936 | T20: =(('Generation data'!T22-'Demand data'!$AL$29)*$P$7+'Demand data'!$AL$29*$P$6)/'Generation data'!T22 -> 0.8079090319 | U20: =(('Generation data'!H22-'Demand data'!$AS$29)*$Q$7+'Demand data'!$AS$29*$Q$6)/'Generation data'!H22 -> 0.2903934538 | V20: =(('Generation data'!V22-'Demand data'!$AZ$29)*$R$7+'Demand data'!$AZ$29*$R$6)/'Generation data'!V22 -> 0.8082836059 | W20: =(('Generation data'!W22-'Demand data'!$BG$29)*$S$7+'Demand data'!$BG$29*$S$6)/'Generation data'!W22 -> 0.6409495453
A21: 2017/18 | B21: =(('Generation data'!B23-'Demand data'!C$29)*K$7+'Demand data'!C$29*K$6)/'Generation data'!B23 -> 0.9261388639 | C21: =(('Generation data'!C23-'Demand data'!J$29)*L$7+'Demand data'!J$29*L$6)/'Generation data'!C23 -> 0.959569827 | D21: =(('Generation data'!D23-'Demand data'!Q$29)*M$7+'Demand data'!Q$29*M$6)/'Generation data'!D23 -> 0.8989618647 | E21: =(('Generation data'!E23-'Demand data'!X$29)*N$7+'Demand data'!X$29*N$6)/'Generation data'!E23 -> 1.243778254 | F21: =(('Generation data'!F23-'Demand data'!AE$29)*O$7+'Demand data'!AE$29*O$6)/'Generation data'!F23 -> 0.8942219082 | G21: =(('Generation data'!G23-'Demand data'!AL$29)*P$7+'Demand data'!AL$29*P$6)/'Generation data'!G23 -> 0.7327978319 | H21: =(('Generation data'!H23-'Demand data'!$AS$29)*Q$7+'Demand data'!AS$29*Q$6)/'Generation data'!H23 -> 0.2911410246 | I21: =(('Generation data'!I23-'Demand data'!AZ$29)*R$7+'Demand data'!AZ$29*R$6)/'Generation data'!I23 -> 0.8200282057 | J21: =(('Generation data'!J23-'Demand data'!BG$29)*S$7+'Demand data'!BG$29*S$6)/'Generation data'!J23 -> 0.6818531343 | N21: 2017/18 | O21: =(('Generation data'!O23-'Demand data'!$C$29)*$K$7+'Demand data'!$C$29*$K$6)/'Generation data'!O23 -> 0.9556509738 | P21: =(('Generation data'!P23-'Demand data'!$J$29)*$L$7+'Demand data'!$J$29*$L$6)/'Generation data'!P23 -> 0.9805924508 | Q21: =(('Generation data'!Q23-'Demand data'!$Q$29)*$M$7+'Demand data'!$Q$29*$M$6)/'Generation data'!Q23 -> 0.9216203204 | R21: =(('Generation data'!R23-'Demand data'!$X$29)*$N$7+'Demand data'!$X$29*$N$6)/'Generation data'!R23 -> 1.255190836 | S21: =(('Generation data'!S23-'Demand data'!$AE$29)*$O$7+'Demand data'!$AE$29*$O$6)/'Generation data'!S23 -> 0.9050896479 | T21: =(('Generation data'!T23-'Demand data'!$AL$29)*$P$7+'Demand data'!$AL$29*$P$6)/'Generation data'!T23 -> 0.8079090319 | U21: =(('Generation data'!H23-'Demand data'!$AS$29)*$Q$7+'Demand data'!$AS$29*$Q$6)/'Generation data'!H23 -> 0.2911410246 | V21: =(('Generation data'!V23-'Demand data'!$AZ$29)*$R$7+'Demand data'!$AZ$29*$R$6)/'Generation data'!V23 -> 0.8082836059 | W21: =(('Generation data'!W23-'Demand data'!$BG$29)*$S$7+'Demand data'!$BG$29*$S$6)/'Generation data'!W23 -> 0.6409495453
A22: 2018/19 | B22: =(('Generation data'!B24-'Demand data'!C$29)*K$7+'Demand data'!C$29*K$6)/'Generation data'!B24 -> 0.92614371 | C22: =(('Generation data'!C24-'Demand data'!J$29)*L$7+'Demand data'!J$29*L$6)/'Generation data'!C24 -> 0.9595741608 | D22: =(('Generation data'!D24-'Demand data'!Q$29)*M$7+'Demand data'!Q$29*M$6)/'Generation data'!D24 -> 0.8989618647 | E22: =(('Generation data'!E24-'Demand data'!X$29)*N$7+'Demand data'!X$29*N$6)/'Generation data'!E24 -> 1.243765073 | F22: =(('Generation data'!F24-'Demand data'!AE$29)*O$7+'Demand data'!AE$29*O$6)/'Generation data'!F24 -> 0.8942219082 | G22: =(('Generation data'!G24-'Demand data'!AL$29)*P$7+'Demand data'!AL$29*P$6)/'Generation data'!G24 -> 0.7327978319 | H22: =(('Generation data'!H24-'Demand data'!$AS$29)*Q$7+'Demand data'!AS$29*Q$6)/'Generation data'!H24 -> 0.2918852037 | I22: =(('Generation data'!I24-'Demand data'!AZ$29)*R$7+'Demand data'!AZ$29*R$6)/'Generation data'!I24 -> 0.8200282057 | J22: =(('Generation data'!J24-'Demand data'!BG$29)*S$7+'Demand data'!BG$29*S$6)/'Generation data'!J24 -> 0.6818531343 | N22: 2018/19 | O22: =(('Generation data'!O24-'Demand data'!$C$29)*$K$7+'Demand data'!$C$29*$K$6)/'Generation data'!O24 -> 0.9556592358 | P22: =(('Generation data'!P24-'Demand data'!$J$29)*$L$7+'Demand data'!$J$29*$L$6)/'Generation data'!P24 -> 0.9806008327 | Q22: =(('Generation data'!Q24-'Demand data'!$Q$29)*$M$7+'Demand data'!$Q$29*$M$6)/'Generation data'!Q24 -> 0.9216203204 | R22: =(('Generation data'!R24-'Demand data'!$X$29)*$N$7+'Demand data'!$X$29*$N$6)/'Generation data'!R24 -> 1.255179106 | S22: =(('Generation data'!S24-'Demand data'!$AE$29)*$O$7+'Demand data'!$AE$29*$O$6)/'Generation data'!S24 -> 0.9050896479 | T22: =(('Generation data'!T24-'Demand data'!$AL$29)*$P$7+'Demand data'!$AL$29*$P$6)/'Generation data'!T24 -> 0.8079090319 | U22: =(('Generation data'!H24-'Demand data'!$AS$29)*$Q$7+'Demand data'!$AS$29*$Q$6)/'Generation data'!H24 -> 0.2918852037 | V22: =(('Generation data'!V24-'Demand data'!$AZ$29)*$R$7+'Demand data'!$AZ$29*$R$6)/'Generation data'!V24 -> 0.8082836059 | W22: =(('Generation data'!W24-'Demand data'!$BG$29)*$S$7+'Demand data'!$BG$29*$S$6)/'Generation data'!W24 -> 0.6409495453
A23: 2019/20 | B23: =(('Generation data'!B25-'Demand data'!C$29)*K$7+'Demand data'!C$29*K$6)/'Generation data'!B25 -> 0.9261316054 | C23: =(('Generation data'!C25-'Demand data'!J$29)*L$7+'Demand data'!J$29*L$6)/'Generation data'!C25 -> 0.9595633357 | D23: =(('Generation data'!D25-'Demand data'!Q$29)*M$7+'Demand data'!Q$29*M$6)/'Generation data'!D25 -> 0.8989618647 | E23: =(('Generation data'!E25-'Demand data'!X$29)*N$7+'Demand data'!X$29*N$6)/'Generation data'!E25 -> 1.243751888 | F23: =(('Generation data'!F25-'Demand data'!AE$29)*O$7+'Demand data'!AE$29*O$6)/'Generation data'!F25 -> 0.8942167608 | G23: =(('Generation data'!G25-'Demand data'!AL$29)*P$7+'Demand data'!AL$29*P$6)/'Generation data'!G25 -> 0.7327978319 | H23: =(('Generation data'!H25-'Demand data'!$AS$29)*Q$7+'Demand data'!AS$29*Q$6)/'Generation data'!H25 -> 0.2915135366 | I23: =(('Generation data'!I25-'Demand data'!AZ$29)*R$7+'Demand data'!AZ$29*R$6)/'Generation data'!I25 -> 0.8200282057 | J23: =(('Generation data'!J25-'Demand data'!BG$29)*S$7+'Demand data'!BG$29*S$6)/'Generation data'!J25 -> 0.6818531343 | N23: 2019/20 | O23: =(('Generation data'!O25-'Demand data'!$C$29)*$K$7+'Demand data'!$C$29*$K$6)/'Generation data'!O25 -> 0.9556490617 | P23: =(('Generation data'!P25-'Demand data'!$J$29)*$L$7+'Demand data'!$J$29*$L$6)/'Generation data'!P25 -> 0.980590511 | Q23: =(('Generation data'!Q25-'Demand data'!$Q$29)*$M$7+'Demand data'!$Q$29*$M$6)/'Generation data'!Q25 -> 0.9216203204 | R23: =(('Generation data'!R25-'Demand data'!$X$29)*$N$7+'Demand data'!$X$29*$N$6)/'Generation data'!R25 -> 1.255167373 | S23: =(('Generation data'!S25-'Demand data'!$AE$29)*$O$7+'Demand data'!$AE$29*$O$6)/'Generation data'!S25 -> 0.9050861555 | T23: =(('Generation data'!T25-'Demand data'!$AL$29)*$P$7+'Demand data'!$AL$29*$P$6)/'Generation data'!T25 -> 0.8079090319 | U23: =(('Generation data'!H25-'Demand data'!$AS$29)*$Q$7+'Demand data'!$AS$29*$Q$6)/'Generation data'!H25 -> 0.2915135366 | V23: =(('Generation data'!V25-'Demand data'!$AZ$29)*$R$7+'Demand data'!$AZ$29*$R$6)/'Generation data'!V25 -> 0.8082836059 | W23: =(('Generation data'!W25-'Demand data'!$BG$29)*$S$7+'Demand data'!$BG$29*$S$6)/'Generation data'!W25 -> 0.6409495453
A24: 2020/21 | B24: =(('Generation data'!B26-'Demand data'!C$29)*K$7+'Demand data'!C$29*K$6)/'Generation data'!B26 -> 0.9261316054 | C24: =(('Generation data'!C26-'Demand data'!J$29)*L$7+'Demand data'!J$29*L$6)/'Generation data'!C26 -> 0.9595633357 | D24: =(('Generation data'!D26-'Demand data'!Q$29)*M$7+'Demand data'!Q$29*M$6)/'Generation data'!D26 -> 0.8989618647 | E24: =(('Generation data'!E26-'Demand data'!X$29)*N$7+'Demand data'!X$29*N$6)/'Generation data'!E26 -> 1.243751888 | F24: =(('Generation data'!F26-'Demand data'!AE$29)*O$7+'Demand data'!AE$29*O$6)/'Generation data'!F26 -> 0.8942167608 | G24: =(('Generation data'!G26-'Demand data'!AL$29)*P$7+'Demand data'!AL$29*P$6)/'Generation data'!G26 -> 0.7327978319 | H24: =(('Generation data'!H26-'Demand data'!$AS$29)*Q$7+'Demand data'!AS$29*Q$6)/'Generation data'!H26 -> 0.2915135366 | I24: =(('Generation data'!I26-'Demand data'!AZ$29)*R$7+'Demand data'!AZ$29*R$6)/'Generation data'!I26 -> 0.8200282057 | J24: =(('Generation data'!J26-'Demand data'!BG$29)*S$7+'Demand data'!BG$29*S$6)/'Generation data'!J26 -> 0.6818531343 | N24: 2020/21 | O24: =(('Generation data'!O26-'Demand data'!$C$29)*$K$7+'Demand data'!$C$29*$K$6)/'Generation data'!O26 -> 0.9556490617 | P24: =(('Generation data'!P26-'Demand data'!$J$29)*$L$7+'Demand data'!$J$29*$L$6)/'Generation data'!P26 -> 0.980590511 | Q24: =(('Generation data'!Q26-'Demand data'!$Q$29)*$M$7+'Demand data'!$Q$29*$M$6)/'Generation data'!Q26 -> 0.9216203204 | R24: =(('Generation data'!R26-'Demand data'!$X$29)*$N$7+'Demand data'!$X$29*$N$6)/'Generation data'!R26 -> 1.255167373 | S24: =(('Generation data'!S26-'Demand data'!$AE$29)*$O$7+'Demand data'!$AE$29*$O$6)/'Generation data'!S26 -> 0.9050861555 | T24: =(('Generation data'!T26-'Demand data'!$AL$29)*$P$7+'Demand data'!$AL$29*$P$6)/'Generation data'!T26 -> 0.8079090319 | U24: =(('Generation data'!H26-'Demand data'!$AS$29)*$Q$7+'Demand data'!$AS$29*$Q$6)/'Generation data'!H26 -> 0.2915135366 | V24: =(('Generation data'!V26-'Demand data'!$AZ$29)*$R$7+'Demand data'!$AZ$29*$R$6)/'Generation data'!V26 -> 0.8082836059 | W24: =(('Generation data'!W26-'Demand data'!$BG$29)*$S$7+'Demand data'!$BG$29*$S$6)/'Generation data'!W26 -> 0.6409495453
A26: Option 2 coal plants retire at initial scheduled retirement date (40 years life) | N26: Option 2 coal plants retire at initial scheduled retirement date (40 years life)
B27: National | C27: NEM | D27: NSW (inc. ACT) | E27: Victoria | F27: Queensland | G27: South Australia | H27: Tasmania | I27: Western Australia | J27: Northern Territory | O27: National | P27: NEM | Q27: NSW (inc. ACT) | R27: Victoria | S27: Queensland | T27: South Australia | U27: Tasmania | V27: Western Australia | W27: Northern Territory
A28: 2010/11 | B28: =(('Generation data'!B30-'Demand data'!C$29)*K$7+'Demand data'!C$29*K$6)/'Generation data'!B30 -> 0.9177696568 | C28: =(('Generation data'!C30-'Demand data'!J$29)*L$7+'Demand data'!J$29*L$6)/'Generation data'!C30 -> 0.9520241419 | D28: =(('Generation data'!D30-'Demand data'!Q$29)*M$7+'Demand data'!Q$29*M$6)/'Generation data'!D30 -> 0.8929878397 | E28: =(('Generation data'!E30-'Demand data'!X$29)*N$7+'Demand data'!X$29*N$6)/'Generation data'!E30 -> 1.227080449 | F28: =(('Generation data'!F30-'Demand data'!AE$29)*O$7+'Demand data'!AE$29*O$6)/'Generation data'!F30 -> 0.8935007478 | G28: =(('Generation data'!G30-'Demand data'!AL$29)*P$7+'Demand data'!AL$29*P$6)/'Generation data'!G30 -> 0.7151684675 | H28: =(('Generation data'!H30-'Demand data'!$AS$29)*Q$7+'Demand data'!AS$29*Q$6)/'Generation data'!H30 -> 0.2737300733 | I28: =(('Generation data'!I30-'Demand data'!AZ$29)*R$7+'Demand data'!AZ$29*R$6)/'Generation data'!I30 -> 0.8200282057 | J28: =(('Generation data'!J30-'Demand data'!BG$29)*S$7+'Demand data'!BG$29*S$6)/'Generation data'!J30 -> 0.6818531343 | L28: ='Control Panel'!$D$7 -> 2020/21 | N28: 2010/11 | O28: =(('Generation data'!O30-'Demand data'!$C$29)*$K$7+'Demand data'!$C$29*$K$6)/'Generation data'!O30 -> 0.9499896389 | P28: =(('Generation data'!P30-'Demand data'!$J$29)*$L$7+'Demand data'!$J$29*$L$6)/'Generation data'!P30 -> 0.974762856 | Q28: =(('Generation data'!Q30-'Demand data'!$Q$29)*$M$7+'Demand data'!$Q$29*$M$6)/'Generation data'!Q30 -> 0.9174221807 | R28: =(('Generation data'!R30-'Demand data'!$X$29)*$N$7+'Demand data'!$X$29*$N$6)/'Generation data'!R30 -> 1.240130911 | S28: =(('Generation data'!S30-'Demand data'!$AE$29)*$O$7+'Demand data'!$AE$29*$O$6)/'Generation data'!S30 -> 0.9045999771 | T28: =(('Generation data'!T30-'Demand data'!$AL$29)*$P$7+'Demand data'!$AL$29*$P$6)/'Generation data'!T30 -> 0.794386015 | U28: =(('Generation data'!H30-'Demand data'!$AS$29)*$Q$7+'Demand data'!$AS$29*$Q$6)/'Generation data'!H30 -> 0.2737300733 | V28: =(('Generation data'!V30-'Demand data'!$AZ$29)*$R$7+'Demand data'!$AZ$29*$R$6)/'Generation data'!V30 -> 0.8082836059 | W28: =(('Generation data'!W30-'Demand data'!$BG$29)*$S$7+'Demand data'!$BG$29*$S$6)/'Generation data'!W30 -> 0.6409495453 | Y28: ='Control Panel'!$D$7 -> 2020/21
A29: 2011/12 | B29: =(('Generation data'!B31-'Demand data'!C$29)*K$7+'Demand data'!C$29*K$6)/'Generation data'!B31 -> 0.913579822 | C29: =(('Generation data'!C31-'Demand data'!J$29)*L$7+'Demand data'!J$29*L$6)/'Generation data'!C31 -> 0.948200062 | D29: =(('Generation data'!D31-'Demand data'!Q$29)*M$7+'Demand data'!Q$29*M$6)/'Generation data'!D31 -> 0.8821053038 | E29: =(('Generation data'!E31-'Demand data'!X$29)*N$7+'Demand data'!X$29*N$6)/'Generation data'!E31 -> 1.227080449 | F29: =(('Generation data'!F31-'Demand data'!AE$29)*O$7+'Demand data'!AE$29*O$6)/'Generation data'!F31 -> 0.8935007478 | G29: =(('Generation data'!G31-'Demand data'!AL$29)*P$7+'Demand data'!AL$29*P$6)/'Generation data'!G31 -> 0.7151684675 | H29: =(('Generation data'!H31-'Demand data'!$AS$29)*Q$7+'Demand data'!AS$29*Q$6)/'Generation data'!H31 -> 0.2737300733 | I29: =(('Generation data'!I31-'Demand data'!AZ$29)*R$7+'Demand data'!AZ$29*R$6)/'Generation data'!I31 -> 0.8200282057 | J29: =(('Generation data'!J31-'Demand data'!BG$29)*S$7+'Demand data'!BG$29*S$6)/'Generation data'!J31 -> 0.6818531343 | L29: ='Control Panel'!$D$6 -> National | N29: 2011/12 | O29: =(('Generation data'!O31-'Demand data'!$C$29)*$K$7+'Demand data'!$C$29*$K$6)/'Generation data'!O31 -> 0.9470237765 | P29: =(('Generation data'!P31-'Demand data'!$J$29)*$L$7+'Demand data'!$J$29*$L$6)/'Generation data'!P31 -> 0.971638596 | Q29: =(('Generation data'!Q31-'Demand data'!$Q$29)*$M$7+'Demand data'!$Q$29*$M$6)/'Generation data'!Q31 -> 0.9096898659 | R29: =(('Generation data'!R31-'Demand data'!$X$29)*$N$7+'Demand data'!$X$29*$N$6)/'Generation data'!R31 -> 1.240130911 | S29: =(('Generation data'!S31-'Demand data'!$AE$29)*$O$7+'Demand data'!$AE$29*$O$6)/'Generation data'!S31 -> 0.9045999771 | T29: =(('Generation data'!T31-'Demand data'!$AL$29)*$P$7+'Demand data'!$AL$29*$P$6)/'Generation data'!T31 -> 0.794386015 | U29: =(('Generation data'!H31-'Demand data'!$AS$29)*$Q$7+'Demand data'!$AS$29*$Q$6)/'Generation data'!H31 -> 0.2737300733 | V29: =(('Generation data'!V31-'Demand data'!$AZ$29)*$R$7+'Demand data'!$AZ$29*$R$6)/'Generation data'!V31 -> 0.8082836059 | W29: =(('Generation data'!W31-'Demand data'!$BG$29)*$S$7+'Demand data'!$BG$29*$S$6)/'Generation data'!W31 -> 0.6409495453 | Y29: ='Control Panel'!$D$6 -> National
A30: 2012/13 | B30: =(('Generation data'!B32-'Demand data'!C$29)*K$7+'Demand data'!C$29*K$6)/'Generation data'!B32 -> 0.913579822 | C30: =(('Generation data'!C32-'Demand data'!J$29)*L$7+'Demand data'!J$29*L$6)/'Generation data'!C32 -> 0.948200062 | D30: =(('Generation data'!D32-'Demand data'!Q$29)*M$7+'Demand data'!Q$29*M$6)/'Generation data'!D32 -> 0.8821053038 | E30: =(('Generation data'!E32-'Demand data'!X$29)*N$7+'Demand data'!X$29*N$6)/'Generation data'!E32 -> 1.227080449 | F30: =(('Generation data'!F32-'Demand data'!AE$29)*O$7+'Demand data'!AE$29*O$6)/'Generation data'!F32 -> 0.8935007478 | G30: =(('Generation data'!G32-'Demand data'!AL$29)*P$7+'Demand data'!AL$29*P$6)/'Generation data'!G32 -> 0.7151684675 | H30: =(('Generation data'!H32-'Demand data'!$AS$29)*Q$7+'Demand data'!AS$29*Q$6)/'Generation data'!H32 -> 0.2737300733 | I30: =(('Generation data'!I32-'Demand data'!AZ$29)*R$7+'Demand data'!AZ$29*R$6)/'Generation data'!I32 -> 0.8200282057 | J30: =(('Generation data'!J32-'Demand data'!BG$29)*S$7+'Demand data'!BG$29*S$6)/'Generation data'!J32 -> 0.6818531343 | L30: =INDEX(A27:K38, MATCH(L28,A27:A38,0), MATCH(L29,A27:K27,0)) -> 0.8989518678 | N30: 2012/13 | O30: =(('Generation data'!O32-'Demand data'!$C$29)*$K$7+'Demand data'!$C$29*$K$6)/'Generation data'!O32 -> 0.9470237765 | P30: =(('Generation data'!P32-'Demand data'!$J$29)*$L$7+'Demand data'!$J$29*$L$6)/'Generation data'!P32 -> 0.971638596 | Q30: =(('Generation data'!Q32-'Demand data'!$Q$29)*$M$7+'Demand data'!$Q$29*$M$6)/'Generation data'!Q32 -> 0.9096898659 | R30: =(('Generation data'!R32-'Demand data'!$X$29)*$N$7+'Demand data'!$X$29*$N$6)/'Generation data'!R32 -> 1.240130911 | S30: =(('Generation data'!S32-'Demand data'!$AE$29)*$O$7+'Demand data'!$AE$29*$O$6)/'Generation data'!S32 -> 0.9045999771 | T30: =(('Generation data'!T32-'Demand data'!$AL$29)*$P$7+'Demand data'!$AL$29*$P$6)/'Generation data'!T32 -> 0.794386015 | U30: =(('Generation data'!H32-'Demand data'!$AS$29)*$Q$7+'Demand data'!$AS$29*$Q$6)/'Generation data'!H32 -> 0.2737300733 | V30: =(('Generation data'!V32-'Demand data'!$AZ$29)*$R$7+'Demand data'!$AZ$29*$R$6)/'Generation data'!V32 -> 0.8082836059 | W30: =(('Generation data'!W32-'Demand data'!$BG$29)*$S$7+'Demand data'!$BG$29*$S$6)/'Generation data'!W32 -> 0.6409495453 | Y30: =INDEX(N27:X38, MATCH(Y28,N27:N38,0), MATCH(Y29,N27:X27,0)) -> 0.9372200016
A31: 2013/14 | B31: =(('Generation data'!B33-'Demand data'!C$29)*K$7+'Demand data'!C$29*K$6)/'Generation data'!B33 -> 0.9095464415 | C31: =(('Generation data'!C33-'Demand data'!J$29)*L$7+'Demand data'!J$29*L$6)/'Generation data'!C33 -> 0.9444889769 | D31: =(('Generation data'!D33-'Demand data'!Q$29)*M$7+'Demand data'!Q$29*M$6)/'Generation data'!D33 -> 0.8821053038 | E31: =(('Generation data'!E33-'Demand data'!X$29)*N$7+'Demand data'!X$29*N$6)/'Generation data'!E33 -> 1.209314789 | F31: =(('Generation data'!F33-'Demand data'!AE$29)*O$7+'Demand data'!AE$29*O$6)/'Generation data'!F33 -> 0.8934366852 | G31: =(('Generation data'!G33-'Demand data'!AL$29)*P$7+'Demand data'!AL$29*P$6)/'Generation data'!G33 -> 0.7151684675 | H31: =(('Generation data'!H33-'Demand data'!$AS$29)*Q$7+'Demand data'!AS$29*Q$6)/'Generation data'!H33 -> 0.2737300733 | I31: =(('Generation data'!I33-'Demand data'!AZ$29)*R$7+'Demand data'!AZ$29*R$6)/'Generation data'!I33 -> 0.8200282057 | J31: =(('Generation data'!J33-'Demand data'!BG$29)*S$7+'Demand data'!BG$29*S$6)/'Generation data'!J33 -> 0.6818531343 | N31: 2013/14 | O31: =(('Generation data'!O33-'Demand data'!$C$29)*$K$7+'Demand data'!$C$29*$K$6)/'Generation data'!O33 -> 0.9447222634 | P31: =(('Generation data'!P33-'Demand data'!$J$29)*$L$7+'Demand data'!$J$29*$L$6)/'Generation data'!P33 -> 0.9691799067 | Q31: =(('Generation data'!Q33-'Demand data'!$Q$29)*$M$7+'Demand data'!$Q$29*$M$6)/'Generation data'!Q33 -> 0.9096898659 | R31: =(('Generation data'!R33-'Demand data'!$X$29)*$N$7+'Demand data'!$X$29*$N$6)/'Generation data'!R33 -> 1.223654037 | S31: =(('Generation data'!S33-'Demand data'!$AE$29)*$O$7+'Demand data'!$AE$29*$O$6)/'Generation data'!S33 -> 0.9045564416 | T31: =(('Generation data'!T33-'Demand data'!$AL$29)*$P$7+'Demand data'!$AL$29*$P$6)/'Generation data'!T33 -> 0.794386015 | U31: =(('Generation data'!H33-'Demand data'!$AS$29)*$Q$7+'Demand data'!$AS$29*$Q$6)/'Generation data'!H33 -> 0.2737300733 | V31: =(('Generation data'!V33-'Demand data'!$AZ$29)*$R$7+'Demand data'!$AZ$29*$R$6)/'Generation data'!V33 -> 0.8082836059 | W31: =(('Generation data'!W33-'Demand data'!$BG$29)*$S$7+'Demand data'!$BG$29*$S$6)/'Generation data'!W33 -> 0.6409495453
A32: 2014/15 | B32: =(('Generation data'!B34-'Demand data'!C$29)*K$7+'Demand data'!C$29*K$6)/'Generation data'!B34 -> 0.9094538182 | C32: =(('Generation data'!C34-'Demand data'!J$29)*L$7+'Demand data'!J$29*L$6)/'Generation data'!C34 -> 0.9444034087 | D32: =(('Generation data'!D34-'Demand data'!Q$29)*M$7+'Demand data'!Q$29*M$6)/'Generation data'!D34 -> 0.8821053038 | E32: =(('Generation data'!E34-'Demand data'!X$29)*N$7+'Demand data'!X$29*N$6)/'Generation data'!E34 -> 1.209314789 | F32: =(('Generation data'!F34-'Demand data'!AE$29)*O$7+'Demand data'!AE$29*O$6)/'Generation data'!F34 -> 0.8933401819 | G32: =(('Generation data'!G34-'Demand data'!AL$29)*P$7+'Demand data'!AL$29*P$6)/'Generation data'!G34 -> 0.7151684675 | H32: =(('Generation data'!H34-'Demand data'!$AS$29)*Q$7+'Demand data'!AS$29*Q$6)/'Generation data'!H34 -> 0.2737300733 | I32: =(('Generation data'!I34-'Demand data'!AZ$29)*R$7+'Demand data'!AZ$29*R$6)/'Generation data'!I34 -> 0.8200282057 | J32: =(('Generation data'!J34-'Demand data'!BG$29)*S$7+'Demand data'!BG$29*S$6)/'Generation data'!J34 -> 0.6818531343 | N32: 2014/15 | O32: =(('Generation data'!O34-'Demand data'!$C$29)*$K$7+'Demand data'!$C$29*$K$6)/'Generation data'!O34 -> 0.9446566104 | P32: =(('Generation data'!P34-'Demand data'!$J$29)*$L$7+'Demand data'!$J$29*$L$6)/'Generation data'!P34 -> 0.9691093246 | Q32: =(('Generation data'!Q34-'Demand data'!$Q$29)*$M$7+'Demand data'!$Q$29*$M$6)/'Generation data'!Q34 -> 0.9096898659 | R32: =(('Generation data'!R34-'Demand data'!$X$29)*$N$7+'Demand data'!$X$29*$N$6)/'Generation data'!R34 -> 1.223654037 | S32: =(('Generation data'!S34-'Demand data'!$AE$29)*$O$7+'Demand data'!$AE$29*$O$6)/'Generation data'!S34 -> 0.9044908485 | T32: =(('Generation data'!T34-'Demand data'!$AL$29)*$P$7+'Demand data'!$AL$29*$P$6)/'Generation data'!T34 -> 0.794386015 | U32: =(('Generation data'!H34-'Demand data'!$AS$29)*$Q$7+'Demand data'!$AS$29*$Q$6)/'Generation data'!H34 -> 0.2737300733 | V32: =(('Generation data'!V34-'Demand data'!$AZ$29)*$R$7+'Demand data'!$AZ$29*$R$6)/'Generation data'!V34 -> 0.8082836059 | W32: =(('Generation data'!W34-'Demand data'!$BG$29)*$S$7+'Demand data'!$BG$29*$S$6)/'Generation data'!W34 -> 0.6409495453
A33: 2015/16 | B33: =(('Generation data'!B35-'Demand data'!C$29)*K$7+'Demand data'!C$29*K$6)/'Generation data'!B35 -> 0.9094538182 | C33: =(('Generation data'!C35-'Demand data'!J$29)*L$7+'Demand data'!J$29*L$6)/'Generation data'!C35 -> 0.9444034087 | D33: =(('Generation data'!D35-'Demand data'!Q$29)*M$7+'Demand data'!Q$29*M$6)/'Generation data'!D35 -> 0.8821053038 | E33: =(('Generation data'!E35-'Demand data'!X$29)*N$7+'Demand data'!X$29*N$6)/'Generation data'!E35 -> 1.209314789 | F33: =(('Generation data'!F35-'Demand data'!AE$29)*O$7+'Demand data'!AE$29*O$6)/'Generation data'!F35 -> 0.8933401819 | G33: =(('Generation data'!G35-'Demand data'!AL$29)*P$7+'Demand data'!AL$29*P$6)/'Generation data'!G35 -> 0.7151684675 | H33: =(('Generation data'!H35-'Demand data'!$AS$29)*Q$7+'Demand data'!AS$29*Q$6)/'Generation data'!H35 -> 0.2737300733 | I33: =(('Generation data'!I35-'Demand data'!AZ$29)*R$7+'Demand data'!AZ$29*R$6)/'Generation data'!I35 -> 0.8200282057 | J33: =(('Generation data'!J35-'Demand data'!BG$29)*S$7+'Demand data'!BG$29*S$6)/'Generation data'!J35 -> 0.6818531343 | N33: 2015/16 | O33: =(('Generation data'!O35-'Demand data'!$C$29)*$K$7+'Demand data'!$C$29*$K$6)/'Generation data'!O35 -> 0.9446566104 | P33: =(('Generation data'!P35-'Demand data'!$J$29)*$L$7+'Demand data'!$J$29*$L$6)/'Generation data'!P35 -> 0.9691093246 | Q33: =(('Generation data'!Q35-'Demand data'!$Q$29)*$M$7+'Demand data'!$Q$29*$M$6)/'Generation data'!Q35 -> 0.9096898659 | R33: =(('Generation data'!R35-'Demand data'!$X$29)*$N$7+'Demand data'!$X$29*$N$6)/'Generation data'!R35 -> 1.223654037 | S33: =(('Generation data'!S35-'Demand data'!$AE$29)*$O$7+'Demand data'!$AE$29*$O$6)/'Generation data'!S35 -> 0.9044908485 | T33: =(('Generation data'!T35-'Demand data'!$AL$29)*$P$7+'Demand data'!$AL$29*$P$6)/'Generation data'!T35 -> 0.794386015 | U33: =(('Generation data'!H35-'Demand data'!$AS$29)*$Q$7+'Demand data'!$AS$29*$Q$6)/'Generation data'!H35 -> 0.2737300733 | V33: =(('Generation data'!V35-'Demand data'!$AZ$29)*$R$7+'Demand data'!$AZ$29*$R$6)/'Generation data'!V35 -> 0.8082836059 | W33: =(('Generation data'!W35-'Demand data'!$BG$29)*$S$7+'Demand data'!$BG$29*$S$6)/'Generation data'!W35 -> 0.6409495453
A34: 2016/17 | B34: =(('Generation data'!B36-'Demand data'!C$29)*K$7+'Demand data'!C$29*K$6)/'Generation data'!B36 -> 0.9024941272 | C34: =(('Generation data'!C36-'Demand data'!J$29)*L$7+'Demand data'!J$29*L$6)/'Generation data'!C36 -> 0.9379288814 | D34: =(('Generation data'!D36-'Demand data'!Q$29)*M$7+'Demand data'!Q$29*M$6)/'Generation data'!D36 -> 0.8755913943 | E34: =(('Generation data'!E36-'Demand data'!X$29)*N$7+'Demand data'!X$29*N$6)/'Generation data'!E36 -> 1.209314789 | F34: =(('Generation data'!F36-'Demand data'!AE$29)*O$7+'Demand data'!AE$29*O$6)/'Generation data'!F36 -> 0.8882145295 | G34: =(('Generation data'!G36-'Demand data'!AL$29)*P$7+'Demand data'!AL$29*P$6)/'Generation data'!G36 -> 0.7151684675 | H34: =(('Generation data'!H36-'Demand data'!$AS$29)*Q$7+'Demand data'!AS$29*Q$6)/'Generation data'!H36 -> 0.2737300733 | I34: =(('Generation data'!I36-'Demand data'!AZ$29)*R$7+'Demand data'!AZ$29*R$6)/'Generation data'!I36 -> 0.8200282057 | J34: =(('Generation data'!J36-'Demand data'!BG$29)*S$7+'Demand data'!BG$29*S$6)/'Generation data'!J36 -> 0.6818531343 | N34: 2016/17 | O34: =(('Generation data'!O36-'Demand data'!$C$29)*$K$7+'Demand data'!$C$29*$K$6)/'Generation data'!O36 -> 0.9397248972 | P34: =(('Generation data'!P36-'Demand data'!$J$29)*$L$7+'Demand data'!$J$29*$L$6)/'Generation data'!P36 -> 0.9637353016 | Q34: =(('Generation data'!Q36-'Demand data'!$Q$29)*$M$7+'Demand data'!$Q$29*$M$6)/'Generation data'!Q36 -> 0.9050083728 | R34: =(('Generation data'!R36-'Demand data'!$X$29)*$N$7+'Demand data'!$X$29*$N$6)/'Generation data'!R36 -> 1.223654037 | S34: =(('Generation data'!S36-'Demand data'!$AE$29)*$O$7+'Demand data'!$AE$29*$O$6)/'Generation data'!S36 -> 0.9009872002 | T34: =(('Generation data'!T36-'Demand data'!$AL$29)*$P$7+'Demand data'!$AL$29*$P$6)/'Generation data'!T36 -> 0.794386015 | U34: =(('Generation data'!H36-'Demand data'!$AS$29)*$Q$7+'Demand data'!$AS$29*$Q$6)/'Generation data'!H36 -> 0.2737300733 | V34: =(('Generation data'!V36-'Demand data'!$AZ$29)*$R$7+'Demand data'!$AZ$29*$R$6)/'Generation data'!V36 -> 0.8082836059 | W34: =(('Generation data'!W36-'Demand data'!$BG$29)*$S$7+'Demand data'!$BG$29*$S$6)/'Generation data'!W36 -> 0.6409495453
A35: 2017/18 | B35: =(('Generation data'!B37-'Demand data'!C$29)*K$7+'Demand data'!C$29*K$6)/'Generation data'!B37 -> 0.9024941272 | C35: =(('Generation data'!C37-'Demand data'!J$29)*L$7+'Demand data'!J$29*L$6)/'Generation data'!C37 -> 0.9379288814 | D35: =(('Generation data'!D37-'Demand data'!Q$29)*M$7+'Demand data'!Q$29*M$6)/'Generation data'!D37 -> 0.8755913943 | E35: =(('Generation data'!E37-'Demand data'!X$29)*N$7+'Demand data'!X$29*N$6)/'Generation data'!E37 -> 1.209314789 | F35: =(('Generation data'!F37-'Demand data'!AE$29)*O$7+'Demand data'!AE$29*O$6)/'Generation data'!F37 -> 0.8882145295 | G35: =(('Generation data'!G37-'Demand data'!AL$29)*P$7+'Demand data'!AL$29*P$6)/'Generation data'!G37 -> 0.7151684675 | H35: =(('Generation data'!H37-'Demand data'!$AS$29)*Q$7+'Demand data'!AS$29*Q$6)/'Generation data'!H37 -> 0.2737300733 | I35: =(('Generation data'!I37-'Demand data'!AZ$29)*R$7+'Demand data'!AZ$29*R$6)/'Generation data'!I37 -> 0.8200282057 | J35: =(('Generation data'!J37-'Demand data'!BG$29)*S$7+'Demand data'!BG$29*S$6)/'Generation data'!J37 -> 0.6818531343 | N35: 2017/18 | O35: =(('Generation data'!O37-'Demand data'!$C$29)*$K$7+'Demand data'!$C$29*$K$6)/'Generation data'!O37 -> 0.9397248972 | P35: =(('Generation data'!P37-'Demand data'!$J$29)*$L$7+'Demand data'!$J$29*$L$6)/'Generation data'!P37 -> 0.9637353016 | Q35: =(('Generation data'!Q37-'Demand data'!$Q$29)*$M$7+'Demand data'!$Q$29*$M$6)/'Generation data'!Q37 -> 0.9050083728 | R35: =(('Generation data'!R37-'Demand data'!$X$29)*$N$7+'Demand data'!$X$29*$N$6)/'Generation data'!R37 -> 1.223654037 | S35: =(('Generation data'!S37-'Demand data'!$AE$29)*$O$7+'Demand data'!$AE$29*$O$6)/'Generation data'!S37 -> 0.9009872002 | T35: =(('Generation data'!T37-'Demand data'!$AL$29)*$P$7+'Demand data'!$AL$29*$P$6)/'Generation data'!T37 -> 0.794386015 | U35: =(('Generation data'!H37-'Demand data'!$AS$29)*$Q$7+'Demand data'!$AS$29*$Q$6)/'Generation data'!H37 -> 0.2737300733 | V35: =(('Generation data'!V37-'Demand data'!$AZ$29)*$R$7+'Demand data'!$AZ$29*$R$6)/'Generation data'!V37 -> 0.8082836059 | W35: =(('Generation data'!W37-'Demand data'!$BG$29)*$S$7+'Demand data'!$BG$29*$S$6)/'Generation data'!W37 -> 0.6409495453
A36: 2018/19 | B36: =(('Generation data'!B38-'Demand data'!C$29)*K$7+'Demand data'!C$29*K$6)/'Generation data'!B38 -> 0.8989518678 | C36: =(('Generation data'!C38-'Demand data'!J$29)*L$7+'Demand data'!J$29*L$6)/'Generation data'!C38 -> 0.934599126 | D36: =(('Generation data'!D38-'Demand data'!Q$29)*M$7+'Demand data'!Q$29*M$6)/'Generation data'!D38 -> 0.8653040154 | E36: =(('Generation data'!E38-'Demand data'!X$29)*N$7+'Demand data'!X$29*N$6)/'Generation data'!E38 -> 1.209314789 | F36: =(('Generation data'!F38-'Demand data'!AE$29)*O$7+'Demand data'!AE$29*O$6)/'Generation data'!F38 -> 0.8882145295 | G36: =(('Generation data'!G38-'Demand data'!AL$29)*P$7+'Demand data'!AL$29*P$6)/'Generation data'!G38 -> 0.7151684675 | H36: =(('Generation data'!H38-'Demand data'!$AS$29)*Q$7+'Demand data'!AS$29*Q$6)/'Generation data'!H38 -> 0.2737300733 | I36: =(('Generation data'!I38-'Demand data'!AZ$29)*R$7+'Demand data'!AZ$29*R$6)/'Generation data'!I38 -> 0.8200282057 | J36: =(('Generation data'!J38-'Demand data'!BG$29)*S$7+'Demand data'!BG$29*S$6)/'Generation data'!J38 -> 0.6818531343 | N36: 2018/19 | O36: =(('Generation data'!O38-'Demand data'!$C$29)*$K$7+'Demand data'!$C$29*$K$6)/'Generation data'!O38 -> 0.9372200016 | P36: =(('Generation data'!P38-'Demand data'!$J$29)*$L$7+'Demand data'!$J$29*$L$6)/'Generation data'!P38 -> 0.9609501756 | Q36: =(('Generation data'!Q38-'Demand data'!$Q$29)*$M$7+'Demand data'!$Q$29*$M$6)/'Generation data'!Q38 -> 0.8975322848 | R36: =(('Generation data'!R38-'Demand data'!$X$29)*$N$7+'Demand data'!$X$29*$N$6)/'Generation data'!R38 -> 1.223654037 | S36: =(('Generation data'!S38-'Demand data'!$AE$29)*$O$7+'Demand data'!$AE$29*$O$6)/'Generation data'!S38 -> 0.9009872002 | T36: =(('Generation data'!T38-'Demand data'!$AL$29)*$P$7+'Demand data'!$AL$29*$P$6)/'Generation data'!T38 -> 0.794386015 | U36: =(('Generation data'!H38-'Demand data'!$AS$29)*$Q$7+'Demand data'!$AS$29*$Q$6)/'Generation data'!H38 -> 0.2737300733 | V36: =(('Generation data'!V38-'Demand data'!$AZ$29)*$R$7+'Demand data'!$AZ$29*$R$6)/'Generation data'!V38 -> 0.8082836059 | W36: =(('Generation data'!W38-'Demand data'!$BG$29)*$S$7+'Demand data'!$BG$29*$S$6)/'Generation data'!W38 -> 0.6409495453
A37: 2019/20 | B37: =(('Generation data'!B39-'Demand data'!C$29)*K$7+'Demand data'!C$29*K$6)/'Generation data'!B39 -> 0.8989518678 | C37: =(('Generation data'!C39-'Demand data'!J$29)*L$7+'Demand data'!J$29*L$6)/'Generation data'!C39 -> 0.934599126 | D37: =(('Generation data'!D39-'Demand data'!Q$29)*M$7+'Demand data'!Q$29*M$6)/'Generation data'!D39 -> 0.8653040154 | E37: =(('Generation data'!E39-'Demand data'!X$29)*N$7+'Demand data'!X$29*N$6)/'Generation data'!E39 -> 1.209314789 | F37: =(('Generation data'!F39-'Demand data'!AE$29)*O$7+'Demand data'!AE$29*O$6)/'Generation data'!F39 -> 0.8882145295 | G37: =(('Generation data'!G39-'Demand data'!AL$29)*P$7+'Demand data'!AL$29*P$6)/'Generation data'!G39 -> 0.7151684675 | H37: =(('Generation data'!H39-'Demand data'!$AS$29)*Q$7+'Demand data'!AS$29*Q$6)/'Generation data'!H39 -> 0.2737300733 | I37: =(('Generation data'!I39-'Demand data'!AZ$29)*R$7+'Demand data'!AZ$29*R$6)/'Generation data'!I39 -> 0.8200282057 | J37: =(('Generation data'!J39-'Demand data'!BG$29)*S$7+'Demand data'!BG$29*S$6)/'Generation data'!J39 -> 0.6818531343 | N37: 2019/20 | O37: =(('Generation data'!O39-'Demand data'!$C$29)*$K$7+'Demand data'!$C$29*$K$6)/'Generation data'!O39 -> 0.9372200016 | P37: =(('Generation data'!P39-'Demand data'!$J$29)*$L$7+'Demand data'!$J$29*$L$6)/'Generation data'!P39 -> 0.9609501756 | Q37: =(('Generation data'!Q39-'Demand data'!$Q$29)*$M$7+'Demand data'!$Q$29*$M$6)/'Generation data'!Q39 -> 0.8975322848 | R37: =(('Generation data'!R39-'Demand data'!$X$29)*$N$7+'Demand data'!$X$29*$N$6)/'Generation data'!R39 -> 1.223654037 | S37: =(('Generation data'!S39-'Demand data'!$AE$29)*$O$7+'Demand data'!$AE$29*$O$6)/'Generation data'!S39 -> 0.9009872002 | T37: =(('Generation data'!T39-'Demand data'!$AL$29)*$P$7+'Demand data'!$AL$29*$P$6)/'Generation data'!T39 -> 0.794386015 | U37: =(('Generation data'!H39-'Demand data'!$AS$29)*$Q$7+'Demand data'!$AS$29*$Q$6)/'Generation data'!H39 -> 0.2737300733 | V37: =(('Generation data'!V39-'Demand data'!$AZ$29)*$R$7+'Demand data'!$AZ$29*$R$6)/'Generation data'!V39 -> 0.8082836059 | W37: =(('Generation data'!W39-'Demand data'!$BG$29)*$S$7+'Demand data'!$BG$29*$S$6)/'Generation data'!W39 -> 0.6409495453
